Body Name,Purpose of Expenditure ,Directorate ,Dr/Cr,Gross Amount,Beneficiary,Transaction Date
Nottinghamshire County Council,Catering Consumables,"Adult Social Care, Health & Public Protection ",Debit,34.05,asda superstore,01/04/2016
Nottinghamshire County Council,Activities & Support,"Children, Families & Cultural Services",Debit,2.25,amazon uk marketplace,02/04/2016
Nottinghamshire County Council,Provisions,"Children, Families & Cultural Services",Debit,79.50,sainsburys smkt,01/04/2016
Nottinghamshire County Council,Office / General Equipment,"Adult Social Care, Health & Public Protection ",Debit,46.04,southwell service,01/04/2016
Nottinghamshire County Council,Office / General Equipment,"Adult Social Care, Health & Public Protection ",Debit,47.87,tesco pfs 3860,01/04/2016
Nottinghamshire County Council,Other Fee's & Services,"Adult Social Care, Health & Public Protection ",Debit,205.00,hmcourts-service.g,01/04/2016
Nottinghamshire County Council,Car Parking Charges,"Adult Social Care, Health & Public Protection ",Debit,6.00,gov.uk/dart-charge,01/04/2016
Nottinghamshire County Council,Office / General Equipment,Environment & Resources,Debit,29.98,screwfix direct,01/04/2016
Nottinghamshire County Council,Books - General,"Children, Families & Cultural Services",Credit,-81.83,amazon svcs europesar,03/04/2016
Nottinghamshire County Council,Activities & Support,"Children, Families & Cultural Services",Debit,4.50,costa coffee mansfield,01/04/2016
Nottinghamshire County Council,Activities & Support,"Children, Families & Cultural Services",Debit,64.10,nottingham climbing ce,01/04/2016
Nottinghamshire County Council,Training Fees,"Adult Social Care, Health & Public Protection ",Debit,19.24,b and q 1261,02/04/2016
Nottinghamshire County Council,Training Fees,"Adult Social Care, Health & Public Protection ",Debit,26.00,b and q 1261,02/04/2016
Nottinghamshire County Council,Training Fees,"Adult Social Care, Health & Public Protection ",Debit,12.60,b and q 1261,02/04/2016
Nottinghamshire County Council,Training Fees,"Adult Social Care, Health & Public Protection ",Debit,3.91,b and q 1261,02/04/2016
Nottinghamshire County Council,Training Fees,"Adult Social Care, Health & Public Protection ",Debit,26.00,b and q 1261,02/04/2016
Nottinghamshire County Council,Training Fees,"Adult Social Care, Health & Public Protection ",Debit,2.00,b and q 1261,02/04/2016
Nottinghamshire County Council,Training Fees,"Adult Social Care, Health & Public Protection ",Debit,2.00,b and q 1261,02/04/2016
Nottinghamshire County Council,Training Fees,"Adult Social Care, Health & Public Protection ",Debit,7.35,b and q 1261,02/04/2016
Nottinghamshire County Council,Training Fees,"Adult Social Care, Health & Public Protection ",Debit,3.91,b and q 1261,02/04/2016
Nottinghamshire County Council,Road Tax,Environment & Resources,Debit,415.00,post office counter,02/04/2016
Nottinghamshire County Council,Materials - External,Place,Debit,86.36,city electrical fa,01/04/2016
Nottinghamshire County Council,Materials - External,Place,Debit,22.34,city electrical fa,01/04/2016
Nottinghamshire County Council,Materials - External,Place,Debit,8.71,city electrical fa,01/04/2016
Nottinghamshire County Council,Materials - External,Place,Debit,0.28,city electrical fa,01/04/2016
Nottinghamshire County Council,Materials - External,Place,Debit,47.70,city electrical fa,01/04/2016
Nottinghamshire County Council,Materials - External,Place,Debit,5.04,city electrical fa,01/04/2016
Nottinghamshire County Council,Office / General Equipment,Place,Debit,18.97,city electrical fa,01/04/2016
Nottinghamshire County Council,Materials - External,Place,Debit,8.18,city electrical fa,01/04/2016
Nottinghamshire County Council,Materials - External,Place,Debit,10.76,city electrical fa,01/04/2016
Nottinghamshire County Council,Materials - External,Place,Debit,81.00,city electrical fa,01/04/2016
Nottinghamshire County Council,Minor Works,"Children, Families & Cultural Services",Debit,163.56,screwfix direct,01/04/2016
Nottinghamshire County Council,Contract Catering,"Children, Families & Cultural Services",Debit,34.08,pizza hut 450,03/04/2016
Nottinghamshire County Council,Activities & Support,"Children, Families & Cultural Services",Debit,22.38,wheelgate,03/04/2016
Nottinghamshire County Council,Legal Fees,"Children, Families & Cultural Services",Debit,215.00,www.justice.gov.uk,01/04/2016
Nottinghamshire County Council,Specialist Equipment,"Children, Families & Cultural Services",Debit,56.43,amazon uk retail,03/04/2016
Nottinghamshire County Council,Family Financial Assistance,"Children, Families & Cultural Services",Debit,13.87,amazon uk marketplace,01/04/2016
Nottinghamshire County Council,Legal Fees,"Children, Families & Cultural Services",Debit,215.00,www.justice.gov.uk,01/04/2016
Nottinghamshire County Council,Activities & Support,"Children, Families & Cultural Services",Debit,9.90,wilko retail limit,02/04/2016
Nottinghamshire County Council,Activities & Support,"Children, Families & Cultural Services",Debit,26.57,aldi,02/04/2016
Nottinghamshire County Council,Materials - External,Environment & Resources,Debit,23.83,edmundson elec-dummy,01/04/2016
Nottinghamshire County Council,Clothing/Shoes/Uniforms,"Children, Families & Cultural Services",Debit,53.00,j d sports 621,02/04/2016
Nottinghamshire County Council,Personal Needs,"Children, Families & Cultural Services",Debit,9.72,amazon uk marketplace,01/04/2016
Nottinghamshire County Council,Personal Needs,"Children, Families & Cultural Services",Debit,1.48,amazon uk marketplace,01/04/2016
Nottinghamshire County Council,Personal Needs,"Children, Families & Cultural Services",Debit,1.35,amazon uk marketplace,01/04/2016
Nottinghamshire County Council,Building Maintenance,Environment & Resources,Debit,45.00,houseproud,01/04/2016
Nottinghamshire County Council,Personal Needs,"Children, Families & Cultural Services",Debit,10.00,tesco stores 2995,02/04/2016
Nottinghamshire County Council,Provisions,"Children, Families & Cultural Services",Debit,63.48,asda superstore 04261,01/04/2016
Nottinghamshire County Council,Office / General Equipment,"Children, Families & Cultural Services",Debit,179.00,asda superstore 04261,01/04/2016
Nottinghamshire County Council,Activities & Support,"Children, Families & Cultural Services",Debit,35.00,chesterfield bowl,01/04/2016
Nottinghamshire County Council,Office / General Equipment,"Children, Families & Cultural Services",Debit,24.28,key building supplies,02/04/2016
Nottinghamshire County Council,Office / General Equipment,"Adult Social Care, Health & Public Protection ",Debit,214.79,janitorial direct ltd vt,01/04/2016
Nottinghamshire County Council,Personal Needs,"Children, Families & Cultural Services",Debit,27.99,amazon uk marketplace,01/04/2016
Nottinghamshire County Council,Provisions,"Children, Families & Cultural Services",Debit,15.52,aldi,01/04/2016
Nottinghamshire County Council,Cleaning Materials,"Children, Families & Cultural Services",Debit,15.48,booker limited mansfield,01/04/2016
Nottinghamshire County Council,Provisions,"Children, Families & Cultural Services",Debit,42.65,booker limited mansfield,01/04/2016
Nottinghamshire County Council,Office / General Equipment,"Children, Families & Cultural Services",Debit,9.49,booker limited mansfield,01/04/2016
Nottinghamshire County Council,Office / General Equipment,"Children, Families & Cultural Services",Debit,1.42,wsale office supp,01/04/2016
Nottinghamshire County Council,Stationery,"Children, Families & Cultural Services",Debit,200.00,argos ltd,02/04/2016
Nottinghamshire County Council,Rail / Tube Fares,Environment & Resources,Debit,13.50,national express limited,02/04/2016
Nottinghamshire County Council,Activities & Support,"Children, Families & Cultural Services",Debit,15.99,wm morrisons plc,01/04/2016
Nottinghamshire County Council,Books - General,"Children, Families & Cultural Services",Debit,6.99,tesco stores 5437,01/04/2016
Nottinghamshire County Council,Materials - Stores,Place,Debit,18.25,city electrical fa,01/04/2016
Nottinghamshire County Council,Materials - Stores,Place,Debit,18.25,city electrical fa,01/04/2016
Nottinghamshire County Council,Provisions,Environment & Resources,Debit,5.34,iceland,01/04/2016
Nottinghamshire County Council,Provisions,Environment & Resources,Debit,6.89,iceland,02/04/2016
Nottinghamshire County Council,Clients - H & S Equipt,"Children, Families & Cultural Services",Debit,10.49,amazon uk retail,03/04/2016
Nottinghamshire County Council,Clients - H & S Equipt,"Children, Families & Cultural Services",Credit,-8.77,worderyeu,02/04/2016
Nottinghamshire County Council,Office / General Equipment,"Children, Families & Cultural Services",Debit,117.95,amazon uk retail,03/04/2016
Nottinghamshire County Council,Materials - External,Environment & Resources,Debit,13.26,frank key (notts) ltd,02/04/2016
Nottinghamshire County Council,Activities & Support,"Children, Families & Cultural Services",Debit,75.00,the post office,01/04/2016
Nottinghamshire County Council,Clients - H & S Equipt,"Children, Families & Cultural Services",Debit,7.77,tesco stores 2702,01/04/2016
Nottinghamshire County Council,Clients - H & S Equipt,"Children, Families & Cultural Services",Debit,29.98,tesco stores 2702,01/04/2016
Nottinghamshire County Council,Personal Needs,"Children, Families & Cultural Services",Debit,5.99,netflix.com,01/04/2016
Nottinghamshire County Council,Activities & Support,"Children, Families & Cultural Services",Debit,12.71,wm morrison 067,02/04/2016
Nottinghamshire County Council,Office / General Equipment,"Adult Social Care, Health & Public Protection ",Debit,3.93,amazon uk marketplace,01/04/2016
Nottinghamshire County Council,Activities & Support,"Children, Families & Cultural Services",Debit,5.13,tesco stores 5379,01/04/2016
Nottinghamshire County Council,Personal Needs,"Children, Families & Cultural Services",Debit,245.50,travelodge notting,01/04/2016
Nottinghamshire County Council,Office / General Equipment,"Policy, Planning & Corporate Services",Debit,28.93,fontdeck,01/04/2016
Nottinghamshire County Council,Advertising & Marketing,"Policy, Planning & Corporate Services",Debit,88.06,hotjar,01/04/2016
Nottinghamshire County Council,Personal Needs,"Children, Families & Cultural Services",Debit,65.00,amerisuites,01/04/2016
Nottinghamshire County Council,Clients - H & S Equipt,"Children, Families & Cultural Services",Debit,5.55,costa coffee,01/04/2016
Nottinghamshire County Council,Personal Needs,"Children, Families & Cultural Services",Debit,11.75,amazon uk marketplace,02/05/2016
Nottinghamshire County Council,Personal Needs,"Children, Families & Cultural Services",Debit,22.98,amazon uk retail,02/05/2016
Nottinghamshire County Council,Personal Needs,"Children, Families & Cultural Services",Debit,24.49,amazon uk retail,02/05/2016
Nottinghamshire County Council,Personal Needs,"Children, Families & Cultural Services",Debit,19.96,amazon uk marketplace,02/05/2016
Nottinghamshire County Council,Personal Needs,"Children, Families & Cultural Services",Debit,24.49,amazon uk retail,30/04/2016
Nottinghamshire County Council,Fire Precaution Equipment,"Children, Families & Cultural Services",Debit,135.00,newark  sherwood lock,29/04/2016
Nottinghamshire County Council,Personal Needs,"Children, Families & Cultural Services",Debit,11.43,amazon uk retail,30/04/2016
Nottinghamshire County Council,Personal Needs,"Children, Families & Cultural Services",Debit,26.99,amazon uk marketplace,29/04/2016
Nottinghamshire County Council,Clothing/Shoes/Uniforms,"Children, Families & Cultural Services",Debit,31.50,marksspencer plc,29/04/2016
Nottinghamshire County Council,Personal Needs,"Children, Families & Cultural Services",Debit,5.18,amazon uk marketplace,30/04/2016
Nottinghamshire County Council,Personal Needs,"Children, Families & Cultural Services",Debit,29.98,amazon uk retail,29/04/2016
Nottinghamshire County Council,Clothing/Shoes/Uniforms,"Children, Families & Cultural Services",Debit,221.10,amazon uk marketplace,28/04/2016
Nottinghamshire County Council,Clothing/Shoes/Uniforms,"Children, Families & Cultural Services",Debit,170.64,dunelm online order,28/04/2016
Nottinghamshire County Council,Clothing/Shoes/Uniforms,"Children, Families & Cultural Services",Debit,48.96,decathlon uk ltd,27/04/2016
Nottinghamshire County Council,Personal Needs,"Children, Families & Cultural Services",Debit,109.12,amazon uk marketplace,26/04/2016
Nottinghamshire County Council,Office / General Equipment,"Children, Families & Cultural Services",Debit,20.55,amazon uk retail,25/04/2016
Nottinghamshire County Council,Clothing/Shoes/Uniforms,"Children, Families & Cultural Services",Debit,19.99,amazon uk marketplace,25/04/2016
Nottinghamshire County Council,Clothing/Shoes/Uniforms,"Children, Families & Cultural Services",Debit,16.94,amazon svcs europesar,25/04/2016
Nottinghamshire County Council,Office / General Equipment,"Children, Families & Cultural Services",Debit,20.55,amazon uk retail,25/04/2016
Nottinghamshire County Council,Office / General Equipment,"Children, Families & Cultural Services",Credit,-63.89,amazon uk marketplace,22/04/2016
Nottinghamshire County Council,Clothing/Shoes/Uniforms,"Children, Families & Cultural Services",Debit,29.36,alexandra website,14/04/2016
Nottinghamshire County Council,Clothing/Shoes/Uniforms,"Children, Families & Cultural Services",Debit,18.98,decathlon uk ltd,14/04/2016
Nottinghamshire County Council,Provisions,"Children, Families & Cultural Services",Debit,217.70,owen taylor  sons,13/04/2016
Nottinghamshire County Council,Personal Needs,"Children, Families & Cultural Services",Debit,24.00,amazon uk retail,11/04/2016
Nottinghamshire County Council,Personal Needs,"Children, Families & Cultural Services",Debit,30.00,alton towers park,05/04/2016
Nottinghamshire County Council,Personal Needs,"Children, Families & Cultural Services",Debit,39.23,amazon uk marketplace,06/04/2016
Nottinghamshire County Council,Personal Needs,"Children, Families & Cultural Services",Debit,22.00,www.planetbouncetr,05/04/2016
Nottinghamshire County Council,Grounds Maintenance,"Children, Families & Cultural Services",Debit,69.96,sgc,04/04/2016
Nottinghamshire County Council,Catering Consumables,"Adult Social Care, Health & Public Protection ",Debit,29.90,asda superstore,29/04/2016
Nottinghamshire County Council,Catering Consumables,"Adult Social Care, Health & Public Protection ",Debit,4.58,wilko retail limit,27/04/2016
Nottinghamshire County Council,Catering Consumables,"Adult Social Care, Health & Public Protection ",Debit,6.75,asda superstore,25/04/2016
Nottinghamshire County Council,Minor Works,"Adult Social Care, Health & Public Protection ",Debit,8.29,manor pharmacy,22/04/2016
Nottinghamshire County Council,Catering Consumables,"Adult Social Care, Health & Public Protection ",Debit,39.13,asda superstore,21/04/2016
Nottinghamshire County Council,Minor Works,"Adult Social Care, Health & Public Protection ",Debit,3.98,wickes,21/04/2016
Nottinghamshire County Council,Catering Consumables,"Adult Social Care, Health & Public Protection ",Debit,7.53,asda superstore,08/04/2016
Nottinghamshire County Council,Minor Works,"Adult Social Care, Health & Public Protection ",Debit,15.00,w boyes  co ltd arnol,08/04/2016
Nottinghamshire County Council,Minor Works,"Adult Social Care, Health & Public Protection ",Debit,15.00,[Redacted],07/04/2016
Nottinghamshire County Council,Personal Needs,"Adult Social Care, Health & Public Protection ",Debit,41.25,napa,07/04/2016
Nottinghamshire County Council,Minor Works,"Adult Social Care, Health & Public Protection ",Debit,15.20,wilko retail limit,05/04/2016
Nottinghamshire County Council,Catering Consumables,"Adult Social Care, Health & Public Protection ",Debit,38.32,asda superstore,05/04/2016
Nottinghamshire County Council,Provisions,"Children, Families & Cultural Services",Debit,168.17,tesco stores 3378,03/05/2016
Nottinghamshire County Council,Provisions,"Children, Families & Cultural Services",Debit,71.74,tesco stores 3378,04/04/2016
Nottinghamshire County Council,Other Fee's & Services,"Adult Social Care, Health & Public Protection ",Debit,3.26,amazon uk marketplace,07/04/2016
Nottinghamshire County Council,Other Fee's & Services,"Adult Social Care, Health & Public Protection ",Debit,11.67,amazon uk marketplace,06/04/2016
Nottinghamshire County Council,Activities & Support,"Children, Families & Cultural Services",Debit,1.30,wm morrison 048,29/04/2016
Nottinghamshire County Council,Specialist Equipment,"Adult Social Care, Health & Public Protection ",Debit,60.00,tesco pfs 4140,03/05/2016
Nottinghamshire County Council,Specialist Equipment,"Adult Social Care, Health & Public Protection ",Debit,14.99,currys,12/04/2016
Nottinghamshire County Council,Specialist Equipment,"Adult Social Care, Health & Public Protection ",Debit,81.98,currys superstore,11/04/2016
Nottinghamshire County Council,Cleaning Materials,"Adult Social Care, Health & Public Protection ",Debit,19.62,w m morrisons.com,02/05/2016
Nottinghamshire County Council,Provisions,"Adult Social Care, Health & Public Protection ",Debit,100.71,w m morrisons.com,02/05/2016
Nottinghamshire County Council,Provisions,"Adult Social Care, Health & Public Protection ",Debit,55.74,w m morrisons.com,28/04/2016
Nottinghamshire County Council,Provisions,"Adult Social Care, Health & Public Protection ",Debit,164.26,w m morrisons.com,25/04/2016
Nottinghamshire County Council,Provisions,"Adult Social Care, Health & Public Protection ",Debit,78.18,w m morrisons.com,21/04/2016
Nottinghamshire County Council,Provisions,"Adult Social Care, Health & Public Protection ",Debit,77.87,w m morrisons.com,18/04/2016
Nottinghamshire County Council,Provisions,"Adult Social Care, Health & Public Protection ",Debit,49.42,w m morrisons.com,14/04/2016
Nottinghamshire County Council,Provisions,"Adult Social Care, Health & Public Protection ",Debit,189.83,w m morrisons.com,12/04/2016
Nottinghamshire County Council,Provisions,"Adult Social Care, Health & Public Protection ",Debit,7.00,w m morrisons.com,09/04/2016
Nottinghamshire County Council,Provisions,"Adult Social Care, Health & Public Protection ",Debit,69.52,w m morrisons.com,07/04/2016
Nottinghamshire County Council,Provisions,"Adult Social Care, Health & Public Protection ",Debit,60.78,w m morrisons.com,06/04/2016
Nottinghamshire County Council,Fixtures & Fittings,"Adult Social Care, Health & Public Protection ",Debit,13.89,amazon uk marketplace,05/04/2016
Nottinghamshire County Council,Provisions,"Adult Social Care, Health & Public Protection ",Debit,107.22,w m morrisons.com,04/04/2016
Nottinghamshire County Council,Provisions,"Children, Families & Cultural Services",Debit,4.00,b and q 1098,25/04/2016
Nottinghamshire County Council,Provisions,"Children, Families & Cultural Services",Debit,4.00,b and q 1098,25/04/2016
Nottinghamshire County Council,Provisions,"Children, Families & Cultural Services",Debit,4.00,b and q 1098,25/04/2016
Nottinghamshire County Council,Provisions,"Children, Families & Cultural Services",Debit,2.00,b and q 1098,22/04/2016
Nottinghamshire County Council,Provisions,"Children, Families & Cultural Services",Debit,2.00,b and q 1098,22/04/2016
Nottinghamshire County Council,Provisions,"Children, Families & Cultural Services",Debit,2.00,b and q 1098,22/04/2016
Nottinghamshire County Council,Provisions,"Children, Families & Cultural Services",Debit,4.00,b and q 1098,22/04/2016
Nottinghamshire County Council,Provisions,"Children, Families & Cultural Services",Debit,4.00,b and q 1098,22/04/2016
Nottinghamshire County Council,Provisions,"Children, Families & Cultural Services",Debit,6.74,b and q 1098,22/04/2016
Nottinghamshire County Council,Provisions,"Children, Families & Cultural Services",Debit,6.74,b and q 1098,22/04/2016
Nottinghamshire County Council,Provisions,"Children, Families & Cultural Services",Debit,5.59,tesco store 3439,03/05/2016
Nottinghamshire County Council,Provisions,"Children, Families & Cultural Services",Debit,12.68,aldi,03/05/2016
Nottinghamshire County Council,Provisions,"Children, Families & Cultural Services",Debit,15.00,farmfoods- worksop,29/04/2016
Nottinghamshire County Council,Provisions,"Children, Families & Cultural Services",Debit,26.94,asda stores 4517,29/04/2016
Nottinghamshire County Council,Provisions,"Children, Families & Cultural Services",Debit,14.00,original factory s,29/04/2016
Nottinghamshire County Council,Provisions,"Children, Families & Cultural Services",Debit,11.08,asda stores 4517,28/04/2016
Nottinghamshire County Council,Provisions,"Children, Families & Cultural Services",Debit,44.16,tesco store 3439,25/04/2016
Nottinghamshire County Council,Provisions,"Children, Families & Cultural Services",Debit,19.78,wickes,25/04/2016
Nottinghamshire County Council,Provisions,"Children, Families & Cultural Services",Debit,42.00,original factory s,25/04/2016
Nottinghamshire County Council,Provisions,"Children, Families & Cultural Services",Debit,15.58,home bargains worksop,22/04/2016
Nottinghamshire County Council,Provisions,"Children, Families & Cultural Services",Debit,1.44,asda stores 4517,21/04/2016
Nottinghamshire County Council,Provisions,"Children, Families & Cultural Services",Debit,5.57,asda stores 4517,21/04/2016
Nottinghamshire County Council,Provisions,"Children, Families & Cultural Services",Debit,12.69,tesco store 3439,19/04/2016
Nottinghamshire County Council,Provisions,"Children, Families & Cultural Services",Debit,41.98,tesco store 3439,18/04/2016
Nottinghamshire County Council,Activities & Support,"Children, Families & Cultural Services",Debit,11.30,tesco stores 2995,22/04/2016
Nottinghamshire County Council,Activities & Support,"Children, Families & Cultural Services",Debit,12.41,tesco stores 5379,19/04/2016
Nottinghamshire County Council,Activities & Support,"Children, Families & Cultural Services",Debit,31.50,odeon,12/04/2016
Nottinghamshire County Council,Activities & Support,"Children, Families & Cultural Services",Debit,200.00,odeon,11/04/2016
Nottinghamshire County Council,Activities & Support,"Children, Families & Cultural Services",Debit,20.00,river maun recreat,11/04/2016
Nottinghamshire County Council,Activities & Support,"Children, Families & Cultural Services",Debit,8.52,mcdonalds,05/04/2016
Nottinghamshire County Council,Materials - External,Environment & Resources,Debit,141.60,acorn signs  engraving,03/05/2016
Nottinghamshire County Council,Materials - External,Environment & Resources,Debit,75.04,mitchells ironmongers,27/04/2016
Nottinghamshire County Council,Activities & Support,"Children, Families & Cultural Services",Debit,30.01,walcote service st,30/04/2016
Nottinghamshire County Council,Activities & Support,"Children, Families & Cultural Services",Debit,6.87,aldi,08/04/2016
Nottinghamshire County Council,Materials - External,Environment & Resources,Debit,250.49,jwl architectural iron,22/04/2016
Nottinghamshire County Council,Materials - External,Environment & Resources,Debit,3.94,tp retford,07/04/2016
Nottinghamshire County Council,Materials - External,Environment & Resources,Debit,3.94,tp retford,07/04/2016
Nottinghamshire County Council,Materials - External,Environment & Resources,Debit,5.99,tp retford,07/04/2016
Nottinghamshire County Council,Materials - External,Environment & Resources,Debit,6.77,tp retford,07/04/2016
Nottinghamshire County Council,Materials - External,Environment & Resources,Debit,13.01,tp retford,07/04/2016
Nottinghamshire County Council,Materials - External,Environment & Resources,Debit,31.97,howden joinery retford,06/04/2016
Nottinghamshire County Council,Materials - External,Environment & Resources,Debit,19.02,howden joinery retford,06/04/2016
Nottinghamshire County Council,Materials - External,Environment & Resources,Debit,3.00,b and q 1098,06/04/2016
Nottinghamshire County Council,Materials - External,Environment & Resources,Debit,13.00,b and q 1098,06/04/2016
Nottinghamshire County Council,Materials - External,Environment & Resources,Debit,20.96,jewson 3664,04/04/2016
Nottinghamshire County Council,Materials - External,Environment & Resources,Debit,83.66,jewson 3664,04/04/2016
Nottinghamshire County Council,Materials - External,Environment & Resources,Debit,6.54,jewson 3664,04/04/2016
Nottinghamshire County Council,Materials - External,Environment & Resources,Debit,6.65,jewson 3664,04/04/2016
Nottinghamshire County Council,Materials - External,Environment & Resources,Debit,40.10,jewson 3664,04/04/2016
Nottinghamshire County Council,Materials - External,Environment & Resources,Debit,2.76,jewson 3664,04/04/2016
Nottinghamshire County Council,Materials - External,Environment & Resources,Debit,13.68,jewson 3664,04/04/2016
Nottinghamshire County Council,Materials - External,Environment & Resources,Debit,17.03,jewson 3664,04/04/2016
Nottinghamshire County Council,Materials - External,Environment & Resources,Debit,27.29,jewson 3664,04/04/2016
Nottinghamshire County Council,Materials - External,Environment & Resources,Debit,9.31,jewson 3664,04/04/2016
Nottinghamshire County Council,Materials - External,Environment & Resources,Debit,10.08,tp retford,05/04/2016
Nottinghamshire County Council,Materials - External,Environment & Resources,Debit,12.79,tp retford,05/04/2016
Nottinghamshire County Council,Materials - External,Environment & Resources,Debit,15.02,tp retford,05/04/2016
Nottinghamshire County Council,Materials - External,Environment & Resources,Debit,8.45,handi centre bingham,26/04/2016
Nottinghamshire County Council,Materials - External,Environment & Resources,Debit,79.49,jwl architectural iron,21/04/2016
Nottinghamshire County Council,Materials - External,Environment & Resources,Debit,61.13,iz  nottingham suspended,20/04/2016
Nottinghamshire County Council,Materials - External,Environment & Resources,Debit,19.60,alltools ltd,18/04/2016
Nottinghamshire County Council,Materials - External,Environment & Resources,Debit,31.10,jwl architectural iron,18/04/2016
Nottinghamshire County Council,Materials - External,Environment & Resources,Debit,5.11,john a stephens,18/04/2016
Nottinghamshire County Council,Materials - External,Environment & Resources,Debit,13.18,john a stephens,18/04/2016
Nottinghamshire County Council,Materials - External,Environment & Resources,Debit,7.51,tp bulwell,27/04/2016
Nottinghamshire County Council,Materials - External,Environment & Resources,Debit,70.80,tp bulwell,27/04/2016
Nottinghamshire County Council,Materials - External,Environment & Resources,Debit,25.20,tp bulwell,27/04/2016
Nottinghamshire County Council,Materials - External,Environment & Resources,Debit,16.47,wood lane timber mcs ltd,29/04/2016
Nottinghamshire County Council,Materials - External,Environment & Resources,Debit,73.06,arco ltd,15/04/2016
Nottinghamshire County Council,Other Fee's & Services,Environment & Resources,Debit,55.00,dsa,28/04/2016
Nottinghamshire County Council,Other Fee's & Services,Environment & Resources,Credit,-115.00,dsa,22/04/2016
Nottinghamshire County Council,Other Fee's & Services,Environment & Resources,Credit,-55.00,dsa,21/04/2016
Nottinghamshire County Council,Other Fee's & Services,Environment & Resources,Debit,55.00,dsa,20/04/2016
Nottinghamshire County Council,Other Fee's & Services,Environment & Resources,Credit,-55.00,dsa,14/04/2016
Nottinghamshire County Council,Other Fee's & Services,Environment & Resources,Debit,115.00,dsa,08/04/2016
Nottinghamshire County Council,Other Fee's & Services,Environment & Resources,Credit,-115.00,dsa,07/04/2016
Nottinghamshire County Council,Personal Needs,"Children, Families & Cultural Services",Debit,56.20,forest electrical,05/04/2016
Nottinghamshire County Council,Office / General Equipment,"Children, Families & Cultural Services",Debit,188.98,amazon uk marketplace,05/04/2016
Nottinghamshire County Council,Minor Works,"Children, Families & Cultural Services",Debit,2.23,w m morrisons,03/05/2016
Nottinghamshire County Council,Minor Works,"Children, Families & Cultural Services",Debit,32.50,pp ,29/04/2016
Nottinghamshire County Council,Minor Works,"Children, Families & Cultural Services",Debit,28.50,pp ,27/04/2016
Nottinghamshire County Council,Minor Works,"Children, Families & Cultural Services",Debit,6.85,tesco stores 2702,25/04/2016
Nottinghamshire County Council,Minor Works,"Children, Families & Cultural Services",Debit,16.34,wickes bulwell,23/04/2016
Nottinghamshire County Council,Minor Works,"Children, Families & Cultural Services",Debit,4.29,wickes bulwell,22/04/2016
Nottinghamshire County Council,Minor Works,"Children, Families & Cultural Services",Debit,3.09,w m morrisons,21/04/2016
Nottinghamshire County Council,Minor Works,"Children, Families & Cultural Services",Debit,2.39,w m morrisons,19/04/2016
Nottinghamshire County Council,Minor Works,"Children, Families & Cultural Services",Debit,104.57,frank key (notts) ltd,14/04/2016
Nottinghamshire County Council,Minor Works,"Children, Families & Cultural Services",Debit,4.43,tesco stores 2702,13/04/2016
Nottinghamshire County Council,Minor Works,"Children, Families & Cultural Services",Debit,24.00,frank key (notts) ltd,12/04/2016
Nottinghamshire County Council,Minor Works,"Children, Families & Cultural Services",Debit,186.54,f martin ltd,12/04/2016
Nottinghamshire County Council,Minor Works,"Children, Families & Cultural Services",Debit,3.29,tesco stores 2702,11/04/2016
Nottinghamshire County Council,Minor Works,"Children, Families & Cultural Services",Debit,72.00,frank key (notts) ltd,07/04/2016
Nottinghamshire County Council,Minor Works,"Children, Families & Cultural Services",Debit,57.19,frank key (notts) ltd,07/04/2016
Nottinghamshire County Council,Minor Works,"Children, Families & Cultural Services",Debit,4.00,tesco stores 2702,07/04/2016
Nottinghamshire County Council,Minor Works,"Children, Families & Cultural Services",Debit,6.19,tesco stores 2702,07/04/2016
Nottinghamshire County Council,Minor Works,"Children, Families & Cultural Services",Debit,65.48,hilltop,06/04/2016
Nottinghamshire County Council,Minor Works,"Children, Families & Cultural Services",Debit,5.59,tesco stores 2702,05/04/2016
Nottinghamshire County Council,Clients - H & S Equipt,"Children, Families & Cultural Services",Debit,15.00,three-topup(web),06/04/2016
Nottinghamshire County Council,Activities & Support,"Children, Families & Cultural Services",Debit,3.00,ikea sacat,03/05/2016
Nottinghamshire County Council,Activities & Support,"Children, Families & Cultural Services",Debit,4.61,amazon uk retail,03/05/2016
Nottinghamshire County Council,Activities & Support,"Children, Families & Cultural Services",Debit,59.32,amazon uk marketplace,02/05/2016
Nottinghamshire County Council,Activities & Support,"Children, Families & Cultural Services",Debit,9.06,aldi,29/04/2016
Nottinghamshire County Council,Activities & Support,"Children, Families & Cultural Services",Debit,2.99,aldi,25/04/2016
Nottinghamshire County Council,Activities & Support,"Children, Families & Cultural Services",Debit,4.90,amazon uk marketplace,22/04/2016
Nottinghamshire County Council,Activities & Support,"Children, Families & Cultural Services",Debit,3.00,amazon uk marketplace,22/04/2016
Nottinghamshire County Council,Activities & Support,"Children, Families & Cultural Services",Debit,1.49,amazon uk marketplace,24/04/2016
Nottinghamshire County Council,Activities & Support,"Children, Families & Cultural Services",Debit,1.99,amazon uk marketplace,24/04/2016
Nottinghamshire County Council,Activities & Support,"Children, Families & Cultural Services",Debit,5.00,amazon uk marketplace,22/04/2016
Nottinghamshire County Council,Activities & Support,"Children, Families & Cultural Services",Debit,20.28,amazon uk marketplace,22/04/2016
Nottinghamshire County Council,Activities & Support,"Children, Families & Cultural Services",Debit,1.30,amazon uk marketplace,23/04/2016
Nottinghamshire County Council,Activities & Support,"Children, Families & Cultural Services",Debit,7.14,amazon uk marketplace,23/04/2016
Nottinghamshire County Council,Activities & Support,"Children, Families & Cultural Services",Debit,4.78,amazon uk marketplace,24/04/2016
Nottinghamshire County Council,Activities & Support,"Children, Families & Cultural Services",Debit,56.31,amazon uk marketplace,24/04/2016
Nottinghamshire County Council,Activities & Support,"Children, Families & Cultural Services",Debit,8.73,newark,14/04/2016
Nottinghamshire County Council,Activities & Support,"Children, Families & Cultural Services",Debit,17.90,tesco stores (5378),13/04/2016
Nottinghamshire County Council,Activities & Support,"Children, Families & Cultural Services",Debit,38.00,asda store ston in as,05/04/2016
Nottinghamshire County Council,Activities & Support,"Children, Families & Cultural Services",Debit,38.43,asda superstore 04030,30/04/2016
Nottinghamshire County Council,Activities & Support,"Children, Families & Cultural Services",Debit,100.65,asda superstore 04030,20/04/2016
Nottinghamshire County Council,Activities & Support,"Children, Families & Cultural Services",Debit,116.84,amazon uk retail,01/05/2016
Nottinghamshire County Council,Activities & Support,"Children, Families & Cultural Services",Debit,3.59,amazon uk marketplace,29/04/2016
Nottinghamshire County Council,Activities & Support,"Children, Families & Cultural Services",Debit,83.00,imperial london hotels,27/04/2016
Nottinghamshire County Council,Activities & Support,"Children, Families & Cultural Services",Debit,83.00,imperial london hotels,27/04/2016
Nottinghamshire County Council,Activities & Support,"Children, Families & Cultural Services",Debit,13.00,amazon uk marketplace,20/04/2016
Nottinghamshire County Council,Activities & Support,"Children, Families & Cultural Services",Debit,6.76,fast key services limi,15/04/2016
Nottinghamshire County Council,Activities & Support,"Children, Families & Cultural Services",Debit,166.00,imperial london hotels,13/04/2016
Nottinghamshire County Council,Activities & Support,"Children, Families & Cultural Services",Debit,38.85,amazon uk retail,09/04/2016
Nottinghamshire County Council,Activities & Support,"Children, Families & Cultural Services",Debit,50.75,www.,05/04/2016
Nottinghamshire County Council,Postages,"Children, Families & Cultural Services",Debit,16.34,post office counter,29/04/2016
Nottinghamshire County Council,Postages,"Children, Families & Cultural Services",Debit,7.61,the post office,29/04/2016
Nottinghamshire County Council,Postages,"Children, Families & Cultural Services",Debit,29.02,post office counter,14/04/2016
Nottinghamshire County Council,Postages,"Children, Families & Cultural Services",Debit,12.98,post office counter,11/04/2016
Nottinghamshire County Council,Postages,"Children, Families & Cultural Services",Debit,1.85,post office counter,08/04/2016
Nottinghamshire County Council,Provisions,"Children, Families & Cultural Services",Debit,52.18,sainsburys smkt,01/05/2016
Nottinghamshire County Council,Provisions,"Children, Families & Cultural Services",Debit,39.20,sainsburys smkt,26/04/2016
Nottinghamshire County Council,Provisions,"Children, Families & Cultural Services",Debit,13.10,sainsburys smkt,22/04/2016
Nottinghamshire County Council,Provisions,"Children, Families & Cultural Services",Debit,3.55,sainsburys s/mkts,24/04/2016
Nottinghamshire County Council,Provisions,"Children, Families & Cultural Services",Debit,48.60,sainsburys smkt,18/04/2016
Nottinghamshire County Council,Provisions,"Children, Families & Cultural Services",Debit,17.60,sainsburys smkt,13/04/2016
Nottinghamshire County Council,Provisions,"Children, Families & Cultural Services",Debit,36.55,sainsburys smkt,09/04/2016
Nottinghamshire County Council,Provisions,"Children, Families & Cultural Services",Debit,12.05,asda superstore,08/04/2016
Nottinghamshire County Council,Provisions,"Children, Families & Cultural Services",Debit,5.50,asda superstore,09/04/2016
Nottinghamshire County Council,Materials - External,Environment & Resources,Debit,342.94,www.certsure.com,21/04/2016
Nottinghamshire County Council,Transport Asset Management Plan,Environment & Resources,Debit,7.99,kindle unlimited,23/04/2016
Nottinghamshire County Council,Transport Asset Management Plan,Environment & Resources,Debit,3.99,amazon uk marketplace,20/04/2016
Nottinghamshire County Council,Personal Needs,"Children, Families & Cultural Services",Debit,6.00,tesco stores 5437,22/04/2016
Nottinghamshire County Council,Holidays,"Children, Families & Cultural Services",Debit,15.20,wan hong ju,12/04/2016
Nottinghamshire County Council,Holidays,"Children, Families & Cultural Services",Debit,14.00,big kidz karting,12/04/2016
Nottinghamshire County Council,Holidays,"Children, Families & Cultural Services",Debit,28.00,big kidz karting,12/04/2016
Nottinghamshire County Council,Office / General Equipment,"Adult Social Care, Health & Public Protection ",Debit,2.96,asda superstore 04261,03/05/2016
Nottinghamshire County Council,Office / General Equipment,"Adult Social Care, Health & Public Protection ",Debit,11.99,the range,27/04/2016
Nottinghamshire County Council,Office / General Equipment,"Adult Social Care, Health & Public Protection ",Debit,36.31,southwell service,22/04/2016
Nottinghamshire County Council,Office / General Equipment,"Adult Social Care, Health & Public Protection ",Debit,289.99,screwfix direct,18/04/2016
Nottinghamshire County Council,Office / General Equipment,"Adult Social Care, Health & Public Protection ",Debit,2.00,tesco store 3439,13/04/2016
Nottinghamshire County Council,Office / General Equipment,"Adult Social Care, Health & Public Protection ",Credit,-79.00,amazon prime,13/04/2016
Nottinghamshire County Council,Office / General Equipment,"Adult Social Care, Health & Public Protection ",Debit,3.20,co-op group 017111,06/04/2016
Nottinghamshire County Council,Office / General Equipment,"Adult Social Care, Health & Public Protection ",Debit,45.98,wickes,04/04/2016
Nottinghamshire County Council,Office / General Equipment,"Adult Social Care, Health & Public Protection ",Debit,53.38,southwell service,04/04/2016
Nottinghamshire County Council,Building Maintenance,Environment & Resources,Debit,47.45,fcc electrical whs ltd,15/04/2016
Nottinghamshire County Council,Personal Needs,"Children, Families & Cultural Services",Debit,1.99,b  m retail,29/04/2016
Nottinghamshire County Council,Personal Needs,"Children, Families & Cultural Services",Debit,14.80,sainsburys s/mkts,29/04/2016
Nottinghamshire County Council,Personal Needs,"Children, Families & Cultural Services",Debit,8.50,woodall north starbuck,29/04/2016
Nottinghamshire County Council,Personal Needs,"Children, Families & Cultural Services",Debit,2.00,sainsburys s/mkts,28/04/2016
Nottinghamshire County Council,Personal Needs,"Children, Families & Cultural Services",Debit,5.86,mcdonalds,28/04/2016
Nottinghamshire County Council,Provisions,"Children, Families & Cultural Services",Debit,1.50,tesco pfs 5538,28/04/2016
Nottinghamshire County Council,Provisions,"Children, Families & Cultural Services",Debit,6.30,sainsburys s/mkts,28/04/2016
Nottinghamshire County Council,Personal Needs,"Children, Families & Cultural Services",Debit,1.25,sainsburys s/mkts,23/04/2016
Nottinghamshire County Council,Clothing/Shoes/Uniforms,"Children, Families & Cultural Services",Debit,7.15,sainsburys s/mkts,20/04/2016
Nottinghamshire County Council,Personal Needs,"Children, Families & Cultural Services",Debit,2.60,sainsburys s/mkts,18/04/2016
Nottinghamshire County Council,Personal Needs,"Children, Families & Cultural Services",Debit,6.95,sainsburys s/mkts,18/04/2016
Nottinghamshire County Council,Provisions,"Children, Families & Cultural Services",Debit,6.22,tesco stores 5379,18/04/2016
Nottinghamshire County Council,Fixtures & Fittings,"Children, Families & Cultural Services",Debit,8.05,tesco stores 5437,17/04/2016
Nottinghamshire County Council,Provisions,"Children, Families & Cultural Services",Debit,1.79,tesco stores 5437,17/04/2016
Nottinghamshire County Council,Clothing/Shoes/Uniforms,"Children, Families & Cultural Services",Debit,38.00,primark,08/04/2016
Nottinghamshire County Council,Clothing/Shoes/Uniforms,"Children, Families & Cultural Services",Debit,10.00,primark,08/04/2016
Nottinghamshire County Council,Clothing/Shoes/Uniforms,"Children, Families & Cultural Services",Debit,32.40,primark,08/04/2016
Nottinghamshire County Council,Clothing/Shoes/Uniforms,"Children, Families & Cultural Services",Debit,20.04,select - south shields,08/04/2016
Nottinghamshire County Council,Personal Needs,"Children, Families & Cultural Services",Debit,7.80,newfield ice cream par,04/04/2016
Nottinghamshire County Council,Specialist Equipment,Place ,Debit,10.99,amazon uk marketplace,03/05/2016
Nottinghamshire County Council,Staff Training,"Children, Families & Cultural Services",Debit,462.00,www.pmgltd.co.uk,26/04/2016
Nottinghamshire County Council,Office / General Equipment,"Children, Families & Cultural Services",Debit,9.52,fast key services limi,12/04/2016
Nottinghamshire County Council,Cleaning & Domestic Equipment,"Adult Social Care, Health & Public Protection ",Debit,97.90,bissell direct,14/04/2016
Nottinghamshire County Council,Furniture,"Children, Families & Cultural Services",Debit,112.98,amazon uk marketplace,26/04/2016
Nottinghamshire County Council,Clothing/Shoes/Uniforms,"Children, Families & Cultural Services",Debit,49.95,www.prosportinternatio,25/04/2016
Nottinghamshire County Council,Provisions,"Children, Families & Cultural Services",Debit,132.16,owen taylor  sons,21/04/2016
Nottinghamshire County Council,Materials - External,Environment & Resources,Debit,87.34,tubes fittings,28/04/2016
Nottinghamshire County Council,Materials - External,Environment & Resources,Debit,5.77,tubes fittings,27/04/2016
Nottinghamshire County Council,Materials - External,Environment & Resources,Debit,19.14,plumb center tw,27/04/2016
Nottinghamshire County Council,Materials - External,Environment & Resources,Debit,77.21,plumb center tw,27/04/2016
Nottinghamshire County Council,Materials - External,Environment & Resources,Debit,25.79,tubes fittings,20/04/2016
Nottinghamshire County Council,Materials - External,Environment & Resources,Debit,233.56,tubes fittings,19/04/2016
Nottinghamshire County Council,Materials - External,Environment & Resources,Debit,84.48,tubes fittings,19/04/2016
Nottinghamshire County Council,Materials - External,Environment & Resources,Debit,71.34,tubes fittings,15/04/2016
Nottinghamshire County Council,Materials - External,Environment & Resources,Debit,2.66,plumb center tw,13/04/2016
Nottinghamshire County Council,Materials - External,Environment & Resources,Debit,12.67,plumb center tw,13/04/2016
Nottinghamshire County Council,Materials - External,Environment & Resources,Debit,122.50,plumb center tw,13/04/2016
Nottinghamshire County Council,Materials - External,Environment & Resources,Debit,230.82,tubes fittings,05/04/2016
Nottinghamshire County Council,Provisions,"Children, Families & Cultural Services",Debit,14.78,mcdonalds,21/04/2016
Nottinghamshire County Council,Personal Needs,"Children, Families & Cultural Services",Debit,22.90,www.tenpin.co.uk,10/04/2016
Nottinghamshire County Council,Personal Needs,"Children, Families & Cultural Services",Debit,4.39,tesco stores 2995,07/04/2016
Nottinghamshire County Council,Office / General Equipment,Environment & Resources,Debit,41.00,amazon uk retail,27/04/2016
Nottinghamshire County Council,Office / General Equipment,Environment & Resources,Debit,126.11,amazon uk retail,27/04/2016
Nottinghamshire County Council,Office / General Equipment,Environment & Resources,Debit,7.99,amazon uk marketplace,27/04/2016
Nottinghamshire County Council,Office / General Equipment,Environment & Resources,Debit,154.00,[Redacted],12/04/2016
Nottinghamshire County Council,Office / General Equipment,Environment & Resources,Debit,29.95,argos ltd,05/04/2016
Nottinghamshire County Council,Aftercare - Equipment,"Children, Families & Cultural Services",Debit,18.99,argos retail group,19/04/2016
Nottinghamshire County Council,Aftercare - Equipment,"Children, Families & Cultural Services",Debit,144.97,argos retail group,19/04/2016
Nottinghamshire County Council,Building Maintenance Servicing,Environment & Resources,Debit,5.00,b and q 1310,21/04/2016
Nottinghamshire County Council,Building Maintenance Servicing,Environment & Resources,Debit,5.42,b and q 1310,21/04/2016
Nottinghamshire County Council,Building Maintenance Servicing,Environment & Resources,Debit,8.62,b and q 1310,21/04/2016
Nottinghamshire County Council,Building Maintenance Servicing,Environment & Resources,Debit,9.32,b and q 1310,21/04/2016
Nottinghamshire County Council,Building Maintenance Servicing,Environment & Resources,Debit,13.00,b and q 1310,21/04/2016
Nottinghamshire County Council,Building Maintenance Servicing,Environment & Resources,Debit,34.80,carpet tile,26/04/2016
Nottinghamshire County Council,Building Maintenance Servicing,Environment & Resources,Debit,96.00,carpet tile,05/04/2016
Nottinghamshire County Council,Other Fee's & Services,Environment & Resources,Debit,10.00,www.gov.uk,27/04/2016
Nottinghamshire County Council,Other Fee's & Services,Environment & Resources,Debit,35.00,www.moneyclaim.gov,13/04/2016
Nottinghamshire County Council,Other Fee's & Services,Environment & Resources,Debit,35.00,www.moneyclaim.gov,13/04/2016
Nottinghamshire County Council,Other Fee's & Services,Environment & Resources,Debit,35.00,www.moneyclaim.gov,12/04/2016
Nottinghamshire County Council,Other Fee's & Services,Environment & Resources,Debit,60.00,www.moneyclaim.gov,12/04/2016
Nottinghamshire County Council,Other Fee's & Services,Environment & Resources,Debit,10.00,www.gov.uk,06/04/2016
Nottinghamshire County Council,Legal Fees,"Children, Families & Cultural Services",Debit,300.00,tallents,26/04/2016
Nottinghamshire County Council,Other Fee's & Services,"Children, Families & Cultural Services",Debit,26.52,newcastle cc inet,26/04/2016
Nottinghamshire County Council,Other Fee's & Services,"Children, Families & Cultural Services",Debit,23.00,lincolnshire cc card p,25/04/2016
Nottinghamshire County Council,Other Fee's & Services,"Children, Families & Cultural Services",Credit,-23.40,gro hm passport office,20/04/2016
Nottinghamshire County Council,Other Fee's & Services,"Children, Families & Cultural Services",Debit,46.80,gro hm passport office,20/04/2016
Nottinghamshire County Council,Other Fee's & Services,"Children, Families & Cultural Services",Debit,46.80,gro hm passport office,19/04/2016
Nottinghamshire County Council,Other Fee's & Services,"Children, Families & Cultural Services",Debit,111.50,post office counter,14/04/2016
Nottinghamshire County Council,Legal Fees,"Children, Families & Cultural Services",Debit,300.00,rothera dowson,13/04/2016
Nottinghamshire County Council,Legal Fees,"Children, Families & Cultural Services",Debit,300.00,gladstone solicitors,13/04/2016
Nottinghamshire County Council,Other Fee's & Services,"Children, Families & Cultural Services",Debit,111.50,post office counter,05/04/2016
Nottinghamshire County Council,Other Fee's & Services,"Children, Families & Cultural Services",Debit,9.95,www.findmypast.co.uk,05/04/2016
Nottinghamshire County Council,Activities & Support,"Adult Social Care, Health & Public Protection ",Debit,117.23,asda home shopping,21/04/2016
Nottinghamshire County Council,Activities & Support,"Adult Social Care, Health & Public Protection ",Debit,5.00,asda home shopping,20/04/2016
Nottinghamshire County Council,Activities & Support,"Adult Social Care, Health & Public Protection ",Debit,111.35,asda home shopping,16/04/2016
Nottinghamshire County Council,Provisions,"Children, Families & Cultural Services",Debit,2.54,one stop 2819,03/05/2016
Nottinghamshire County Council,Provisions,"Children, Families & Cultural Services",Debit,7.96,aldi,29/04/2016
Nottinghamshire County Council,Provisions,"Children, Families & Cultural Services",Debit,20.00,batting 4 6 online cri,27/04/2016
Nottinghamshire County Council,Provisions,"Children, Families & Cultural Services",Debit,2.99,home bargains (retford,27/04/2016
Nottinghamshire County Council,Provisions,"Children, Families & Cultural Services",Debit,1.50,iceland,27/04/2016
Nottinghamshire County Council,Provisions,"Children, Families & Cultural Services",Debit,5.07,aldi,22/04/2016
Nottinghamshire County Council,Provisions,"Children, Families & Cultural Services",Debit,6.00,the works,21/04/2016
Nottinghamshire County Council,Provisions,"Children, Families & Cultural Services",Debit,14.00,the works,21/04/2016
Nottinghamshire County Council,Provisions,"Children, Families & Cultural Services",Debit,2.25,farmfoods- worksop,20/04/2016
Nottinghamshire County Council,Provisions,"Children, Families & Cultural Services",Debit,18.94,savers health  beauty,21/04/2016
Nottinghamshire County Council,Provisions,"Children, Families & Cultural Services",Debit,6.00,the works,08/04/2016
Nottinghamshire County Council,Activities & Support,"Adult Social Care, Health & Public Protection ",Debit,34.92,greenhousepeople.c,03/05/2016
Nottinghamshire County Council,Activities & Support,"Adult Social Care, Health & Public Protection ",Debit,16.99,argos retail group,12/04/2016
Nottinghamshire County Council,Activities & Support,"Adult Social Care, Health & Public Protection ",Debit,15.98,argos retail group,12/04/2016
Nottinghamshire County Council,Activities & Support,"Adult Social Care, Health & Public Protection ",Debit,119.99,argos retail group,08/04/2016
Nottinghamshire County Council,Activities & Support,"Adult Social Care, Health & Public Protection ",Debit,59.98,amazon uk marketplace,07/04/2016
Nottinghamshire County Council,Activities & Support,"Adult Social Care, Health & Public Protection ",Debit,54.94,auk agora business pub,05/04/2016
Nottinghamshire County Council,Fuel - Petrol,"Adult Social Care, Health & Public Protection ",Debit,34.27,tesco pay at pump 4140,28/04/2016
Nottinghamshire County Council,Fuel - Petrol,"Adult Social Care, Health & Public Protection ",Debit,37.27,tesco pay at pump 4140,19/04/2016
Nottinghamshire County Council,Office / General Equipment,"Adult Social Care, Health & Public Protection ",Debit,63.25,amazon uk marketplace,19/04/2016
Nottinghamshire County Council,Postages,"Adult Social Care, Health & Public Protection ",Debit,2.00,www.neopost.co.uk,18/04/2016
Nottinghamshire County Council,Postages,"Adult Social Care, Health & Public Protection ",Debit,100.00,www.neopost.co.uk,18/04/2016
Nottinghamshire County Council,Postages,"Adult Social Care, Health & Public Protection ",Debit,38.94,post office counter,14/04/2016
Nottinghamshire County Council,Postages,"Adult Social Care, Health & Public Protection ",Debit,4.15,post office counter,06/04/2016
Nottinghamshire County Council,Stationery,"Adult Social Care, Health & Public Protection ",Debit,17.34,wsale office supp,04/04/2016
Nottinghamshire County Council,Teaching Equipment,"Children, Families & Cultural Services",Debit,33.35,screwfix direct,27/04/2016
Nottinghamshire County Council,Teaching Equipment,"Children, Families & Cultural Services",Debit,14.66,amazon uk marketplace,20/04/2016
Nottinghamshire County Council,Teaching Equipment,"Children, Families & Cultural Services",Debit,12.23,amazon uk marketplace,19/04/2016
Nottinghamshire County Council,Teaching Equipment,"Children, Families & Cultural Services",Debit,8.50,[Redacted],10/04/2016
Nottinghamshire County Council,Teaching Equipment,"Children, Families & Cultural Services",Debit,16.65,www.saddler.co.uk,07/04/2016
Nottinghamshire County Council,Activities & Support,"Children, Families & Cultural Services",Debit,2.50,asda stores 4475,28/04/2016
Nottinghamshire County Council,Activities & Support,"Children, Families & Cultural Services",Debit,1.75,sherwood pines cafe lt,15/04/2016
Nottinghamshire County Council,Activities & Support,"Children, Families & Cultural Services",Debit,32.00,sherwood pines cycles,15/04/2016
Nottinghamshire County Council,Activities & Support,"Children, Families & Cultural Services",Debit,7.15,sherwood pines cafe lt,12/04/2016
Nottinghamshire County Council,Cleaning Materials,"Adult Social Care, Health & Public Protection ",Debit,29.90,cherry lane retail,23/04/2016
Nottinghamshire County Council,Materials - External,Environment & Resources,Debit,52.55,tp worksop,19/04/2016
Nottinghamshire County Council,Materials - External,Environment & Resources,Credit,-46.10,tp worksop,19/04/2016
Nottinghamshire County Council,Materials - External,Environment & Resources,Debit,151.20,tp worksop,07/04/2016
Nottinghamshire County Council,Materials - External,Environment & Resources,Credit,-151.20,tp worksop,07/04/2016
Nottinghamshire County Council,Materials - External,Environment & Resources,Debit,151.20,tp worksop,07/04/2016
Nottinghamshire County Council,Legal Fees,"Policy, Planning & Corporate Services",Debit,"1,090.00",www.justice.gov.uk,26/04/2016
Nottinghamshire County Council,Legal Fees,"Policy, Planning & Corporate Services",Debit,110.00,www.justice.gov.uk,20/04/2016
Nottinghamshire County Council,Legal Fees,"Policy, Planning & Corporate Services",Debit,139.86,amazon uk marketplace,15/04/2016
Nottinghamshire County Council,Legal Fees,"Policy, Planning & Corporate Services",Debit,52.20,gotocitrix.com,17/04/2016
Nottinghamshire County Council,Legal Fees,"Policy, Planning & Corporate Services",Debit,11.00,nottingham city co,11/04/2016
Nottinghamshire County Council,Legal Fees,"Policy, Planning & Corporate Services",Debit,11.00,nottingham city co,11/04/2016
Nottinghamshire County Council,Legal Fees,"Policy, Planning & Corporate Services",Debit,19.98,amazon uk marketplace,08/04/2016
Nottinghamshire County Council,Legal Fees,"Policy, Planning & Corporate Services",Debit,23.00,peterborough direct,08/04/2016
Nottinghamshire County Council,Minor Works,"Children, Families & Cultural Services",Debit,144.95,www.toppersailboats.co,22/04/2016
Nottinghamshire County Council,Activities & Support,"Children, Families & Cultural Services",Debit,9.10,sainsburys s/mkts,03/05/2016
Nottinghamshire County Council,Activities & Support,"Children, Families & Cultural Services",Debit,12.22,co-op group 011261,28/04/2016
Nottinghamshire County Council,Activities & Support,"Children, Families & Cultural Services",Debit,17.98,b  m retail,27/04/2016
Nottinghamshire County Council,Activities & Support,"Children, Families & Cultural Services",Debit,10.50,b  m retail,27/04/2016
Nottinghamshire County Council,Activities & Support,"Children, Families & Cultural Services",Debit,10.96,b  m retail,26/04/2016
Nottinghamshire County Council,Activities & Support,"Children, Families & Cultural Services",Debit,2.00,w boyes  co ltd arnol,20/04/2016
Nottinghamshire County Council,Activities & Support,"Children, Families & Cultural Services",Debit,4.96,oxfam f1515,20/04/2016
Nottinghamshire County Council,Activities & Support,"Children, Families & Cultural Services",Debit,31.99,b  m retail,19/04/2016
Nottinghamshire County Council,Activities & Support,"Children, Families & Cultural Services",Debit,0.89,co-op group 011261,18/04/2016
Nottinghamshire County Council,Other Fee's & Services,"Adult Social Care, Health & Public Protection ",Debit,265.20,parkway secure storage,22/04/2016
Nottinghamshire County Council,Clothing And Footwear,"Adult Social Care, Health & Public Protection ",Debit,17.43,amazon uk retail,20/04/2016
Nottinghamshire County Council,Building Maintenance,Environment & Resources,Debit,330.78,jwl architectural iron,27/04/2016
Nottinghamshire County Council,Building Maintenance,Environment & Resources,Debit,26.54,jwl architectural iron,26/04/2016
Nottinghamshire County Council,Building Maintenance,Environment & Resources,Debit,33.00,jwl architectural iron,20/04/2016
Nottinghamshire County Council,Office / General Equipment,"Policy, Planning & Corporate Services",Debit,145.00,www.cieem.net,03/05/2016
Nottinghamshire County Council,Office / General Equipment,"Policy, Planning & Corporate Services",Debit,5.68,amazon uk marketplace,27/04/2016
Nottinghamshire County Council,Office / General Equipment,"Policy, Planning & Corporate Services",Debit,25.45,manuscript pen co.,21/04/2016
Nottinghamshire County Council,Rail / Tube Fares,"Policy, Planning & Corporate Services",Debit,99.55,trainline,18/04/2016
Nottinghamshire County Council,Office / General Equipment,"Policy, Planning & Corporate Services",Debit,20.94,blurb inc.,18/04/2016
Nottinghamshire County Council,Activities & Support,"Children, Families & Cultural Services",Debit,3.60,asda stores,29/04/2016
Nottinghamshire County Council,Activities & Support,"Children, Families & Cultural Services",Debit,21.15,tesco stores 5329,28/04/2016
Nottinghamshire County Council,Activities & Support,"Children, Families & Cultural Services",Debit,3.65,tesco stores 5329,21/04/2016
Nottinghamshire County Council,Activities & Support,"Children, Families & Cultural Services",Debit,145.50,tvlicensing.co.uk,18/04/2016
Nottinghamshire County Council,Activities & Support,"Children, Families & Cultural Services",Debit,6.00,tesco stores 5329,18/04/2016
Nottinghamshire County Council,Activities & Support,"Children, Families & Cultural Services",Debit,92.29,booker limited nottingha,18/04/2016
Nottinghamshire County Council,Office / General Equipment,"Children, Families & Cultural Services",Debit,24.99,amazon uk marketplace,29/04/2016
Nottinghamshire County Council,Office / General Equipment,"Children, Families & Cultural Services",Debit,18.50,gro hm passport office,26/04/2016
Nottinghamshire County Council,Office / General Equipment,"Children, Families & Cultural Services",Debit,18.50,gro hm passport office,26/04/2016
Nottinghamshire County Council,Specialist Equipment,Place ,Debit,172.72,s jeyes  son (midland,14/04/2016
Nottinghamshire County Council,Specialist Equipment,Place ,Debit,32.98,currys,07/04/2016
Nottinghamshire County Council,Activities & Support,"Children, Families & Cultural Services",Debit,17.23,the range,15/04/2016
Nottinghamshire County Council,Activities & Support,"Children, Families & Cultural Services",Debit,5.28,tesco stores 5437,15/04/2016
Nottinghamshire County Council,Activities & Support,"Children, Families & Cultural Services",Debit,5.55,sherwood pines cafe lt,13/04/2016
Nottinghamshire County Council,Activities & Support,"Children, Families & Cultural Services",Debit,14.57,mcdonalds,13/04/2016
Nottinghamshire County Council,Activities & Support,"Children, Families & Cultural Services",Debit,15.01,wm morrisons,04/04/2016
Nottinghamshire County Council,Activities & Support,"Children, Families & Cultural Services",Debit,2.92,aldi,21/04/2016
Nottinghamshire County Council,Activities & Support,"Children, Families & Cultural Services",Debit,11.76,farmfoods- worksop,14/04/2016
Nottinghamshire County Council,Activities & Support,"Children, Families & Cultural Services",Debit,24.88,mcdonalds,12/04/2016
Nottinghamshire County Council,Activities & Support,"Children, Families & Cultural Services",Debit,78.00,megazone,12/04/2016
Nottinghamshire County Council,Activities & Support,"Children, Families & Cultural Services",Debit,50.00,lockwell hill activ,12/04/2016
Nottinghamshire County Council,Activities & Support,"Children, Families & Cultural Services",Debit,16.31,farmfoods- worksop,07/04/2016
Nottinghamshire County Council,Activities & Support,"Children, Families & Cultural Services",Debit,12.87,lidl uk,29/04/2016
Nottinghamshire County Council,Activities & Support,"Children, Families & Cultural Services",Debit,11.50,sainsburys spmkts,28/04/2016
Nottinghamshire County Council,Activities & Support,"Children, Families & Cultural Services",Debit,6.65,sainsburys spmkts,26/04/2016
Nottinghamshire County Council,Activities & Support,"Children, Families & Cultural Services",Debit,8.35,tesco stores 6205,22/04/2016
Nottinghamshire County Council,Activities & Support,"Children, Families & Cultural Services",Debit,5.20,sainsburys spmkts,19/04/2016
Nottinghamshire County Council,Legal Fees,"Children, Families & Cultural Services",Debit,215.00,county court,29/04/2016
Nottinghamshire County Council,Add Allowances - University / New School,"Children, Families & Cultural Services",Debit,83.94,argos retail group,22/04/2016
Nottinghamshire County Council,Other Fee's & Services,"Children, Families & Cultural Services",Credit,-23.40,gro hm passport office,21/04/2016
Nottinghamshire County Council,Other Fee's & Services,"Children, Families & Cultural Services",Debit,23.40,gro hm passport office,21/04/2016
Nottinghamshire County Council,Other Fee's & Services,"Children, Families & Cultural Services",Debit,17.00,doncaster mbc,21/04/2016
Nottinghamshire County Council,Rail / Tube Fares,"Children, Families & Cultural Services",Debit,100.50,virgintrainsec servcs,08/04/2016
Nottinghamshire County Council,Software Purchases,Resources ,Debit,67.13,toggl technology ltd,27/04/2016
Nottinghamshire County Council,Software Maintenance,Resources ,Debit,964.76,dnh godaddy.com europe,26/04/2016
Nottinghamshire County Council,Software Purchases,Resources ,Debit,75.55,pure chat inc,23/04/2016
Nottinghamshire County Council,Books - General,Resources ,Debit,52.78,amazon uk retail,19/04/2016
Nottinghamshire County Council,Subscriptions,Resources ,Debit,414.00,b2b quote ltd,15/04/2016
Nottinghamshire County Council,Software Purchases,Resources ,Debit,107.86,bc.basecamp ,12/04/2016
Nottinghamshire County Council,Activities & Support,"Children, Families & Cultural Services",Debit,36.00,sherwood pines cycles,22/04/2016
Nottinghamshire County Council,Activities & Support,"Children, Families & Cultural Services",Debit,5.90,sherwood pines cafe lt,22/04/2016
Nottinghamshire County Council,Activities & Support,"Children, Families & Cultural Services",Debit,6.85,sherwood pines cafe lt,19/04/2016
Nottinghamshire County Council,Activities & Support,"Children, Families & Cultural Services",Debit,36.00,sherwood pines cycles,19/04/2016
Nottinghamshire County Council,Activities & Support,"Children, Families & Cultural Services",Debit,20.00,tesco pfs 5538,19/04/2016
Nottinghamshire County Council,Activities & Support,"Children, Families & Cultural Services",Debit,12.65,[Redacted],08/04/2016
Nottinghamshire County Council,Activities & Support,"Children, Families & Cultural Services",Debit,16.77,tesco stores 5437,09/04/2016
Nottinghamshire County Council,Activities & Support,"Children, Families & Cultural Services",Debit,79.50,nottingham climbing ce,05/04/2016
Nottinghamshire County Council,Training Fees,"Adult Social Care, Health & Public Protection ",Debit,9.84,b and q 1261,27/04/2016
Nottinghamshire County Council,Training Fees,"Adult Social Care, Health & Public Protection ",Debit,17.27,b and q 1261,27/04/2016
Nottinghamshire County Council,Training Fees,"Adult Social Care, Health & Public Protection ",Debit,17.61,b and q 1261,27/04/2016
Nottinghamshire County Council,Training Fees,"Adult Social Care, Health & Public Protection ",Debit,12.68,b and q 1261,27/04/2016
Nottinghamshire County Council,Training Fees,"Adult Social Care, Health & Public Protection ",Debit,9.79,city plumbing supp,06/04/2016
Nottinghamshire County Council,Training Fees,"Adult Social Care, Health & Public Protection ",Debit,49.99,brambles pleasures,18/04/2016
Nottinghamshire County Council,Training Fees,"Adult Social Care, Health & Public Protection ",Debit,168.75,ikea,14/04/2016
Nottinghamshire County Council,Clients - H & S Equipt,"Children, Families & Cultural Services",Debit,65.44,argos ltd,21/04/2016
Nottinghamshire County Council,Clients - H & S Equipt,"Children, Families & Cultural Services",Debit,27.45,amazon uk retail,20/04/2016
Nottinghamshire County Council,Clients - H & S Equipt,"Children, Families & Cultural Services",Debit,11.25,homemade cafe,12/04/2016
Nottinghamshire County Council,Clients - H & S Equipt,"Children, Families & Cultural Services",Debit,40.00,asda superstore,12/04/2016
Nottinghamshire County Council,Office / General Equipment,"Policy, Planning & Corporate Services",Debit,26.00,times newspapers ltd,22/04/2016
Nottinghamshire County Council,Aftercare - Equipment,"Children, Families & Cultural Services",Debit,158.94,argos retail group,25/04/2016
Nottinghamshire County Council,Aftercare - Equipment,"Children, Families & Cultural Services",Debit,65.92,argos direct,18/04/2016
Nottinghamshire County Council,Aftercare - Equipment,"Children, Families & Cultural Services",Debit,149.00,argos retail group,18/04/2016
Nottinghamshire County Council,Aftercare - Equipment,"Children, Families & Cultural Services",Debit,36.94,argos retail group,19/04/2016
Nottinghamshire County Council,Aftercare - Equipment,"Children, Families & Cultural Services",Debit,4.99,argos retail group,18/04/2016
Nottinghamshire County Council,Provisions,"Children, Families & Cultural Services",Debit,9.25,gro hm passport office,19/04/2016
Nottinghamshire County Council,Provisions,"Adult Social Care, Health & Public Protection ",Debit,17.98,amazon uk retail,21/04/2016
Nottinghamshire County Council,Provisions,"Adult Social Care, Health & Public Protection ",Debit,7.99,amazon uk marketplace,18/04/2016
Nottinghamshire County Council,Provisions,"Adult Social Care, Health & Public Protection ",Debit,62.70,amazon uk marketplace,18/04/2016
Nottinghamshire County Council,Provisions,"Adult Social Care, Health & Public Protection ",Debit,26.97,amazon uk retail,15/04/2016
Nottinghamshire County Council,Provisions,"Adult Social Care, Health & Public Protection ",Debit,101.94,amazon uk retail,15/04/2016
Nottinghamshire County Council,Provisions,"Adult Social Care, Health & Public Protection ",Debit,47.94,amazon uk retail,15/04/2016
Nottinghamshire County Council,Grounds Maintenance,"Children, Families & Cultural Services",Debit,19.05,tesco stores 5437,10/04/2016
Nottinghamshire County Council,Office / General Equipment,"Children, Families & Cultural Services",Debit,52.89,tesco stores 5437,10/04/2016
Nottinghamshire County Council,Office / General Equipment,"Children, Families & Cultural Services",Debit,44.74,tesco stores 5437,07/04/2016
Nottinghamshire County Council,Office / General Equipment,"Children, Families & Cultural Services",Debit,16.77,bm retail ltd,07/04/2016
Nottinghamshire County Council,TV Licences,"Adult Social Care, Health & Public Protection ",Debit,145.50,tvlicensing.co.uk,20/04/2016
Nottinghamshire County Council,Cleaning Materials,"Adult Social Care, Health & Public Protection ",Debit,198.31,jangro (leicester) ltd,13/04/2016
Nottinghamshire County Council,Personal Needs,"Children, Families & Cultural Services",Debit,20.00,odeon/bookit,30/04/2016
Nottinghamshire County Council,Clothing/Shoes/Uniforms,"Children, Families & Cultural Services",Debit,42.05,j d sports 621,01/05/2016
Nottinghamshire County Council,Holidays,"Children, Families & Cultural Services",Debit,22.00,the deep,17/04/2016
Nottinghamshire County Council,Provisions,"Children, Families & Cultural Services",Debit,13.80,the deep,17/04/2016
Nottinghamshire County Council,Personal Needs,"Children, Families & Cultural Services",Debit,20.00,asda f/stn  04261,16/04/2016
Nottinghamshire County Council,Holidays,"Children, Families & Cultural Services",Debit,17.70,alton towers,14/04/2016
Nottinghamshire County Council,Personal Needs,"Children, Families & Cultural Services",Debit,10.00,picsolve intrnational lt,14/04/2016
Nottinghamshire County Council,Personal Needs,"Children, Families & Cultural Services",Debit,4.50,alton towers,14/04/2016
Nottinghamshire County Council,Personal Needs,"Children, Families & Cultural Services",Debit,65.00,blastcomms ltd,14/04/2016
Nottinghamshire County Council,Provisions,"Children, Families & Cultural Services",Debit,62.71,aldi,11/04/2016
Nottinghamshire County Council,Personal Needs,"Children, Families & Cultural Services",Debit,11.50,waterworld 2000 limited,06/04/2016
Nottinghamshire County Council,Personal Needs,"Children, Families & Cultural Services",Debit,23.48,waterworld 2000 limited,06/04/2016
Nottinghamshire County Council,Teaching Equipment,"Children, Families & Cultural Services",Debit,234.90,the makaton charit,15/04/2016
Nottinghamshire County Council,Teaching Equipment,"Children, Families & Cultural Services",Debit,234.90,the makaton charit,13/04/2016
Nottinghamshire County Council,Teaching Equipment,"Children, Families & Cultural Services",Debit,234.90,the makaton charit,13/04/2016
Nottinghamshire County Council,Teaching Equipment,"Children, Families & Cultural Services",Debit,146.94,the makaton charit,13/04/2016
Nottinghamshire County Council,Teaching Equipment,"Children, Families & Cultural Services",Debit,90.00,www.,08/04/2016
Nottinghamshire County Council,Road Tax,Environment & Resources,Debit,188.28,t cards direct,05/04/2016
Nottinghamshire County Council,MOT Tests,Environment & Resources,Debit,"3,000.00",dvsa,03/05/2016
Nottinghamshire County Council,Materials - External,Environment & Resources,Debit,20.16,www.prosol.co.uk,28/04/2016
Nottinghamshire County Council,Materials - External,Environment & Resources,Debit,"2,331.05",edstrom of sweden ltd,26/04/2016
Nottinghamshire County Council,Materials - External,Environment & Resources,Debit,"1,664.79",edstrom of sweden ltd,26/04/2016
Nottinghamshire County Council,Materials - External,Environment & Resources,Debit,"2,331.05",edstrom of sweden ltd,26/04/2016
Nottinghamshire County Council,Materials - External,Environment & Resources,Debit,"1,664.79",edstrom of sweden ltd,26/04/2016
Nottinghamshire County Council,Materials - External,Environment & Resources,Debit,496.87,judson signs ltd,28/04/2016
Nottinghamshire County Council,MOT Tests,Environment & Resources,Debit,205.00,dvsa mot comp 2,27/04/2016
Nottinghamshire County Council,Road Tax,Environment & Resources,Debit,232.50,dvla vehicle tax,26/04/2016
Nottinghamshire County Council,Road Tax,Environment & Resources,Debit,232.50,dvla vehicle tax,26/04/2016
Nottinghamshire County Council,MOT Tests,Environment & Resources,Debit,"4,000.00",dvsa,26/04/2016
Nottinghamshire County Council,Materials - External,Environment & Resources,Debit,202.49,www.rhinoroofracks.com,26/04/2016
Nottinghamshire County Council,MOT Tests,Environment & Resources,Debit,"7,000.00",dvsa,21/04/2016
Nottinghamshire County Council,Road Tax,Environment & Resources,Debit,232.50,dvla vehicle tax,13/04/2016
Nottinghamshire County Council,MOT Tests,Environment & Resources,Debit,"4,000.00",dvsa,12/04/2016
Nottinghamshire County Council,Road Tax,Environment & Resources,Debit,202.50,dvla vehicle tax,07/04/2016
Nottinghamshire County Council,Road Tax,Environment & Resources,Debit,232.50,dvla vehicle tax,07/04/2016
Nottinghamshire County Council,Road Tax,Environment & Resources,Debit,167.50,dvla vehicle tax,07/04/2016
Nottinghamshire County Council,Materials - External,Environment & Resources,Debit,99.00,al-vac uk ltd,07/04/2016
Nottinghamshire County Council,Materials - External,Environment & Resources,Debit,53.93,vfs (southampton),07/04/2016
Nottinghamshire County Council,Road Tax,Environment & Resources,Debit,232.50,dvla vehicle tax,07/04/2016
Nottinghamshire County Council,Road Tax,Environment & Resources,Debit,232.50,dvla vehicle tax,07/04/2016
Nottinghamshire County Council,Road Tax,Environment & Resources,Debit,222.50,dvla vehicle tax,07/04/2016
Nottinghamshire County Council,Road Tax,Environment & Resources,Debit,202.50,dvla vehicle tax,07/04/2016
Nottinghamshire County Council,MOT Tests,Environment & Resources,Debit,"3,000.00",dvsa,05/04/2016
Nottinghamshire County Council,Materials - External,Environment & Resources,Debit,652.50,dvla vehicle tax,04/04/2016
Nottinghamshire County Council,Activities & Support,"Children, Families & Cultural Services",Debit,16.72,asda stores 4475,25/04/2016
Nottinghamshire County Council,Activities & Support,"Children, Families & Cultural Services",Debit,6.35,tesco store 2551,25/04/2016
Nottinghamshire County Council,Activities & Support,"Children, Families & Cultural Services",Debit,13.50,tesco stores 5437,03/05/2016
Nottinghamshire County Council,Activities & Support,"Children, Families & Cultural Services",Debit,14.40,cmt (uk) ltd - glasgow,27/04/2016
Nottinghamshire County Council,Activities & Support,"Children, Families & Cultural Services",Debit,16.84,mcdonalds,27/04/2016
Nottinghamshire County Council,Activities & Support,"Children, Families & Cultural Services",Debit,12.00,ncp limited,27/04/2016
Nottinghamshire County Council,Activities & Support,"Children, Families & Cultural Services",Debit,18.57,waitrose 619,27/04/2016
Nottinghamshire County Council,Activities & Support,"Children, Families & Cultural Services",Debit,12.00,wp-the virtual col,20/04/2016
Nottinghamshire County Council,Activities & Support,"Children, Families & Cultural Services",Debit,19.99,www.dominos.co.uk,06/04/2016
Nottinghamshire County Council,Activities & Support,"Children, Families & Cultural Services",Debit,9.25,co-op group 010431,05/04/2016
Nottinghamshire County Council,Activities & Support,"Children, Families & Cultural Services",Debit,34.98,www.dominos.co.uk,05/04/2016
Nottinghamshire County Council,Provisions,"Children, Families & Cultural Services",Debit,26.78,asda superstore 04261,03/05/2016
Nottinghamshire County Council,Provisions,"Children, Families & Cultural Services",Debit,5.32,wm morrisons plc,28/04/2016
Nottinghamshire County Council,Provisions,"Children, Families & Cultural Services",Debit,6.98,b  m retail,28/04/2016
Nottinghamshire County Council,Provisions,"Children, Families & Cultural Services",Debit,31.09,asda superstore 04261,26/04/2016
Nottinghamshire County Council,Provisions,"Children, Families & Cultural Services",Debit,29.35,asda superstore 04261,26/04/2016
Nottinghamshire County Council,Provisions,"Children, Families & Cultural Services",Debit,4.00,asda superstore 04261,26/04/2016
Nottinghamshire County Council,Provisions,"Children, Families & Cultural Services",Debit,13.30,tesco stores 5437,21/04/2016
Nottinghamshire County Council,Provisions,"Children, Families & Cultural Services",Debit,19.00,asda store ston in as,20/04/2016
Nottinghamshire County Council,Provisions,"Children, Families & Cultural Services",Debit,5.30,heron foods ltd,19/04/2016
Nottinghamshire County Council,Office / General Equipment,Environment & Resources,Debit,59.66,amazon uk marketplace,13/04/2016
Nottinghamshire County Council,Activities & Support,"Adult Social Care, Health & Public Protection ",Debit,130.00,premier inn44521025,18/04/2016
Nottinghamshire County Council,Activities & Support,"Adult Social Care, Health & Public Protection ",Debit,46.80,gro hm passport office,18/04/2016
Nottinghamshire County Council,Activities & Support,"Adult Social Care, Health & Public Protection ",Debit,226.44,premier inn44521025,15/04/2016
Nottinghamshire County Council,Activities & Support,"Adult Social Care, Health & Public Protection ",Debit,177.96,premier inn44521025,13/04/2016
Nottinghamshire County Council,Activities & Support,"Adult Social Care, Health & Public Protection ",Debit,92.98,premier inn44521025,11/04/2016
Nottinghamshire County Council,Activities & Support,"Adult Social Care, Health & Public Protection ",Debit,37.94,amazon uk retail,06/04/2016
Nottinghamshire County Council,Activities & Support,"Adult Social Care, Health & Public Protection ",Debit,41.80,amazon uk retail,06/04/2016
Nottinghamshire County Council,Activities & Support,"Adult Social Care, Health & Public Protection ",Debit,229.99,argos retail group,05/04/2016
Nottinghamshire County Council,Provisions,"Children, Families & Cultural Services",Debit,1.00,wm morrisons plc,21/04/2016
Nottinghamshire County Council,Provisions,"Children, Families & Cultural Services",Debit,6.97,home bargains doncaste,20/04/2016
Nottinghamshire County Council,Refuse Collection / Disposal,Environment & Resources,Debit,714.48,p nwkshwd dc,21/04/2016
Nottinghamshire County Council,Hardware Maintenance,Environment & Resources,Debit,14.12,amazon uk retail,06/04/2016
Nottinghamshire County Council,Building Maintenance,Environment & Resources,Debit,4.50,bss group plc,29/04/2016
Nottinghamshire County Council,Building Maintenance,Environment & Resources,Debit,7.75,bss group plc,29/04/2016
Nottinghamshire County Council,Building Maintenance,Environment & Resources,Debit,8.99,bss group plc,29/04/2016
Nottinghamshire County Council,Building Maintenance,Environment & Resources,Debit,22.44,bss group plc,29/04/2016
Nottinghamshire County Council,Building Maintenance,Environment & Resources,Debit,44.28,bss group plc,29/04/2016
Nottinghamshire County Council,Building Maintenance,Environment & Resources,Debit,1.46,plumb center ts,28/04/2016
Nottinghamshire County Council,Building Maintenance,Environment & Resources,Debit,5.08,plumb center ts,28/04/2016
Nottinghamshire County Council,Building Maintenance,Environment & Resources,Debit,2.05,bss group plc,28/04/2016
Nottinghamshire County Council,Building Maintenance,Environment & Resources,Debit,7.20,bss group plc,28/04/2016
Nottinghamshire County Council,Building Maintenance,Environment & Resources,Debit,7.79,bss group plc,28/04/2016
Nottinghamshire County Council,Building Maintenance,Environment & Resources,Debit,12.84,bss group plc,28/04/2016
Nottinghamshire County Council,Building Maintenance,Environment & Resources,Debit,16.18,willbond plumbing centre,27/04/2016
Nottinghamshire County Council,Building Maintenance,Environment & Resources,Debit,30.24,willbond plumbing centre,27/04/2016
Nottinghamshire County Council,Building Maintenance,Environment & Resources,Debit,24.73,willbond plumbing centre,27/04/2016
Nottinghamshire County Council,Building Maintenance,Environment & Resources,Debit,102.38,willbond plumbing centre,26/04/2016
Nottinghamshire County Council,Building Maintenance,Environment & Resources,Debit,221.22,willbond plumbing centre,26/04/2016
Nottinghamshire County Council,Building Maintenance,Environment & Resources,Debit,26.58,willbond plumbing centre,15/04/2016
Nottinghamshire County Council,Building Maintenance,Environment & Resources,Debit,45.75,willbond plumbing centre,14/04/2016
Nottinghamshire County Council,Building Maintenance,Environment & Resources,Debit,105.79,john a stephens,13/04/2016
Nottinghamshire County Council,Building Maintenance,Environment & Resources,Debit,68.25,willbond plumbing centre,12/04/2016
Nottinghamshire County Council,Materials - External,Environment & Resources,Debit,6.72,city electrical fa,06/04/2016
Nottinghamshire County Council,Materials - External,Environment & Resources,Debit,2.36,city electrical fa,06/04/2016
Nottinghamshire County Council,Materials - External,Environment & Resources,Debit,28.48,edmundson elec-dummy,04/04/2016
Nottinghamshire County Council,Personal Needs,"Children, Families & Cultural Services",Debit,4.45,odeon,23/04/2016
Nottinghamshire County Council,Personal Needs,"Children, Families & Cultural Services",Debit,9.00,odeon,23/04/2016
Nottinghamshire County Council,Personal Needs,"Children, Families & Cultural Services",Debit,13.00,dukeries leisure centr,20/04/2016
Nottinghamshire County Council,Provisions,"Children, Families & Cultural Services",Debit,3.00,tesco stores 2995,20/04/2016
Nottinghamshire County Council,Provisions,"Children, Families & Cultural Services",Debit,21.30,yates,12/04/2016
Nottinghamshire County Council,Provisions,"Children, Families & Cultural Services",Debit,29.98,tesco stores 5379,11/04/2016
Nottinghamshire County Council,Activities & Support,"Children, Families & Cultural Services",Debit,6.08,w m morrison plc,14/04/2016
Nottinghamshire County Council,Activities & Support,"Children, Families & Cultural Services",Debit,3.73,co-op group 070325,12/04/2016
Nottinghamshire County Council,Activities & Support,"Children, Families & Cultural Services",Debit,18.92,w m morrison plc,04/04/2016
Nottinghamshire County Council,Office / General Equipment,"Children, Families & Cultural Services",Debit,0.05,wilko retail limit,27/04/2016
Nottinghamshire County Council,Office / General Equipment,"Children, Families & Cultural Services",Debit,6.80,wilko retail limit,27/04/2016
Nottinghamshire County Council,Office / General Equipment,"Children, Families & Cultural Services",Debit,15.65,mcdonalds,15/04/2016
Nottinghamshire County Council,Office / General Equipment,"Children, Families & Cultural Services",Debit,11.60,bibbys beach bar,14/04/2016
Nottinghamshire County Council,Fuel - Diesel,"Adult Social Care, Health & Public Protection ",Debit,41.70,southwell service,28/04/2016
Nottinghamshire County Council,Provisions,"Adult Social Care, Health & Public Protection ",Debit,14.28,tesco stores 5379,27/04/2016
Nottinghamshire County Council,Provisions,"Adult Social Care, Health & Public Protection ",Debit,8.35,tesco stores 5379,14/04/2016
Nottinghamshire County Council,Fuel - Diesel,"Adult Social Care, Health & Public Protection ",Debit,34.97,southwell service,11/04/2016
Nottinghamshire County Council,Provisions,"Adult Social Care, Health & Public Protection ",Debit,9.41,tesco stores 5379,07/04/2016
Nottinghamshire County Council,Materials - External,Environment & Resources,Debit,43.00,edmundson electrical,18/04/2016
Nottinghamshire County Council,Materials - External,Environment & Resources,Debit,280.87,edmundson electrical,04/04/2016
Nottinghamshire County Council,Provisions,"Adult Social Care, Health & Public Protection ",Debit,15.60,amazon uk marketplace,20/04/2016
Nottinghamshire County Council,Provisions,"Adult Social Care, Health & Public Protection ",Debit,21.39,amazon uk marketplace,20/04/2016
Nottinghamshire County Council,Activities & Support,"Children, Families & Cultural Services",Debit,39.23,wm morrison 067,29/04/2016
Nottinghamshire County Council,Activities & Support,"Children, Families & Cultural Services",Debit,5.73,farmfoods- carlton,27/04/2016
Nottinghamshire County Council,Activities & Support,"Children, Families & Cultural Services",Debit,11.99,decathlon,25/04/2016
Nottinghamshire County Council,Activities & Support,"Children, Families & Cultural Services",Debit,14.49,b  m retail,19/04/2016
Nottinghamshire County Council,Activities & Support,"Children, Families & Cultural Services",Debit,54.80,farmfoods- carlton,18/04/2016
Nottinghamshire County Council,Activities & Support,"Children, Families & Cultural Services",Debit,145.50,tvlicensing.co.uk,18/04/2016
Nottinghamshire County Council,Cleaning & Domestic Equipment,"Adult Social Care, Health & Public Protection ",Debit,143.97,amazon uk marketplace,29/04/2016
Nottinghamshire County Council,Catering Consumables,"Adult Social Care, Health & Public Protection ",Debit,159.40,amazon uk marketplace,28/04/2016
Nottinghamshire County Council,Catering Consumables,"Adult Social Care, Health & Public Protection ",Debit,269.10,amazon uk retail,28/04/2016
Nottinghamshire County Council,Catering Consumables,"Adult Social Care, Health & Public Protection ",Debit,66.57,amazon uk marketplace,28/04/2016
Nottinghamshire County Council,Catering Consumables,"Adult Social Care, Health & Public Protection ",Debit,62.72,amazon uk marketplace,28/04/2016
Nottinghamshire County Council,Cleaning & Domestic Equipment,"Adult Social Care, Health & Public Protection ",Debit,89.99,amazon uk marketplace,27/04/2016
Nottinghamshire County Council,Cleaning & Domestic Equipment,"Adult Social Care, Health & Public Protection ",Debit,89.99,amazon uk marketplace,27/04/2016
Nottinghamshire County Council,Cleaning & Domestic Equipment,"Adult Social Care, Health & Public Protection ",Debit,89.99,amazon uk marketplace,27/04/2016
Nottinghamshire County Council,Cleaning & Domestic Equipment,"Adult Social Care, Health & Public Protection ",Debit,89.99,amazon uk marketplace,06/04/2016
Nottinghamshire County Council,Furniture,"Adult Social Care, Health & Public Protection ",Debit,9.00,b and q 1039,20/04/2016
Nottinghamshire County Council,Furniture,"Adult Social Care, Health & Public Protection ",Debit,9.00,b and q 1039,20/04/2016
Nottinghamshire County Council,Furniture,"Adult Social Care, Health & Public Protection ",Debit,9.00,b and q 1039,20/04/2016
Nottinghamshire County Council,Furniture,"Adult Social Care, Health & Public Protection ",Debit,12.00,b and q 1039,20/04/2016
Nottinghamshire County Council,Furniture,"Adult Social Care, Health & Public Protection ",Debit,12.00,b and q 1039,20/04/2016
Nottinghamshire County Council,Furniture,"Adult Social Care, Health & Public Protection ",Debit,12.00,b and q 1039,20/04/2016
Nottinghamshire County Council,Furniture,"Adult Social Care, Health & Public Protection ",Debit,24.00,b and q 1039,20/04/2016
Nottinghamshire County Council,Fuel - Petrol,"Adult Social Care, Health & Public Protection ",Debit,31.48,w m morrison,20/04/2016
Nottinghamshire County Council,Personal Needs,"Adult Social Care, Health & Public Protection ",Debit,26.95,w boyes  co ltd eastw,19/04/2016
Nottinghamshire County Council,Stationery,"Adult Social Care, Health & Public Protection ",Debit,0.00,w boyes  co ltd eastw,19/04/2016
Nottinghamshire County Council,Activities & Support,"Children, Families & Cultural Services",Debit,4.07,aldi,29/04/2016
Nottinghamshire County Council,Activities & Support,"Children, Families & Cultural Services",Debit,4.00,wilko retail limit,01/05/2016
Nottinghamshire County Council,Activities & Support,"Children, Families & Cultural Services",Debit,20.00,batting 4 6 online cri,27/04/2016
Nottinghamshire County Council,Activities & Support,"Children, Families & Cultural Services",Debit,3.98,iceland,26/04/2016
Nottinghamshire County Council,Activities & Support,"Children, Families & Cultural Services",Debit,8.00,iceland,23/04/2016
Nottinghamshire County Council,Activities & Support,"Children, Families & Cultural Services",Debit,13.99,wilko retail limit,20/04/2016
Nottinghamshire County Council,Activities & Support,"Children, Families & Cultural Services",Debit,4.00,iceland,19/04/2016
Nottinghamshire County Council,Activities & Support,"Children, Families & Cultural Services",Debit,6.32,tesco stores 5437,03/05/2016
Nottinghamshire County Council,Activities & Support,"Children, Families & Cultural Services",Debit,6.62,tesco stores 5437,27/04/2016
Nottinghamshire County Council,Activities & Support,"Children, Families & Cultural Services",Debit,18.64,tesco stores 5437,25/04/2016
Nottinghamshire County Council,Activities & Support,"Children, Families & Cultural Services",Debit,8.00,tesco stores 5437,20/04/2016
Nottinghamshire County Council,Activities & Support,"Children, Families & Cultural Services",Debit,16.05,tesco stores 5437,19/04/2016
Nottinghamshire County Council,Activities & Support,"Children, Families & Cultural Services",Debit,9.59,tesco stores 5437,18/04/2016
Nottinghamshire County Council,Activities & Support,"Children, Families & Cultural Services",Debit,1.25,tesco stores 5437,14/04/2016
Nottinghamshire County Council,Activities & Support,"Children, Families & Cultural Services",Debit,41.03,tesco stores 5437,14/04/2016
Nottinghamshire County Council,Activities & Support,"Children, Families & Cultural Services",Debit,46.56,tesco stores 5437,12/04/2016
Nottinghamshire County Council,Activities & Support,"Children, Families & Cultural Services",Debit,5.50,tesco stores 5437,12/04/2016
Nottinghamshire County Council,Clothing/Shoes/Uniforms,"Children, Families & Cultural Services",Debit,65.00,j d sports 621,03/05/2016
Nottinghamshire County Council,Personal Needs,"Children, Families & Cultural Services",Debit,3.50,tesco stores 5437,29/04/2016
Nottinghamshire County Council,Provisions,"Children, Families & Cultural Services",Debit,59.22,tesco stores 5437,29/04/2016
Nottinghamshire County Council,Personal Needs,"Children, Families & Cultural Services",Debit,2.50,tesco stores 5379,25/04/2016
Nottinghamshire County Council,Provisions,"Children, Families & Cultural Services",Debit,57.76,tesco stores 5379,25/04/2016
Nottinghamshire County Council,Provisions,"Children, Families & Cultural Services",Debit,1.00,tesco pfs 5538,24/04/2016
Nottinghamshire County Council,Provisions,"Children, Families & Cultural Services",Debit,60.95,sainsburys s/mkts,18/04/2016
Nottinghamshire County Council,Personal Needs,"Children, Families & Cultural Services",Debit,7.50,odeon,06/04/2016
Nottinghamshire County Council,Personal Needs,"Children, Families & Cultural Services",Debit,4.05,sainsburys s/mkts,06/04/2016
Nottinghamshire County Council,Provisions,"Children, Families & Cultural Services",Debit,12.76,tesco stores 5379,06/04/2016
Nottinghamshire County Council,Provisions,"Children, Families & Cultural Services",Debit,12.25,sainsburys s/mkts,04/04/2016
Nottinghamshire County Council,Materials - External,Environment & Resources,Debit,12.34,b and q 1310,28/04/2016
Nottinghamshire County Council,Materials - External,Environment & Resources,Debit,6.02,john a stephens,28/04/2016
Nottinghamshire County Council,Materials - External,Environment & Resources,Debit,11.87,b and q 1310,22/04/2016
Nottinghamshire County Council,Materials - External,Environment & Resources,Debit,11.87,b and q 1310,22/04/2016
Nottinghamshire County Council,Materials - External,Environment & Resources,Debit,4.50,spar,23/04/2016
Nottinghamshire County Council,Materials - External,Environment & Resources,Debit,28.80,trent hire centre,23/04/2016
Nottinghamshire County Council,Materials - External,Environment & Resources,Debit,19.47,john a stephens,11/04/2016
Nottinghamshire County Council,Stationery,"Adult Social Care, Health & Public Protection ",Debit,3.70,broadmarsh car park up,21/04/2016
Nottinghamshire County Council,Stationery,"Adult Social Care, Health & Public Protection ",Debit,27.04,amazon uk retail,18/04/2016
Nottinghamshire County Council,Materials - External,Environment & Resources,Debit,63.70,arco ltd,27/04/2016
Nottinghamshire County Council,Materials - External,Environment & Resources,Debit,41.95,jwl architectural iron,04/04/2016
Nottinghamshire County Council,Materials - External,Place,Debit,14.99,city electrical fa,29/04/2016
Nottinghamshire County Council,Materials - External,Place,Debit,26.92,city electrical fa,29/04/2016
Nottinghamshire County Council,Materials - External,Place,Debit,51.90,city electrical fa,29/04/2016
Nottinghamshire County Council,Materials - External,Place,Debit,109.07,city electrical fa,29/04/2016
Nottinghamshire County Council,Materials - External,Place,Debit,3.00,city electrical fa,29/04/2016
Nottinghamshire County Council,Materials - External,Place,Debit,3.42,city electrical fa,29/04/2016
Nottinghamshire County Council,Materials - External,Place,Debit,3.92,city electrical fa,29/04/2016
Nottinghamshire County Council,Materials - External,Place,Debit,4.54,city electrical fa,29/04/2016
Nottinghamshire County Council,Materials - External,Place,Debit,5.40,city electrical fa,29/04/2016
Nottinghamshire County Council,Materials - External,Place,Debit,5.71,city electrical fa,29/04/2016
Nottinghamshire County Council,Materials - External,Place,Debit,14.52,city electrical fa,29/04/2016
Nottinghamshire County Council,Materials - External,Place,Debit,23.12,city electrical fa,29/04/2016
Nottinghamshire County Council,Materials - External,Place,Debit,9.00,city electrical fa,29/04/2016
Nottinghamshire County Council,Materials - External,Place,Debit,54.00,city electrical fa,29/04/2016
Nottinghamshire County Council,Materials - External,Place,Debit,54.00,city electrical fa,29/04/2016
Nottinghamshire County Council,Specialist Equipment,Place,Debit,0.89,city electrical fa,29/04/2016
Nottinghamshire County Council,Specialist Equipment,Place,Debit,1.20,city electrical fa,29/04/2016
Nottinghamshire County Council,Specialist Equipment,Place,Debit,2.10,city electrical fa,29/04/2016
Nottinghamshire County Council,Specialist Equipment,Place,Debit,2.66,city electrical fa,29/04/2016
Nottinghamshire County Council,Specialist Equipment,Place,Debit,4.98,city electrical fa,29/04/2016
Nottinghamshire County Council,Specialist Equipment,Place,Debit,6.56,city electrical fa,29/04/2016
Nottinghamshire County Council,Specialist Equipment,Place,Debit,9.22,city electrical fa,29/04/2016
Nottinghamshire County Council,Materials - External,Place,Debit,2.21,city electrical fa,29/04/2016
Nottinghamshire County Council,Materials - External,Place,Debit,9.60,city electrical fa,29/04/2016
Nottinghamshire County Council,Materials - External,Place,Debit,31.20,city electrical fa,29/04/2016
Nottinghamshire County Council,Materials - External,Place,Debit,31.20,city electrical fa,29/04/2016
Nottinghamshire County Council,Materials - External,Place,Debit,94.80,city electrical fa,29/04/2016
Nottinghamshire County Council,Materials - External,Place,Debit,71.99,edmundson electrical,05/04/2016
Nottinghamshire County Council,Materials - External,Place,Debit,168.00,www.certsure.com,28/04/2016
Nottinghamshire County Council,Materials - External,Place,Debit,168.00,www.certsure.com,28/04/2016
Nottinghamshire County Council,Materials - External,Place,Debit,80.72,yesss electrical,29/04/2016
Nottinghamshire County Council,Materials - External,Place,Debit,1.16,amazon uk retail,25/04/2016
Nottinghamshire County Council,Materials - External,Place,Debit,31.44,amazon uk retail,23/04/2016
Nottinghamshire County Council,Materials - External,Place,Debit,22.36,amazon uk marketplace,11/04/2016
Nottinghamshire County Council,Materials - External,Place,Debit,7.98,amazon uk marketplace,08/04/2016
Nottinghamshire County Council,Other Fee's & Services,"Children, Families & Cultural Services",Debit,9.25,gro hm passport office,21/04/2016
Nottinghamshire County Council,Legal Fees,Resources ,Debit,155.00,hmcts - stoke cc,29/04/2016
Nottinghamshire County Council,Legal Fees,Resources ,Debit,"2,055.00",www.justice.gov.uk,27/04/2016
Nottinghamshire County Council,Legal Fees,Resources ,Debit,"2,055.00",www.justice.gov.uk,27/04/2016
Nottinghamshire County Council,Legal Fees,Resources ,Debit,"2,055.00",www.justice.gov.uk,27/04/2016
Nottinghamshire County Council,Legal Fees,Resources ,Debit,"2,055.00",www.justice.gov.uk,27/04/2016
Nottinghamshire County Council,Legal Fees,Resources ,Debit,215.00,www.justice.gov.uk,27/04/2016
Nottinghamshire County Council,Legal Fees,Resources ,Debit,"2,055.00",www.justice.gov.uk,27/04/2016
Nottinghamshire County Council,Legal Fees,Resources ,Debit,"2,055.00",www.justice.gov.uk,27/04/2016
Nottinghamshire County Council,Legal Fees,Resources ,Debit,"2,055.00",www.justice.gov.uk,27/04/2016
Nottinghamshire County Council,Legal Fees,Resources ,Debit,215.00,www.justice.gov.uk,27/04/2016
Nottinghamshire County Council,Legal Fees,Resources ,Debit,455.00,www.justice.gov.uk,22/04/2016
Nottinghamshire County Council,Legal Fees,Resources ,Debit,90.00,ee  t-mobile,19/04/2016
Nottinghamshire County Council,Legal Fees,Resources ,Debit,355.00,www.justice.gov.uk,12/04/2016
Nottinghamshire County Council,Legal Fees,Resources ,Debit,455.00,www.justice.gov.uk,11/04/2016
Nottinghamshire County Council,Legal Fees,Resources ,Debit,4.00,companies house,06/04/2016
Nottinghamshire County Council,Legal Fees,Resources ,Debit,455.00,www.justice.gov.uk,06/04/2016
Nottinghamshire County Council,Legal Fees,Resources ,Debit,155.00,www.justice.gov.uk,05/04/2016
Nottinghamshire County Council,Legal Fees,Resources ,Debit,"2,055.00",www.justice.gov.uk,05/04/2016
Nottinghamshire County Council,Legal Fees,Resources ,Debit,"2,055.00",www.justice.gov.uk,05/04/2016
Nottinghamshire County Council,Legal Fees,Resources ,Debit,"2,055.00",www.justice.gov.uk,05/04/2016
Nottinghamshire County Council,Legal Fees,Resources ,Debit,"2,055.00",www.justice.gov.uk,05/04/2016
Nottinghamshire County Council,Legal Fees,Resources ,Debit,"2,055.00",www.justice.gov.uk,05/04/2016
Nottinghamshire County Council,Legal Fees,Resources ,Debit,"2,055.00",www.justice.gov.uk,05/04/2016
Nottinghamshire County Council,Legal Fees,Resources ,Debit,154.80,legalease ltd,04/04/2016
Nottinghamshire County Council,Office / General Equipment,"Policy, Planning & Corporate Services",Debit,13.50,www.rainbowchalk.com,27/04/2016
Nottinghamshire County Council,Provisions,"Children, Families & Cultural Services",Debit,10.00,iceland,30/04/2016
Nottinghamshire County Council,Provisions,"Children, Families & Cultural Services",Debit,30.68,music scene,30/04/2016
Nottinghamshire County Council,Provisions,"Children, Families & Cultural Services",Debit,8.98,bm retail ltd,28/04/2016
Nottinghamshire County Council,Provisions,"Children, Families & Cultural Services",Debit,57.47,music scene,28/04/2016
Nottinghamshire County Council,Provisions,"Children, Families & Cultural Services",Debit,7.65,heron foods ltd,22/04/2016
Nottinghamshire County Council,Provisions,"Children, Families & Cultural Services",Debit,25.96,maplin mansfield ng18,21/04/2016
Nottinghamshire County Council,Provisions,"Children, Families & Cultural Services",Debit,11.40,tesco stores 5437,21/04/2016
Nottinghamshire County Council,Provisions,"Children, Families & Cultural Services",Debit,40.00,mega value,21/04/2016
Nottinghamshire County Council,Clients - H & S Equipt,"Children, Families & Cultural Services",Debit,167.04,asda home shopping,29/04/2016
Nottinghamshire County Council,Clients - H & S Equipt,"Children, Families & Cultural Services",Debit,30.00,asda superstore,15/04/2016
Nottinghamshire County Council,Aftercare - Equipment,"Children, Families & Cultural Services",Debit,440.00,united carpetmill,14/04/2016
Nottinghamshire County Council,Aftercare Lodging/Hostel,"Children, Families & Cultural Services",Debit,65.04,bassetlaw d.c.,14/04/2016
Nottinghamshire County Council,Section 17,"Children, Families & Cultural Services",Debit,30.00,w boyes  co ltd,11/04/2016
Nottinghamshire County Council,Aftercare - Equipment,"Children, Families & Cultural Services",Debit,85.97,argos retail group,04/04/2016
Nottinghamshire County Council,Teaching Equipment,"Children, Families & Cultural Services",Debit,9.95,amazon uk marketplace,03/05/2016
Nottinghamshire County Council,Building Maintenance,"Children, Families & Cultural Services",Debit,13.66,amazon uk marketplace,29/04/2016
Nottinghamshire County Council,Teaching Equipment,"Children, Families & Cultural Services",Debit,3.99,amazon uk marketplace,29/04/2016
Nottinghamshire County Council,Subscriptions,"Children, Families & Cultural Services",Debit,96.00,cpl media,28/04/2016
Nottinghamshire County Council,Building Maintenance,"Children, Families & Cultural Services",Debit,20.64,amazon uk marketplace,27/04/2016
Nottinghamshire County Council,Teaching Equipment,"Children, Families & Cultural Services",Debit,48.60,www.vitcas.com,25/04/2016
Nottinghamshire County Council,Teaching Equipment,"Children, Families & Cultural Services",Debit,93.00,paypal  ,22/04/2016
Nottinghamshire County Council,Office / General Equipment,"Children, Families & Cultural Services",Debit,32.62,amazon uk retail,21/04/2016
Nottinghamshire County Council,Minor Works,"Children, Families & Cultural Services",Debit,38.40,salisbury  wood ltd,20/04/2016
Nottinghamshire County Council,Office / General Equipment,"Children, Families & Cultural Services",Debit,270.00,elmtree press limi,18/04/2016
Nottinghamshire County Council,Subscriptions,"Children, Families & Cultural Services",Debit,29.00,peak district npa,18/04/2016
Nottinghamshire County Council,Minor Works,"Children, Families & Cultural Services",Debit,120.12,salisbury  wood ltd,14/04/2016
Nottinghamshire County Council,Teaching Equipment,"Children, Families & Cultural Services",Debit,61.70,westfield fasteners,12/04/2016
Nottinghamshire County Council,Building Maintenance,"Children, Families & Cultural Services",Debit,21.83,wm eyre and sons,07/04/2016
Nottinghamshire County Council,Teaching Equipment,"Children, Families & Cultural Services",Debit,36.31,wm eyre and sons,07/04/2016
Nottinghamshire County Council,Building Maintenance,"Children, Families & Cultural Services",Debit,3.44,amazon uk marketplace,06/04/2016
Nottinghamshire County Council,Building Maintenance,"Children, Families & Cultural Services",Debit,11.00,amazon uk marketplace,05/04/2016
Nottinghamshire County Council,Provisions,"Children, Families & Cultural Services",Debit,7.00,poundworld retail,28/04/2016
Nottinghamshire County Council,Provisions,"Children, Families & Cultural Services",Debit,17.00,selston leisure ce,28/04/2016
Nottinghamshire County Council,Provisions,"Children, Families & Cultural Services",Debit,10.77,co-op group 070325,27/04/2016
Nottinghamshire County Council,Provisions,"Children, Families & Cultural Services",Debit,11.50,amazon uk marketplace,26/04/2016
Nottinghamshire County Council,Provisions,"Children, Families & Cultural Services",Debit,1.47,aldi,26/04/2016
Nottinghamshire County Council,Provisions,"Children, Families & Cultural Services",Debit,20.00,primark,21/04/2016
Nottinghamshire County Council,Provisions,"Children, Families & Cultural Services",Debit,1.00,poundland,21/04/2016
Nottinghamshire County Council,Provisions,"Children, Families & Cultural Services",Debit,5.00,blake and beeley (kirk,20/04/2016
Nottinghamshire County Council,Provisions,"Children, Families & Cultural Services",Debit,3.45,aldi,20/04/2016
Nottinghamshire County Council,Provisions,"Children, Families & Cultural Services",Debit,7.98,poundstretcher - 669,19/04/2016
Nottinghamshire County Council,Provisions,"Children, Families & Cultural Services",Debit,9.45,beales department st,19/04/2016
Nottinghamshire County Council,Provisions,"Children, Families & Cultural Services",Debit,4.48,bm retail ltd,19/04/2016
Nottinghamshire County Council,Personal Needs,"Children, Families & Cultural Services",Debit,37.49,sp   eazyhold,27/04/2016
Nottinghamshire County Council,Clothing/Shoes/Uniforms,"Children, Families & Cultural Services",Debit,84.00,www.asos.com,11/04/2016
Nottinghamshire County Council,Furniture,"Children, Families & Cultural Services",Debit,23.89,amazon uk marketplace,04/04/2016
Nottinghamshire County Council,Other Fee's & Services,Resources ,Credit,-11.00,city finance depar,11/04/2016
Nottinghamshire County Council,Other Fee's & Services,Resources ,Debit,11.00,nottingham city co,08/04/2016
Nottinghamshire County Council,Other Fee's & Services,Resources ,Debit,70.17,stationery office book,06/04/2016
Nottinghamshire County Council,Materials - External,Place ,Debit,66.86,tp newark,03/05/2016
Nottinghamshire County Council,Specialist Equipment,Place ,Debit,8.64,keyline ashfield,20/04/2016
Nottinghamshire County Council,Office / General Equipment,Place ,Debit,42.60,newark  sherwood lock,27/04/2016
Nottinghamshire County Council,Provisions,"Children, Families & Cultural Services",Debit,9.11,asda stores 4474,20/04/2016
Nottinghamshire County Council,Provisions,"Children, Families & Cultural Services",Debit,33.96,www.dominos.co.uk,20/04/2016
Nottinghamshire County Council,Office / General Equipment,"Children, Families & Cultural Services",Debit,8.00,amazon uk retail,30/04/2016
Nottinghamshire County Council,Activities & Support,"Children, Families & Cultural Services",Debit,7.99,lovefilm by post,28/04/2016
Nottinghamshire County Council,Activities & Support,"Children, Families & Cultural Services",Debit,2.95,amazon uk marketplace,27/04/2016
Nottinghamshire County Council,Systems Maintenance,"Children, Families & Cultural Services",Debit,714.00,www.lesar.co.uk,27/04/2016
Nottinghamshire County Council,Activities & Support,"Children, Families & Cultural Services",Debit,3.75,amazon uk marketplace,26/04/2016
Nottinghamshire County Council,Materials - External,"Children, Families & Cultural Services",Debit,19.81,amazon uk marketplace,22/04/2016
Nottinghamshire County Council,Phone - Mobile,"Children, Families & Cultural Services",Debit,24.00,textmagiccom,24/04/2016
Nottinghamshire County Council,Office / General Equipment,"Children, Families & Cultural Services",Debit,7.96,amazon uk marketplace,22/04/2016
Nottinghamshire County Council,Materials - External,"Children, Families & Cultural Services",Debit,41.98,amazon uk marketplace,21/04/2016
Nottinghamshire County Council,Activities & Support,"Children, Families & Cultural Services",Debit,65.94,amazon uk marketplace,19/04/2016
Nottinghamshire County Council,Office / General Equipment,"Children, Families & Cultural Services",Debit,7.96,amazon uk marketplace,18/04/2016
Nottinghamshire County Council,Phone and Network (Land Lines),"Children, Families & Cultural Services",Debit,24.00,textmagiccom,07/04/2016
Nottinghamshire County Council,Activities & Support,"Children, Families & Cultural Services",Debit,8.28,amazon uk marketplace,05/04/2016
Nottinghamshire County Council,Other Fee's & Services,Environment & Resources,Debit,84.99,premier inn44521620,17/04/2016
Nottinghamshire County Council,Other Fee's & Services,Environment & Resources,Debit,84.99,premier inn44521620,17/04/2016
Nottinghamshire County Council,Other Fee's & Services,Environment & Resources,Debit,84.99,premier inn44521620,17/04/2016
Nottinghamshire County Council,Other Fee's & Services,Environment & Resources,Debit,84.99,premier inn44521620,17/04/2016
Nottinghamshire County Council,Other Fee's & Services,Environment & Resources,Debit,84.99,premier inn44521620,17/04/2016
Nottinghamshire County Council,Clients - H & S Equipt,"Children, Families & Cultural Services",Debit,15.92,skdc customer service,29/04/2016
Nottinghamshire County Council,Aftercare - Equipment,"Children, Families & Cultural Services",Debit,624.97,ao retail limited,29/04/2016
Nottinghamshire County Council,Aftercare - Equipment,"Children, Families & Cultural Services",Debit,179.00,ao retail limited,25/04/2016
Nottinghamshire County Council,Customer Compensation,"Children, Families & Cultural Services",Debit,7.38,[Redacted],24/04/2016
Nottinghamshire County Council,Aftercare - Equipment,"Children, Families & Cultural Services",Debit,28.50,savoy cinemas work,17/04/2016
Nottinghamshire County Council,Activities & Support,"Children, Families & Cultural Services",Credit,-546.99,ao retail limited,15/04/2016
Nottinghamshire County Council,Clients - H & S Equipt,"Children, Families & Cultural Services",Debit,15.57,mcdonalds,17/04/2016
Nottinghamshire County Council,Aftercare - Equipment,"Children, Families & Cultural Services",Debit,523.00,ao retail limited,15/04/2016
Nottinghamshire County Council,Aftercare - Equipment,"Children, Families & Cultural Services",Debit,188.97,argos retail group,11/04/2016
Nottinghamshire County Council,Aftercare - Equipment,"Children, Families & Cultural Services",Debit,30.56,table table,10/04/2016
Nottinghamshire County Council,Clients - H & S Equipt,"Children, Families & Cultural Services",Debit,60.98,argos retail group,05/04/2016
Nottinghamshire County Council,Aftercare - Equipment,"Children, Families & Cultural Services",Debit,546.99,ao retail limited,05/04/2016
Nottinghamshire County Council,Activities & Support,"Children, Families & Cultural Services",Debit,4.94,tesco stores-3439,13/04/2016
Nottinghamshire County Council,Activities & Support,"Children, Families & Cultural Services",Debit,4.44,tesco store 3439,05/04/2016
Nottinghamshire County Council,Office / General Equipment,Environment & Resources,Debit,8.50,asda  stores 4201,13/04/2016
Nottinghamshire County Council,Personal Needs,"Children, Families & Cultural Services",Debit,65.72,tubes fittings,14/04/2016
Nottinghamshire County Council,Furniture,"Children, Families & Cultural Services",Debit,38.51,amazon uk marketplace,29/04/2016
Nottinghamshire County Council,Personal Needs,"Children, Families & Cultural Services",Debit,15.90,amazon uk marketplace,30/04/2016
Nottinghamshire County Council,Furniture,"Children, Families & Cultural Services",Debit,7.99,amazon uk retail,28/04/2016
Nottinghamshire County Council,Furniture,"Children, Families & Cultural Services",Debit,7.99,amazon uk retail,28/04/2016
Nottinghamshire County Council,Furniture,"Children, Families & Cultural Services",Debit,7.99,amazon uk retail,28/04/2016
Nottinghamshire County Council,Personal Needs,"Children, Families & Cultural Services",Debit,23.94,amazon uk marketplace,25/04/2016
Nottinghamshire County Council,Personal Needs,"Children, Families & Cultural Services",Debit,207.00,max spielmann ltd,22/04/2016
Nottinghamshire County Council,Holidays,"Children, Families & Cultural Services",Debit,387.25,haven holidays,22/04/2016
Nottinghamshire County Council,Personal Needs,"Children, Families & Cultural Services",Debit,11.14,amazon uk marketplace,20/04/2016
Nottinghamshire County Council,First Aid Equipment Purchases,"Children, Families & Cultural Services",Debit,30.18,amazon uk marketplace,09/04/2016
Nottinghamshire County Council,First Aid Equipment Purchases,"Children, Families & Cultural Services",Debit,29.50,amazon uk retail,09/04/2016
Nottinghamshire County Council,Landscape Maintenance,"Children, Families & Cultural Services",Debit,29.74,amazon uk retail,08/04/2016
Nottinghamshire County Council,Landscape Maintenance,"Children, Families & Cultural Services",Debit,34.74,amazon uk retail,07/04/2016
Nottinghamshire County Council,Activities & Support,"Children, Families & Cultural Services",Debit,15.47,wm morrisons,29/04/2016
Nottinghamshire County Council,Activities & Support,"Children, Families & Cultural Services",Debit,10.00,wm morrisons,26/04/2016
Nottinghamshire County Council,Activities & Support,"Children, Families & Cultural Services",Debit,10.87,www espares co uk,25/04/2016
Nottinghamshire County Council,Activities & Support,"Children, Families & Cultural Services",Debit,8.42,wm morrisons,21/04/2016
Nottinghamshire County Council,Activities & Support,"Children, Families & Cultural Services",Debit,18.95,wm morrisons,19/04/2016
Nottinghamshire County Council,Provisions,"Children, Families & Cultural Services",Debit,38.90,tesco stores 3297,03/05/2016
Nottinghamshire County Council,Provisions,"Children, Families & Cultural Services",Debit,25.50,tesco store 2964,29/04/2016
Nottinghamshire County Council,Provisions,"Children, Families & Cultural Services",Debit,30.80,tesco stores 2964,26/04/2016
Nottinghamshire County Council,Provisions,"Children, Families & Cultural Services",Debit,81.30,tesco stores 3297,14/04/2016
Nottinghamshire County Council,Legal Fees,"Children, Families & Cultural Services",Debit,215.00,county court,26/04/2016
Nottinghamshire County Council,Specialist Equipment,"Children, Families & Cultural Services",Debit,14.99,amazon uk marketplace,22/04/2016
Nottinghamshire County Council,Legal Fees,"Children, Families & Cultural Services",Debit,300.00,elliot mather llp,15/04/2016
Nottinghamshire County Council,Activities & Support,"Children, Families & Cultural Services",Debit,33.95,argos retail group,13/04/2016
Nottinghamshire County Council,Training Fees,"Children, Families & Cultural Services",Debit,115.50,premier inn44521620,11/04/2016
Nottinghamshire County Council,Training Fees,"Children, Families & Cultural Services",Debit,86.27,hotels com,11/04/2016
Nottinghamshire County Council,Training Fees,"Children, Families & Cultural Services",Credit,-86.27,hotels com,11/04/2016
Nottinghamshire County Council,Training Fees,"Children, Families & Cultural Services",Debit,110.00,virgintrainsec nng stn,07/04/2016
Nottinghamshire County Council,Provisions,"Children, Families & Cultural Services",Debit,7.18,tesco store 3439,03/05/2016
Nottinghamshire County Council,Provisions,"Children, Families & Cultural Services",Debit,15.00,tesco stores-3439,27/04/2016
Nottinghamshire County Council,Provisions,"Children, Families & Cultural Services",Debit,7.90,tesco store 3439,26/04/2016
Nottinghamshire County Council,Provisions,"Children, Families & Cultural Services",Debit,28.91,tesco store 3439,25/04/2016
Nottinghamshire County Council,Provisions,"Children, Families & Cultural Services",Debit,35.00,toys r us,23/04/2016
Nottinghamshire County Council,Provisions,"Children, Families & Cultural Services",Debit,75.44,tesco store 3439,18/04/2016
Nottinghamshire County Council,Office / General Equipment,"Adult Social Care, Health & Public Protection ",Debit,35.76,amazon uk retail,20/04/2016
Nottinghamshire County Council,Office / General Equipment,"Adult Social Care, Health & Public Protection ",Debit,25.98,amazon uk marketplace,20/04/2016
Nottinghamshire County Council,Office / General Equipment,"Adult Social Care, Health & Public Protection ",Debit,5.89,amazon uk marketplace,09/04/2016
Nottinghamshire County Council,Office / General Equipment,"Adult Social Care, Health & Public Protection ",Debit,225.00,timpson ltd,04/04/2016
Nottinghamshire County Council,Furniture,"Children, Families & Cultural Services",Debit,29.99,argos retail group,03/05/2016
Nottinghamshire County Council,Other Fee's & Services,"Children, Families & Cultural Services",Debit,18.50,gro hm passport office,26/04/2016
Nottinghamshire County Council,Other Fee's & Services,"Children, Families & Cultural Services",Debit,9.25,gro hm passport office,26/04/2016
Nottinghamshire County Council,Other Fee's & Services,"Children, Families & Cultural Services",Debit,90.00,hm passport,20/04/2016
Nottinghamshire County Council,Activities & Support,"Children, Families & Cultural Services",Debit,31.25,w m morrisons,01/05/2016
Nottinghamshire County Council,Activities & Support,"Children, Families & Cultural Services",Debit,11.99,argos ltd,13/04/2016
Nottinghamshire County Council,Activities & Support,"Children, Families & Cultural Services",Debit,50.72,tesco stores 5437,06/04/2016
Nottinghamshire County Council,Other Public Transport,Environment & Resources,Debit,35.81,www.pret.com,04/04/2016
Nottinghamshire County Council,Materials - External,Environment & Resources,Debit,175.13,eyre  elliston ltd,05/04/2016
Nottinghamshire County Council,Personal Needs,"Children, Families & Cultural Services",Debit,44.15,aldi,22/04/2016
Nottinghamshire County Council,Office / General Equipment,"Children, Families & Cultural Services",Debit,61.75,southview leisure,14/04/2016
Nottinghamshire County Council,Office / General Equipment,"Children, Families & Cultural Services",Debit,7.00,southview leisure,13/04/2016
Nottinghamshire County Council,Office / General Equipment,"Children, Families & Cultural Services",Debit,4.00,southview leisure,13/04/2016
Nottinghamshire County Council,Clothing/Shoes/Uniforms,"Children, Families & Cultural Services",Debit,6.00,tesco stores 5437,12/04/2016
Nottinghamshire County Council,Office / General Equipment,"Children, Families & Cultural Services",Debit,37.37,tesco stores 5437,12/04/2016
Nottinghamshire County Council,Office / General Equipment,"Children, Families & Cultural Services",Debit,13.55,sainsburys s/mkts,08/04/2016
Nottinghamshire County Council,Office / General Equipment,"Children, Families & Cultural Services",Debit,1.99,kfc 086/09,08/04/2016
Nottinghamshire County Council,Office / General Equipment,"Children, Families & Cultural Services",Debit,0.50,tesco stores 5281,08/04/2016
Nottinghamshire County Council,Office / General Equipment,Environment & Resources,Debit,1.00,b and q 1098,20/04/2016
Nottinghamshire County Council,Office / General Equipment,Environment & Resources,Debit,1.97,b and q 1098,20/04/2016
Nottinghamshire County Council,Office / General Equipment,Environment & Resources,Debit,3.24,b and q 1098,20/04/2016
Nottinghamshire County Council,Office / General Equipment,Environment & Resources,Debit,12.00,b and q 1098,20/04/2016
Nottinghamshire County Council,Office / General Equipment,Environment & Resources,Debit,12.00,b and q 1098,20/04/2016
Nottinghamshire County Council,Office / General Equipment,Environment & Resources,Debit,13.12,b and q 1098,06/04/2016
Nottinghamshire County Council,Office / General Equipment,Environment & Resources,Debit,6.92,b and q 1098,06/04/2016
Nottinghamshire County Council,Office / General Equipment,Environment & Resources,Debit,10.00,vodafone limited,03/05/2016
Nottinghamshire County Council,Office / General Equipment,Environment & Resources,Debit,30.00,vodafone limited,03/05/2016
Nottinghamshire County Council,Office / General Equipment,Environment & Resources,Debit,34.56,stapletons lock  safe,29/04/2016
Nottinghamshire County Council,Office / General Equipment,Environment & Resources,Debit,262.39,screwfix direct,27/04/2016
Nottinghamshire County Council,Office / General Equipment,Environment & Resources,Debit,139.80,outofeden.co.uk,25/04/2016
Nottinghamshire County Council,Office / General Equipment,Environment & Resources,Debit,277.86,www.extensive.co.uk,26/04/2016
Nottinghamshire County Council,Office / General Equipment,Environment & Resources,Debit,179.86,jtf wholesale ltd,22/04/2016
Nottinghamshire County Council,Office / General Equipment,Environment & Resources,Debit,74.06,chiltern mills,19/04/2016
Nottinghamshire County Council,Office / General Equipment,Environment & Resources,Debit,167.88,www.finerfilters.co.uk,15/04/2016
Nottinghamshire County Council,Office / General Equipment,Environment & Resources,Debit,255.00,retford kitchen factor,07/04/2016
Nottinghamshire County Council,Office / General Equipment,Environment & Resources,Debit,40.00,vodafone limited,07/04/2016
Nottinghamshire County Council,Office / General Equipment,Environment & Resources,Debit,58.50,gbw tool hire,05/04/2016
Nottinghamshire County Council,Provisions,"Children, Families & Cultural Services",Debit,4.99,mcdonalds,30/04/2016
Nottinghamshire County Council,Provisions,"Children, Families & Cultural Services",Debit,32.92,aldi,22/04/2016
Nottinghamshire County Council,Personal Needs,"Children, Families & Cultural Services",Debit,10.00,tesco stores 2995,18/04/2016
Nottinghamshire County Council,Provisions,"Children, Families & Cultural Services",Debit,3.85,bargain booze,14/04/2016
Nottinghamshire County Council,Personal Needs,"Children, Families & Cultural Services",Debit,10.80,tesco stores 5379,08/04/2016
Nottinghamshire County Council,Materials - External,Environment & Resources,Debit,44.86,edmundson electrical,26/04/2016
Nottinghamshire County Council,Materials - External,Environment & Resources,Debit,2.70,edmundson electrical,15/04/2016
Nottinghamshire County Council,Materials - External,Environment & Resources,Debit,58.04,edmundson electrical,12/04/2016
Nottinghamshire County Council,Materials - External,Environment & Resources,Debit,171.54,edmundson electrical,08/04/2016
Nottinghamshire County Council,Materials - External,Environment & Resources,Debit,9.50,edmundson electrical,06/04/2016
Nottinghamshire County Council,Materials - External,Environment & Resources,Debit,134.02,edmundson electrical,06/04/2016
Nottinghamshire County Council,Materials - External,Environment & Resources,Debit,22.31,edmundson electrical,05/04/2016
Nottinghamshire County Council,Materials - External,Environment & Resources,Debit,11.46,erf electrical wh,27/04/2016
Nottinghamshire County Council,Office / General Equipment,"Adult Social Care, Health & Public Protection ",Debit,9.99,currys,07/04/2016
Nottinghamshire County Council,Office / General Equipment,"Adult Social Care, Health & Public Protection ",Debit,13.09,homebase ltd,07/04/2016
Nottinghamshire County Council,Personal Needs,"Children, Families & Cultural Services",Debit,3.17,amazon uk marketplace,03/05/2016
Nottinghamshire County Council,Personal Needs,"Children, Families & Cultural Services",Debit,31.50,south forest leisure c,03/05/2016
Nottinghamshire County Council,Grounds Maintenance,"Children, Families & Cultural Services",Debit,45.00,notts county council,28/04/2016
Nottinghamshire County Council,Personal Needs,"Children, Families & Cultural Services",Debit,35.94,amazon uk retail,20/04/2016
Nottinghamshire County Council,Personal Needs,"Children, Families & Cultural Services",Debit,111.94,amazon uk marketplace,19/04/2016
Nottinghamshire County Council,Personal Needs,"Children, Families & Cultural Services",Debit,27.99,amazon svcs europesar,19/04/2016
Nottinghamshire County Council,Personal Needs,"Children, Families & Cultural Services",Debit,21.21,amazon uk marketplace,19/04/2016
Nottinghamshire County Council,Personal Needs,"Children, Families & Cultural Services",Debit,31.90,amazon uk marketplace,19/04/2016
Nottinghamshire County Council,Personal Needs,"Children, Families & Cultural Services",Debit,29.99,amazon uk marketplace,19/04/2016
Nottinghamshire County Council,Personal Needs,"Children, Families & Cultural Services",Debit,27.98,amazon uk marketplace,19/04/2016
Nottinghamshire County Council,Clothing/Shoes/Uniforms,"Children, Families & Cultural Services",Debit,13.98,amazon uk marketplace,14/04/2016
Nottinghamshire County Council,Clothing/Shoes/Uniforms,"Children, Families & Cultural Services",Debit,3.99,amazon uk marketplace,14/04/2016
Nottinghamshire County Council,Personal Needs,"Children, Families & Cultural Services",Debit,65.68,amazon uk marketplace,06/04/2016
Nottinghamshire County Council,Personal Needs,"Children, Families & Cultural Services",Debit,5.70,sainsburys s/mkts,29/04/2016
Nottinghamshire County Council,Provisions,"Children, Families & Cultural Services",Debit,4.50,sainsburys s/mkts,29/04/2016
Nottinghamshire County Council,Provisions,"Children, Families & Cultural Services",Debit,3.40,sainsburys s/mkts,26/04/2016
Nottinghamshire County Council,Provisions,"Children, Families & Cultural Services",Debit,43.40,sainsburys s/mkts,22/04/2016
Nottinghamshire County Council,Personal Needs,"Children, Families & Cultural Services",Debit,17.99,carphone warehouse,16/04/2016
Nottinghamshire County Council,Personal Needs,"Children, Families & Cultural Services",Debit,22.20,ace of mansfield,16/04/2016
Nottinghamshire County Council,Provisions,"Children, Families & Cultural Services",Debit,44.17,sainsburys s/mkts,14/04/2016
Nottinghamshire County Council,Provisions,"Children, Families & Cultural Services",Debit,7.67,sainsburys s/mkts,09/04/2016
Nottinghamshire County Council,Personal Needs,"Children, Families & Cultural Services",Debit,12.05,sainsburys s/mkts,10/04/2016
Nottinghamshire County Council,Personal Needs,"Children, Families & Cultural Services",Debit,10.00,sainsburys s/mkts,10/04/2016
Nottinghamshire County Council,Personal Needs,"Children, Families & Cultural Services",Debit,11.00,sainsburys s/mkts,05/04/2016
Nottinghamshire County Council,Provisions,"Children, Families & Cultural Services",Debit,45.25,sainsburys s/mkts,04/04/2016
Nottinghamshire County Council,Provisions,"Adult Social Care, Health & Public Protection ",Debit,18.50,east midlands trai,12/04/2016
Nottinghamshire County Council,Building Maintenance,Environment & Resources,Debit,4.64,jewson 3664,12/04/2016
Nottinghamshire County Council,Building Maintenance,Environment & Resources,Debit,90.00,houseproud,25/04/2016
Nottinghamshire County Council,Training Fees,Environment & Resources,Debit,200.21,amazon uk retail,23/04/2016
Nottinghamshire County Council,Training Fees,Environment & Resources,Debit,75.00,act the conference peo,21/04/2016
Nottinghamshire County Council,Specialist Equipment,"Children, Families & Cultural Services",Debit,37.88,homebase ltd,28/04/2016
Nottinghamshire County Council,Provisions,"Children, Families & Cultural Services",Debit,84.00,tesco stores 5992,29/04/2016
Nottinghamshire County Council,Provisions,"Children, Families & Cultural Services",Debit,50.57,aldi,15/04/2016
Nottinghamshire County Council,Provisions,"Children, Families & Cultural Services",Debit,12.98,mcdonalds,05/04/2016
Nottinghamshire County Council,Personal Needs,"Children, Families & Cultural Services",Debit,24.00,odeon,05/04/2016
Nottinghamshire County Council,Provisions,"Children, Families & Cultural Services",Debit,100.47,asda superstore 04261,04/04/2016
Nottinghamshire County Council,Office / General Equipment,"Children, Families & Cultural Services",Debit,25.80,asda superstore 04261,04/04/2016
Nottinghamshire County Council,Aftercare - Equipment,"Children, Families & Cultural Services",Debit,152.95,argos retail group,21/04/2016
Nottinghamshire County Council,Aftercare - Equipment,"Children, Families & Cultural Services",Debit,500.00,argos ltd,14/04/2016
Nottinghamshire County Council,Clients - H & S Equipt,"Children, Families & Cultural Services",Debit,2.00,w m morrison store,05/04/2016
Nottinghamshire County Council,Clients - H & S Equipt,"Children, Families & Cultural Services",Debit,34.60,national express limited,05/04/2016
Nottinghamshire County Council,Section 17,"Children, Families & Cultural Services",Debit,2.60,w m morrison store,05/04/2016
Nottinghamshire County Council,Section 17,"Children, Families & Cultural Services",Debit,4.30,caffe nero,04/04/2016
Nottinghamshire County Council,Hospitality,"Policy, Planning & Corporate Services",Debit,139.97,www.poppyshop.org.uk,27/04/2016
Nottinghamshire County Council,Hospitality,"Policy, Planning & Corporate Services",Debit,40.00,abf the soldiers c,27/04/2016
Nottinghamshire County Council,Phone - Mobile,"Policy, Planning & Corporate Services",Debit,17.60,amazon uk marketplace,20/04/2016
Nottinghamshire County Council,Hospitality,"Policy, Planning & Corporate Services",Debit,30.00,dawns cards,20/04/2016
Nottinghamshire County Council,Clients - H & S Equipt,"Children, Families & Cultural Services",Debit,143.93,argos retail group,14/04/2016
Nottinghamshire County Council,Provisions,"Children, Families & Cultural Services",Debit,23.64,tesco stores 2995,03/05/2016
Nottinghamshire County Council,Provisions,"Children, Families & Cultural Services",Debit,52.00,tesco stores 2995,03/05/2016
Nottinghamshire County Council,Provisions,"Children, Families & Cultural Services",Debit,7.39,tesco stores 2995,03/05/2016
Nottinghamshire County Council,Provisions,"Children, Families & Cultural Services",Debit,20.00,heron foods ltd,28/04/2016
Nottinghamshire County Council,Provisions,"Children, Families & Cultural Services",Debit,17.80,heron foods ltd,28/04/2016
Nottinghamshire County Council,Provisions,"Children, Families & Cultural Services",Debit,7.44,one stop 2353,26/04/2016
Nottinghamshire County Council,Provisions,"Children, Families & Cultural Services",Debit,31.80,iceland,18/04/2016
Nottinghamshire County Council,Provisions,"Children, Families & Cultural Services",Debit,53.53,farmfoods- baldert,18/04/2016
Nottinghamshire County Council,Provisions,"Children, Families & Cultural Services",Debit,49.94,bm retail ltd,16/04/2016
Nottinghamshire County Council,Provisions,"Children, Families & Cultural Services",Debit,44.68,home bargains (retford,16/04/2016
Nottinghamshire County Council,Activities & Support,"Adult Social Care, Health & Public Protection ",Debit,144.12,asda home shopping,28/04/2016
Nottinghamshire County Council,Activities & Support,"Adult Social Care, Health & Public Protection ",Debit,9.57,amazon uk marketplace,20/04/2016
Nottinghamshire County Council,Activities & Support,"Adult Social Care, Health & Public Protection ",Debit,130.97,asda home shopping,07/04/2016
Nottinghamshire County Council,Activities & Support,"Adult Social Care, Health & Public Protection ",Debit,13.62,amazon uk marketplace,06/04/2016
Nottinghamshire County Council,Office / General Equipment,"Children, Families & Cultural Services",Debit,9.99,asda superstore 04261,21/04/2016
Nottinghamshire County Council,Provisions,"Children, Families & Cultural Services",Debit,15.15,sainsburys s/mkts,19/04/2016
Nottinghamshire County Council,Provisions,"Children, Families & Cultural Services",Debit,15.41,sainsburys s/mkts,19/04/2016
Nottinghamshire County Council,Activities & Support,"Children, Families & Cultural Services",Debit,51.00,dw sports fitness,03/05/2016
Nottinghamshire County Council,Cl Payments,"Children, Families & Cultural Services",Debit,85.00,dw sports fitness,03/05/2016
Nottinghamshire County Council,Aftercare - Equipment,"Children, Families & Cultural Services",Debit,145.50,tvlicensing.co.uk,25/04/2016
Nottinghamshire County Council,Activities & Support,"Children, Families & Cultural Services",Debit,15.00,hmcourts-service.g,22/04/2016
Nottinghamshire County Council,Provisions,Place,Debit,210.85,bookerecomm,28/04/2016
Nottinghamshire County Council,Provisions,Place,Debit,11.60,asda superstore 04030,26/04/2016
Nottinghamshire County Council,Provisions,Place,Debit,96.00,asda superstore 04030,25/04/2016
Nottinghamshire County Council,Provisions,Place,Debit,24.09,amazon uk retail,24/04/2016
Nottinghamshire County Council,Provisions,Place,Debit,50.63,bookerecomm,21/04/2016
Nottinghamshire County Council,Provisions,Place,Debit,272.07,bookerecomm,21/04/2016
Nottinghamshire County Council,Provisions,Place,Debit,11.35,asda superstore 04030,21/04/2016
Nottinghamshire County Council,Provisions,Place,Debit,7.50,amazon uk marketplace,06/04/2016
Nottinghamshire County Council,Provisions,Place,Debit,4.98,amazon uk marketplace,06/04/2016
Nottinghamshire County Council,Clothing And Footwear,Place,Debit,15.00,marksspencer plc,04/04/2016
Nottinghamshire County Council,Office / General Equipment,"Children, Families & Cultural Services",Debit,10.37,post office counter,27/04/2016
Nottinghamshire County Council,Office / General Equipment,"Children, Families & Cultural Services",Credit,-29.99,bonprix,20/04/2016
Nottinghamshire County Council,Office / General Equipment,"Children, Families & Cultural Services",Debit,63.97,bonprix,14/04/2016
Nottinghamshire County Council,Office / General Equipment,"Children, Families & Cultural Services",Debit,33.98,bonprix,05/04/2016
Nottinghamshire County Council,Stationery,"Adult Social Care, Health & Public Protection ",Debit,9.25,gro hm passport office,20/04/2016
Nottinghamshire County Council,Stationery,"Adult Social Care, Health & Public Protection ",Debit,46.45,amazon uk marketplace,07/04/2016
Nottinghamshire County Council,Provisions,"Children, Families & Cultural Services",Debit,43.00,iceland,03/05/2016
Nottinghamshire County Council,Provisions,"Children, Families & Cultural Services",Debit,37.56,farmfoods- baldert,26/04/2016
Nottinghamshire County Council,Provisions,"Children, Families & Cultural Services",Debit,57.89,bm retail,26/04/2016
Nottinghamshire County Council,Provisions,"Children, Families & Cultural Services",Debit,6.05,sportsdirect 278,19/04/2016
Nottinghamshire County Council,Provisions,"Children, Families & Cultural Services",Debit,14.99,argos ltd,19/04/2016
Nottinghamshire County Council,Provisions,"Children, Families & Cultural Services",Debit,25.18,aldi,19/04/2016
Nottinghamshire County Council,Provisions,"Children, Families & Cultural Services",Debit,45.00,iceland,19/04/2016
Nottinghamshire County Council,Non-Employees medical fees,Environment & Resources,Debit,35.99,01direct ltd,18/04/2016
Nottinghamshire County Council,Non-Employees medical fees,Environment & Resources,Credit,-37.24,amazon uk retail,14/04/2016
Nottinghamshire County Council,Non-Employees medical fees,Environment & Resources,Debit,37.24,amazon uk retail,12/04/2016
Nottinghamshire County Council,Non-Employees medical fees,Environment & Resources,Credit,-35.99,jtf wholesale ltd,07/04/2016
Nottinghamshire County Council,Provisions,"Children, Families & Cultural Services",Debit,10.22,asda superstore 04261,03/05/2016
Nottinghamshire County Council,Provisions,"Children, Families & Cultural Services",Debit,62.90,tesco-seller_ist_1_2401,03/05/2016
Nottinghamshire County Council,Provisions,"Children, Families & Cultural Services",Debit,26.70,farmfoods limited,29/04/2016
Nottinghamshire County Council,Provisions,"Children, Families & Cultural Services",Debit,5.58,local 4 u,27/04/2016
Nottinghamshire County Council,Provisions,"Children, Families & Cultural Services",Debit,8.33,tesco stores 5437,26/04/2016
Nottinghamshire County Council,Provisions,"Children, Families & Cultural Services",Debit,4.99,local 4 u,22/04/2016
Nottinghamshire County Council,Provisions,"Children, Families & Cultural Services",Debit,20.95,the range,22/04/2016
Nottinghamshire County Council,Provisions,"Children, Families & Cultural Services",Debit,4.00,central england co,21/04/2016
Nottinghamshire County Council,Provisions,"Children, Families & Cultural Services",Debit,6.00,local 4 u,20/04/2016
Nottinghamshire County Council,Provisions,"Children, Families & Cultural Services",Debit,14.03,asda superstore 04261,19/04/2016
Nottinghamshire County Council,Activities & Support,"Children, Families & Cultural Services",Debit,1.31,amazon uk marketplace,29/04/2016
Nottinghamshire County Council,Activities & Support,"Children, Families & Cultural Services",Debit,2.99,amazon uk marketplace,28/04/2016
Nottinghamshire County Council,Activities & Support,"Children, Families & Cultural Services",Debit,9.45,amazon uk marketplace,27/04/2016
Nottinghamshire County Council,Activities & Support,"Children, Families & Cultural Services",Debit,8.45,amazon uk marketplace,27/04/2016
Nottinghamshire County Council,Activities & Support,"Children, Families & Cultural Services",Debit,1.38,amazon uk marketplace,26/04/2016
Nottinghamshire County Council,Activities & Support,"Children, Families & Cultural Services",Debit,5.85,amazon uk marketplace,26/04/2016
Nottinghamshire County Council,Cleaning Materials,"Children, Families & Cultural Services",Debit,25.43,paypal  ,26/04/2016
Nottinghamshire County Council,Activities & Support,"Children, Families & Cultural Services",Debit,23.94,argos retail group,26/04/2016
Nottinghamshire County Council,Activities & Support,"Children, Families & Cultural Services",Debit,6.05,amazon uk marketplace,26/04/2016
Nottinghamshire County Council,Activities & Support,"Children, Families & Cultural Services",Debit,5.25,amazon uk marketplace,26/04/2016
Nottinghamshire County Council,Activities & Support,"Children, Families & Cultural Services",Debit,17.45,amazon uk marketplace,26/04/2016
Nottinghamshire County Council,Activities & Support,"Children, Families & Cultural Services",Debit,25.10,amazon uk marketplace,26/04/2016
Nottinghamshire County Council,Activities & Support,"Children, Families & Cultural Services",Debit,2.18,amazon uk marketplace,26/04/2016
Nottinghamshire County Council,Activities & Support,"Children, Families & Cultural Services",Debit,211.60,tesco stores 3297,21/04/2016
Nottinghamshire County Council,Stationery,"Children, Families & Cultural Services",Debit,43.85,www.staples.co.uk,21/04/2016
Nottinghamshire County Council,Activities & Support,"Children, Families & Cultural Services",Debit,110.10,hobbycraft (internet),15/04/2016
Nottinghamshire County Council,Stationery,"Children, Families & Cultural Services",Debit,13.98,amazon uk retail,15/04/2016
Nottinghamshire County Council,Activities & Support,"Children, Families & Cultural Services",Debit,6.28,amazon uk marketplace,14/04/2016
Nottinghamshire County Council,Personal Needs,"Children, Families & Cultural Services",Debit,50.00,burrows opthalmic opti,14/04/2016
Nottinghamshire County Council,Activities & Support,"Children, Families & Cultural Services",Debit,108.75,boosey and hawkes,13/04/2016
Nottinghamshire County Council,Activities & Support,"Children, Families & Cultural Services",Debit,20.00,amazon uk retail,12/04/2016
Nottinghamshire County Council,Activities & Support,"Children, Families & Cultural Services",Debit,8.88,amazon uk marketplace,12/04/2016
Nottinghamshire County Council,Books - General,"Children, Families & Cultural Services",Debit,14.97,amazon uk retail,12/04/2016
Nottinghamshire County Council,Members Conference Fees,"Children, Families & Cultural Services",Debit,60.00,paypal  ,11/04/2016
Nottinghamshire County Council,Members Conference Fees,"Children, Families & Cultural Services",Debit,60.00,paypal  ,11/04/2016
Nottinghamshire County Council,Clothing And Footwear,"Children, Families & Cultural Services",Debit,90.00,paypal  ,08/04/2016
Nottinghamshire County Council,Office / General Equipment,"Children, Families & Cultural Services",Debit,29.99,argos retail group,07/04/2016
Nottinghamshire County Council,Stationery,"Children, Families & Cultural Services",Debit,2.98,amazon uk marketplace,07/04/2016
Nottinghamshire County Council,Stationery,"Children, Families & Cultural Services",Debit,16.37,amazon uk retail,06/04/2016
Nottinghamshire County Council,Office / General Equipment,"Children, Families & Cultural Services",Debit,61.08,www.cater4you.co.uk,06/04/2016
Nottinghamshire County Council,Personal Needs,"Children, Families & Cultural Services",Debit,74.95,argos retail group,06/04/2016
Nottinghamshire County Council,Activities & Support,"Children, Families & Cultural Services",Debit,170.59,amazon uk marketplace,06/04/2016
Nottinghamshire County Council,Activities & Support,"Children, Families & Cultural Services",Debit,73.97,amazon uk marketplace,06/04/2016
Nottinghamshire County Council,Stationery,"Children, Families & Cultural Services",Debit,13.60,amazon uk marketplace,05/04/2016
Nottinghamshire County Council,Specialist Equipment,"Children, Families & Cultural Services",Debit,499.08,hogrefe ltd,05/04/2016
Nottinghamshire County Council,Clothing And Footwear,"Children, Families & Cultural Services",Debit,9.24,amazon uk marketplace,04/04/2016
Nottinghamshire County Council,Clothing And Footwear,"Children, Families & Cultural Services",Debit,60.00,scrivens opticians 084,04/04/2016
Nottinghamshire County Council,Clothing And Footwear,"Children, Families & Cultural Services",Debit,53.99,paypal  ,04/04/2016
Nottinghamshire County Council,Materials - External,Place,Debit,10.65,amazon uk retail,12/04/2016
Nottinghamshire County Council,Personal Needs,"Children, Families & Cultural Services",Debit,14.99,tesco stores 5437,15/04/2016
Nottinghamshire County Council,Provisions,"Children, Families & Cultural Services",Debit,24.11,tesco stores 5437,15/04/2016
Nottinghamshire County Council,Provisions,"Children, Families & Cultural Services",Debit,89.04,aldi,04/04/2016
Nottinghamshire County Council,Provisions,"Children, Families & Cultural Services",Debit,2.67,aldi,24/04/2016
Nottinghamshire County Council,Clothing/Shoes/Uniforms,"Children, Families & Cultural Services",Debit,4.50,sportsdirect 292,18/04/2016
Nottinghamshire County Council,Clothing/Shoes/Uniforms,"Children, Families & Cultural Services",Debit,63.98,sportsdirect 292,18/04/2016
Nottinghamshire County Council,Other Public Transport,"Children, Families & Cultural Services",Debit,6.78,trainline,05/04/2016
Nottinghamshire County Council,Provisions,"Children, Families & Cultural Services",Debit,18.00,poundland,03/05/2016
Nottinghamshire County Council,Provisions,"Children, Families & Cultural Services",Debit,13.74,iceland,26/04/2016
Nottinghamshire County Council,Provisions,"Children, Families & Cultural Services",Debit,5.51,asda superstore 04261,22/04/2016
Nottinghamshire County Council,Provisions,"Children, Families & Cultural Services",Debit,21.90,sportsdirect 292,21/04/2016
Nottinghamshire County Council,Provisions,"Children, Families & Cultural Services",Debit,5.74,tesco stores 5437,19/04/2016
Nottinghamshire County Council,Provisions,"Children, Families & Cultural Services",Debit,15.00,tesco stores 5437,18/04/2016
Nottinghamshire County Council,Provisions,"Children, Families & Cultural Services",Debit,29.40,turentek,13/04/2016
Nottinghamshire County Council,Activities & Support,"Children, Families & Cultural Services",Debit,10.08,wickes,03/05/2016
Nottinghamshire County Council,Activities & Support,"Children, Families & Cultural Services",Debit,12.04,the range,03/05/2016
Nottinghamshire County Council,Activities & Support,"Children, Families & Cultural Services",Debit,9.00,iceland,29/04/2016
Nottinghamshire County Council,Activities & Support,"Children, Families & Cultural Services",Debit,57.73,odeon,29/04/2016
Nottinghamshire County Council,Activities & Support,"Children, Families & Cultural Services",Debit,10.25,iceland,28/04/2016
Nottinghamshire County Council,Activities & Support,"Children, Families & Cultural Services",Debit,25.50,iceland,27/04/2016
Nottinghamshire County Council,Activities & Support,"Children, Families & Cultural Services",Debit,20.50,www.newarkshowground.c,21/04/2016
Nottinghamshire County Council,Activities & Support,"Children, Families & Cultural Services",Debit,12.18,tesco stores 2995,21/04/2016
Nottinghamshire County Council,Activities & Support,"Children, Families & Cultural Services",Debit,14.10,iceland,20/04/2016
Nottinghamshire County Council,Activities & Support,"Children, Families & Cultural Services",Debit,12.27,tesco stores 5379,16/04/2016
Nottinghamshire County Council,Activities & Support,"Children, Families & Cultural Services",Debit,20.00,laser zone,15/04/2016
Nottinghamshire County Council,Activities & Support,"Children, Families & Cultural Services",Debit,15.94,laser zone,16/04/2016
Nottinghamshire County Council,Activities & Support,"Children, Families & Cultural Services",Debit,20.99,volcano falls,16/04/2016
Nottinghamshire County Council,Activities & Support,"Children, Families & Cultural Services",Debit,21.97,xplore,16/04/2016
Nottinghamshire County Council,Activities & Support,"Children, Families & Cultural Services",Debit,14.37,tesco stores 2995,13/04/2016
Nottinghamshire County Council,Fixtures & Fittings,"Children, Families & Cultural Services",Debit,59.04,tlc electrical distrib,19/04/2016
Nottinghamshire County Council,Cleaning Materials,"Children, Families & Cultural Services",Debit,9.60,sainsburys s/mkts,19/04/2016
Nottinghamshire County Council,Fixtures & Fittings,"Children, Families & Cultural Services",Debit,145.50,tv licensing,18/04/2016
Nottinghamshire County Council,Fixtures & Fittings,"Children, Families & Cultural Services",Debit,9.98,wilko retail limit,11/04/2016
Nottinghamshire County Council,Fixtures & Fittings,"Children, Families & Cultural Services",Debit,6.00,wilko retail limit,06/04/2016
Nottinghamshire County Council,Activities & Support,"Children, Families & Cultural Services",Debit,13.00,tesco stores 2702,27/04/2016
Nottinghamshire County Council,Activities & Support,"Children, Families & Cultural Services",Debit,10.08,tesco stores 5877,26/04/2016
Nottinghamshire County Council,Activities & Support,"Children, Families & Cultural Services",Debit,64.23,home bargains,20/04/2016
Nottinghamshire County Council,Activities & Support,"Children, Families & Cultural Services",Debit,13.58,argos ltd,20/04/2016
Nottinghamshire County Council,Materials - External,Place,Debit,36.28,intellipower ltd,14/04/2016
Nottinghamshire County Council,Materials - External,Place,Debit,33.84,intellipower ltd,12/04/2016
Nottinghamshire County Council,Materials - External,Place,Debit,94.03,intellipower ltd,05/04/2016
Nottinghamshire County Council,Office / General Equipment,"Children, Families & Cultural Services",Debit,775.80,zoomdirect.co.uk,28/04/2016
Nottinghamshire County Council,Office / General Equipment,"Children, Families & Cultural Services",Debit,102.42,toye kenning thetoyesh,28/04/2016
Nottinghamshire County Council,Office / General Equipment,"Children, Families & Cultural Services",Debit,512.00,pp ,27/04/2016
Nottinghamshire County Council,Stationery,"Children, Families & Cultural Services",Debit,29.75,amazon uk marketplace,21/04/2016
Nottinghamshire County Council,General Employee Exps,"Children, Families & Cultural Services",Debit,166.00,imperial london hotels,04/04/2016
Nottinghamshire County Council,Provisions,"Children, Families & Cultural Services",Debit,74.40,green magic co,21/04/2016
Nottinghamshire County Council,Provisions,"Children, Families & Cultural Services",Debit,15.61,w boyes  co ltd,05/04/2016
Nottinghamshire County Council,Other Fee's & Services,"Children, Families & Cultural Services",Debit,79.99,argos ltd,29/04/2016
Nottinghamshire County Council,Other Fee's & Services,"Children, Families & Cultural Services",Debit,15.00,hmcourts-service.g,28/04/2016
Nottinghamshire County Council,Other Fee's & Services,"Children, Families & Cultural Services",Debit,9.25,gro hm passport office,27/04/2016
Nottinghamshire County Council,Other Fee's & Services,"Children, Families & Cultural Services",Debit,46.00,the home office,24/04/2016
Nottinghamshire County Council,Other Fee's & Services,"Children, Families & Cultural Services",Debit,13.17,w boyes  co ltd,13/04/2016
Nottinghamshire County Council,Other Fee's & Services,"Children, Families & Cultural Services",Debit,14.99,tesco stores 2995,07/04/2016
Nottinghamshire County Council,Other Fee's & Services,"Children, Families & Cultural Services",Debit,134.99,halfords 0583,07/04/2016
Nottinghamshire County Council,Taxi Fares,Environment & Resources,Debit,11.50,national express limited,29/04/2016
Nottinghamshire County Council,Taxi Fares,Environment & Resources,Debit,18.50,national express limited,29/04/2016
Nottinghamshire County Council,Car Parking Charges,Environment & Resources,Debit,28.99,www.hxpayments.com,06/04/2016
Nottinghamshire County Council,Rail / Tube Fares,Environment & Resources,Debit,25.00,national express limited,05/04/2016
Nottinghamshire County Council,Provisions,"Adult Social Care, Health & Public Protection ",Debit,4.00,b and q 1039,27/04/2016
Nottinghamshire County Council,Provisions,"Adult Social Care, Health & Public Protection ",Debit,4.00,b and q 1039,27/04/2016
Nottinghamshire County Council,Provisions,"Adult Social Care, Health & Public Protection ",Debit,4.00,b and q 1039,27/04/2016
Nottinghamshire County Council,Provisions,"Adult Social Care, Health & Public Protection ",Debit,4.00,b and q 1039,27/04/2016
Nottinghamshire County Council,Provisions,"Adult Social Care, Health & Public Protection ",Debit,4.00,b and q 1039,27/04/2016
Nottinghamshire County Council,Provisions,"Adult Social Care, Health & Public Protection ",Debit,113.41,wm morrison food.com,29/04/2016
Nottinghamshire County Council,Provisions,"Adult Social Care, Health & Public Protection ",Debit,34.99,argos ltd,28/04/2016
Nottinghamshire County Council,Provisions,"Adult Social Care, Health & Public Protection ",Debit,44.00,asda home shopping,28/04/2016
Nottinghamshire County Council,Provisions,"Adult Social Care, Health & Public Protection ",Debit,37.30,healthcare services,27/04/2016
Nottinghamshire County Council,Provisions,"Adult Social Care, Health & Public Protection ",Debit,94.90,asda storess4342,27/04/2016
Nottinghamshire County Council,Provisions,"Adult Social Care, Health & Public Protection ",Debit,12.88,amazon uk marketplace,27/04/2016
Nottinghamshire County Council,Provisions,"Adult Social Care, Health & Public Protection ",Debit,131.85,wm morrison food.com,26/04/2016
Nottinghamshire County Council,Provisions,"Adult Social Care, Health & Public Protection ",Debit,4.99,amazon uk retail,26/04/2016
Nottinghamshire County Council,Provisions,"Adult Social Care, Health & Public Protection ",Debit,112.08,amazon uk retail,25/04/2016
Nottinghamshire County Council,Provisions,"Adult Social Care, Health & Public Protection ",Debit,9.48,amazon uk marketplace,25/04/2016
Nottinghamshire County Council,Provisions,"Adult Social Care, Health & Public Protection ",Debit,12.98,amazon uk marketplace,25/04/2016
Nottinghamshire County Council,Provisions,"Adult Social Care, Health & Public Protection ",Debit,30.96,amazon uk marketplace,22/04/2016
Nottinghamshire County Council,Provisions,"Adult Social Care, Health & Public Protection ",Debit,46.50,asda home shopping,22/04/2016
Nottinghamshire County Council,Provisions,"Adult Social Care, Health & Public Protection ",Debit,16.98,amazon uk marketplace,22/04/2016
Nottinghamshire County Council,Provisions,"Adult Social Care, Health & Public Protection ",Debit,9.99,amazon uk marketplace,22/04/2016
Nottinghamshire County Council,Provisions,"Adult Social Care, Health & Public Protection ",Debit,19.00,w boyes  co ltd eastw,20/04/2016
Nottinghamshire County Council,Provisions,"Adult Social Care, Health & Public Protection ",Debit,125.42,wm morrison food.com,18/04/2016
Nottinghamshire County Council,Provisions,"Adult Social Care, Health & Public Protection ",Credit,-1.16,wm morrison food.com,12/04/2016
Nottinghamshire County Council,Provisions,"Adult Social Care, Health & Public Protection ",Debit,158.57,wm morrison food.com,11/04/2016
Nottinghamshire County Council,Provisions,"Adult Social Care, Health & Public Protection ",Debit,51.00,nffc ticket office websi,06/04/2016
Nottinghamshire County Council,Provisions,"Adult Social Care, Health & Public Protection ",Debit,149.01,wm morrison food.com,04/04/2016
Nottinghamshire County Council,Provisions,"Adult Social Care, Health & Public Protection ",Debit,86.79,asda home shopping,25/04/2016
Nottinghamshire County Council,Provisions,"Adult Social Care, Health & Public Protection ",Debit,0.61,asda home shopping,25/04/2016
Nottinghamshire County Council,Provisions,"Adult Social Care, Health & Public Protection ",Debit,163.02,asda home shopping,21/04/2016
Nottinghamshire County Council,Provisions,"Adult Social Care, Health & Public Protection ",Credit,-0.78,asda home shopping,21/04/2016
Nottinghamshire County Council,Provisions,"Adult Social Care, Health & Public Protection ",Credit,-1.05,asda home shopping,21/04/2016
Nottinghamshire County Council,Provisions,"Adult Social Care, Health & Public Protection ",Debit,54.24,asda home shopping,11/04/2016
Nottinghamshire County Council,Provisions,"Adult Social Care, Health & Public Protection ",Debit,182.68,asda home shopping,07/04/2016
Nottinghamshire County Council,Provisions,"Adult Social Care, Health & Public Protection ",Credit,-0.89,asda home shopping,07/04/2016
Nottinghamshire County Council,Provisions,"Adult Social Care, Health & Public Protection ",Debit,3.90,asda home shopping,07/04/2016
Nottinghamshire County Council,Provisions,"Adult Social Care, Health & Public Protection ",Debit,61.00,moorcroft seafoods ltd,03/05/2016
Nottinghamshire County Council,Provisions,"Adult Social Care, Health & Public Protection ",Debit,32.50,the range,28/04/2016
Nottinghamshire County Council,Provisions,"Adult Social Care, Health & Public Protection ",Debit,107.45,moorcroft seafoods ltd,28/04/2016
Nottinghamshire County Council,Provisions,"Adult Social Care, Health & Public Protection ",Debit,3.43,iceland,27/04/2016
Nottinghamshire County Council,Provisions,"Adult Social Care, Health & Public Protection ",Debit,10.83,iceland,25/04/2016
Nottinghamshire County Council,Provisions,"Adult Social Care, Health & Public Protection ",Debit,4.80,newark,24/04/2016
Nottinghamshire County Council,Provisions,"Adult Social Care, Health & Public Protection ",Debit,27.59,argos ltd,23/04/2016
Nottinghamshire County Council,Provisions,"Adult Social Care, Health & Public Protection ",Debit,8.90,iceland,21/04/2016
Nottinghamshire County Council,Provisions,"Adult Social Care, Health & Public Protection ",Debit,4.00,iceland,13/04/2016
Nottinghamshire County Council,Provisions,"Adult Social Care, Health & Public Protection ",Debit,56.70,moorcroft seafoods ltd,11/04/2016
Nottinghamshire County Council,Provisions,"Adult Social Care, Health & Public Protection ",Debit,7.23,iceland,09/04/2016
Nottinghamshire County Council,Provisions,"Adult Social Care, Health & Public Protection ",Debit,20.00,iceland,06/04/2016
Nottinghamshire County Council,Activities & Support,"Children, Families & Cultural Services",Debit,21.68,tesco stores 5379,15/04/2016
Nottinghamshire County Council,Activities & Support,"Children, Families & Cultural Services",Debit,3.98,aldi,08/04/2016
Nottinghamshire County Council,Stock,"Children, Families & Cultural Services",Debit,5.43,b and q 1085,07/04/2016
Nottinghamshire County Council,Stock,"Children, Families & Cultural Services",Debit,9.77,b and q 1085,07/04/2016
Nottinghamshire County Council,Stock,"Children, Families & Cultural Services",Debit,11.37,b and q 1085,07/04/2016
Nottinghamshire County Council,Stock,"Children, Families & Cultural Services",Debit,193.03,e m richford ltd,29/04/2016
Nottinghamshire County Council,Stock,"Children, Families & Cultural Services",Debit,82.42,morplan ltd,21/04/2016
Nottinghamshire County Council,Stock,"Children, Families & Cultural Services",Debit,143.38,morplan ltd,14/04/2016
Nottinghamshire County Council,Stock,"Children, Families & Cultural Services",Debit,2.00,royal mail  ,13/04/2016
Nottinghamshire County Council,Stock,"Children, Families & Cultural Services",Debit,31.66,amazon uk marketplace,10/04/2016
Nottinghamshire County Council,Stock,"Children, Families & Cultural Services",Debit,1.50,royal mail  ,07/04/2016
Nottinghamshire County Council,Activities & Support,"Children, Families & Cultural Services",Debit,10.10,sainsburys s/mkt,04/04/2016
Nottinghamshire County Council,Fixtures & Fittings,"Children, Families & Cultural Services",Debit,13.50,asda store ston in as,27/04/2016
Nottinghamshire County Council,Provisions,"Children, Families & Cultural Services",Debit,28.40,asda store ston in as,27/04/2016
Nottinghamshire County Council,Provisions,"Children, Families & Cultural Services",Debit,1.24,aldi,23/04/2016
Nottinghamshire County Council,Provisions,"Children, Families & Cultural Services",Debit,6.00,sainsburys s/mkts,22/04/2016
Nottinghamshire County Council,Personal Needs,"Children, Families & Cultural Services",Debit,7.99,argos ltd,13/04/2016
Nottinghamshire County Council,Provisions,"Children, Families & Cultural Services",Debit,3.25,sainsburys s/mkts,12/04/2016
Nottinghamshire County Council,Provisions,"Children, Families & Cultural Services",Debit,37.21,tesco stores 5437,08/04/2016
Nottinghamshire County Council,Activities & Support,"Children, Families & Cultural Services",Debit,15.50,sainsburys s/mkts,03/05/2016
Nottinghamshire County Council,Activities & Support,"Children, Families & Cultural Services",Debit,1.50,sainsburys s/mkts,29/04/2016
Nottinghamshire County Council,Activities & Support,"Children, Families & Cultural Services",Debit,7.00,sainsburys s/mkts,28/04/2016
Nottinghamshire County Council,Activities & Support,"Children, Families & Cultural Services",Debit,1.50,sainsburys s/mkts,27/04/2016
Nottinghamshire County Council,Activities & Support,"Children, Families & Cultural Services",Debit,17.46,sainsburys s/mkts,26/04/2016
Nottinghamshire County Council,Activities & Support,"Children, Families & Cultural Services",Debit,2.25,wilko retail limit,20/04/2016
Nottinghamshire County Council,Activities & Support,"Children, Families & Cultural Services",Debit,1.80,sainsburys s/mkts,19/04/2016
Nottinghamshire County Council,Activities & Support,"Children, Families & Cultural Services",Debit,44.43,tesco stores 5329,19/04/2016
Nottinghamshire County Council,Provisions,"Children, Families & Cultural Services",Debit,4.17,mcdonalds,24/04/2016
Nottinghamshire County Council,Office / General Equipment,"Children, Families & Cultural Services",Debit,12.78,tesco stores 2995,11/04/2016
Nottinghamshire County Council,Personal Needs,"Children, Families & Cultural Services",Debit,7.00,big kidz karting,07/04/2016
Nottinghamshire County Council,Provisions,"Children, Families & Cultural Services",Debit,3.08,mcdonalds,07/04/2016
Nottinghamshire County Council,Personal Needs,"Children, Families & Cultural Services",Debit,36.26,waitrose newark automa,07/04/2016
Nottinghamshire County Council,Provisions,"Children, Families & Cultural Services",Debit,10.88,mcdonalds,07/04/2016
Nottinghamshire County Council,Minor Works,"Children, Families & Cultural Services",Debit,47.40,planet pizza,23/04/2016
Nottinghamshire County Council,Minor Works,"Children, Families & Cultural Services",Debit,48.00,www.alpkit.com,12/04/2016
Nottinghamshire County Council,Provisions,"Adult Social Care, Health & Public Protection ",Debit,6.00,wm morrisons plc,29/04/2016
Nottinghamshire County Council,Provisions,"Adult Social Care, Health & Public Protection ",Debit,10.00,wm morrison 023,26/04/2016
Nottinghamshire County Council,Provisions,"Adult Social Care, Health & Public Protection ",Debit,47.30,jtf wholesale ltd,26/04/2016
Nottinghamshire County Council,Provisions,"Adult Social Care, Health & Public Protection ",Debit,32.94,wm morrison 023,22/04/2016
Nottinghamshire County Council,Provisions,"Adult Social Care, Health & Public Protection ",Debit,14.32,jtf wholesale ltd,19/04/2016
Nottinghamshire County Council,Provisions,"Adult Social Care, Health & Public Protection ",Debit,4.50,the range,14/04/2016
Nottinghamshire County Council,Provisions,"Adult Social Care, Health & Public Protection ",Debit,18.96,the range,14/04/2016
Nottinghamshire County Council,Provisions,"Adult Social Care, Health & Public Protection ",Debit,32.04,wm morrison 023,08/04/2016
Nottinghamshire County Council,Provisions,"Adult Social Care, Health & Public Protection ",Debit,93.41,booker limited mansfield,04/04/2016
Nottinghamshire County Council,Teaching Equipment,Place ,Debit,77.66,tp chesterfield wh,26/04/2016
Nottinghamshire County Council,Office / General Equipment,Place ,Debit,3.59,findel education,03/05/2016
Nottinghamshire County Council,Provisions,Place ,Debit,51.14,js online grocery,27/04/2016
Nottinghamshire County Council,Provisions,Place ,Debit,53.95,js online grocery,25/04/2016
Nottinghamshire County Council,Provisions,Place ,Debit,71.55,js online grocery,18/04/2016
Nottinghamshire County Council,Provisions,Place ,Debit,47.32,js online grocery,13/04/2016
Nottinghamshire County Council,Postages,Place ,Debit,5.54,post office counter,12/04/2016
Nottinghamshire County Council,Provisions,Place ,Debit,63.55,js online grocery,11/04/2016
Nottinghamshire County Council,Provisions,Place ,Debit,89.68,barrons of,11/04/2016
Nottinghamshire County Council,Postages,Resources,Debit,7.90,timpson ltd,21/04/2016
Nottinghamshire County Council,Teaching Equipment,"Children, Families & Cultural Services",Debit,86.99,amazon uk marketplace,29/04/2016
Nottinghamshire County Council,Clothing/Shoes/Uniforms,"Children, Families & Cultural Services",Debit,20.00,usc,29/04/2016
Nottinghamshire County Council,Materials - Stores,Place,Debit,49.20,city electrical fa,11/04/2016
Nottinghamshire County Council,Materials - Stores,Place,Debit,43.96,screwfix direct,03/05/2016
Nottinghamshire County Council,Materials - Stores,Place,Debit,28.47,homebase ltd,03/05/2016
Nottinghamshire County Council,Materials - Stores,Place,Debit,115.43,newark paint  hardware,03/05/2016
Nottinghamshire County Council,Materials - Stores,Place,Debit,13.50,mkm retford,29/04/2016
Nottinghamshire County Council,Materials - Stores,Place,Debit,106.74,newark paint  hardware,25/04/2016
Nottinghamshire County Council,Materials - Stores,Place,Debit,71.98,machine mart ltd,20/04/2016
Nottinghamshire County Council,Materials - Stores,Place,Debit,21.40,esso moto blyth,14/04/2016
Nottinghamshire County Council,Materials - Stores,Place,Debit,45.96,newark paint  hardware,04/04/2016
Nottinghamshire County Council,Provisions,"Adult Social Care, Health & Public Protection ",Debit,118.22,spoilt rotten beads jewe,03/05/2016
Nottinghamshire County Council,Provisions,"Adult Social Care, Health & Public Protection ",Debit,216.57,paul white limited,19/04/2016
Nottinghamshire County Council,Cleaning Materials,"Adult Social Care, Health & Public Protection ",Debit,39.84,caterclean supplies,29/04/2016
Nottinghamshire County Council,Fixtures & Fittings,"Adult Social Care, Health & Public Protection ",Debit,93.85,amazon uk marketplace,26/04/2016
Nottinghamshire County Council,Office / General Equipment,"Adult Social Care, Health & Public Protection ",Debit,41.99,amazon svcs europesar,16/04/2016
Nottinghamshire County Council,Staff Training,"Adult Social Care, Health & Public Protection ",Debit,38.79,amazon uk marketplace,11/04/2016
Nottinghamshire County Council,Provisions,Environment & Resources,Debit,4.50,iceland,03/05/2016
Nottinghamshire County Council,Provisions,Environment & Resources,Debit,5.42,iceland,30/04/2016
Nottinghamshire County Council,Provisions,Environment & Resources,Debit,3.60,iceland,25/04/2016
Nottinghamshire County Council,Provisions,Environment & Resources,Debit,15.68,iceland,25/04/2016
Nottinghamshire County Council,Provisions,Environment & Resources,Debit,19.18,iceland,18/04/2016
Nottinghamshire County Council,Provisions,Environment & Resources,Debit,19.68,iceland,11/04/2016
Nottinghamshire County Council,Provisions,Environment & Resources,Debit,10.68,iceland,05/04/2016
Nottinghamshire County Council,Provisions,Environment & Resources,Debit,2.23,iceland,04/04/2016
Nottinghamshire County Council,Provisions,Environment & Resources,Debit,7.29,iceland,04/04/2016
Nottinghamshire County Council,Office / General Equipment,"Children, Families & Cultural Services",Debit,1.48,amazon uk marketplace,29/04/2016
Nottinghamshire County Council,Materials - External,Environment & Resources,Debit,30.00,citb,08/04/2016
Nottinghamshire County Council,Materials - External,Environment & Resources,Debit,67.98,screwfixdirect ltd,05/04/2016
Nottinghamshire County Council,Activities & Support,"Children, Families & Cultural Services",Debit,23.01,asda store ston in as,08/04/2016
Nottinghamshire County Council,Materials - External,Environment & Resources,Debit,36.33,bss group plc,27/04/2016
Nottinghamshire County Council,Materials - External,Environment & Resources,Debit,23.28,bss group plc,27/04/2016
Nottinghamshire County Council,Materials - External,Environment & Resources,Debit,14.77,bss group plc,27/04/2016
Nottinghamshire County Council,Materials - External,Environment & Resources,Debit,16.34,bss group plc,22/04/2016
Nottinghamshire County Council,Materials - External,Environment & Resources,Debit,22.28,bss group plc,14/04/2016
Nottinghamshire County Council,Materials - External,Environment & Resources,Debit,84.84,bss group plc,14/04/2016
Nottinghamshire County Council,Materials - External,Environment & Resources,Debit,176.26,bss group plc,14/04/2016
Nottinghamshire County Council,Materials - External,Environment & Resources,Debit,56.21,tubes fittings,13/04/2016
Nottinghamshire County Council,Materials - External,Environment & Resources,Debit,72.00,protrade ltd,27/04/2016
Nottinghamshire County Council,Materials - External,Environment & Resources,Debit,163.02,arco ltd,27/04/2016
Nottinghamshire County Council,Materials - External,Environment & Resources,Debit,15.48,protrade ltd,27/04/2016
Nottinghamshire County Council,Materials - External,Environment & Resources,Debit,23.28,frank key (notts) ltd,25/04/2016
Nottinghamshire County Council,Materials - External,Environment & Resources,Debit,21.04,frank key (notts) ltd,15/04/2016
Nottinghamshire County Council,Clients - H & S Equipt,"Children, Families & Cultural Services",Debit,80.00,tesco stores 5417,28/04/2016
Nottinghamshire County Council,Clients - H & S Equipt,"Children, Families & Cultural Services",Debit,130.08,cash converters,28/04/2016
Nottinghamshire County Council,Aftercare - Equipment,"Children, Families & Cultural Services",Debit,7.05,sainsburys s/mkts,21/04/2016
Nottinghamshire County Council,Clients - H & S Equipt,"Children, Families & Cultural Services",Debit,10.50,gifto mini market,20/04/2016
Nottinghamshire County Council,Clients - H & S Equipt,"Children, Families & Cultural Services",Debit,91.00,travelodge website,12/04/2016
Nottinghamshire County Council,Aftercare Lodging/Hostel,"Children, Families & Cultural Services",Debit,66.00,travelodge website,08/04/2016
Nottinghamshire County Council,Clients - H & S Equipt,"Children, Families & Cultural Services",Debit,22.10,sainsburys s/mkt,07/04/2016
Nottinghamshire County Council,Clients - H & S Equipt,"Children, Families & Cultural Services",Debit,3.10,sainsburys s/mkt,07/04/2016
Nottinghamshire County Council,Aftercare Lodging/Hostel,"Children, Families & Cultural Services",Debit,165.00,travelodge website,07/04/2016
Nottinghamshire County Council,Clients - H & S Equipt,"Children, Families & Cultural Services",Debit,49.95,travelodge,07/04/2016
Nottinghamshire County Council,Aftercare Lodging/Hostel,"Children, Families & Cultural Services",Debit,52.45,travelodge website,06/04/2016
Nottinghamshire County Council,Clients - H & S Equipt,"Children, Families & Cultural Services",Debit,24.00,ace of mansfield,06/04/2016
Nottinghamshire County Council,Minor Works,"Children, Families & Cultural Services",Debit,8.00,b and q 1261,21/04/2016
Nottinghamshire County Council,Minor Works,"Children, Families & Cultural Services",Debit,8.00,b and q 1261,21/04/2016
Nottinghamshire County Council,Minor Works,"Children, Families & Cultural Services",Debit,18.37,b and q 1261,05/04/2016
Nottinghamshire County Council,Minor Works,"Children, Families & Cultural Services",Debit,2.13,b and q 1261,05/04/2016
Nottinghamshire County Council,Minor Works,"Children, Families & Cultural Services",Debit,4.50,b and q 1261,05/04/2016
Nottinghamshire County Council,Minor Works,"Children, Families & Cultural Services",Debit,2.13,b and q 1261,05/04/2016
Nottinghamshire County Council,Minor Works,"Children, Families & Cultural Services",Debit,2.13,b and q 1261,05/04/2016
Nottinghamshire County Council,Minor Works,"Children, Families & Cultural Services",Credit,-2.13,b and q 1261,05/04/2016
Nottinghamshire County Council,Minor Works,"Children, Families & Cultural Services",Credit,-2.13,b and q 1261,05/04/2016
Nottinghamshire County Council,Minor Works,"Children, Families & Cultural Services",Credit,-2.13,b and q 1261,05/04/2016
Nottinghamshire County Council,Minor Works,"Children, Families & Cultural Services",Debit,2.60,b and q 1261,05/04/2016
Nottinghamshire County Council,Minor Works,"Children, Families & Cultural Services",Debit,2.60,b and q 1261,05/04/2016
Nottinghamshire County Council,Minor Works,"Children, Families & Cultural Services",Debit,10.00,b and q 1261,05/04/2016
Nottinghamshire County Council,Minor Works,"Children, Families & Cultural Services",Debit,2.60,b and q 1261,05/04/2016
Nottinghamshire County Council,Minor Works,"Children, Families & Cultural Services",Debit,32.00,screwfix direct,19/04/2016
Nottinghamshire County Council,Materials - External,Environment & Resources,Debit,56.16,city electrical fa,12/04/2016
Nottinghamshire County Council,Materials - External,Place ,Debit,211.50,edmundson electrical,18/04/2016
Nottinghamshire County Council,Materials - External,Place ,Debit,53.96,amazon uk marketplace,26/04/2016
Nottinghamshire County Council,Materials - External,Place ,Debit,73.80,protrade ltd,04/04/2016
Nottinghamshire County Council,Subscriptions,Place,Debit,594.00,paypal  ,28/04/2016
Nottinghamshire County Council,Subsistence Allowance,"Children, Families & Cultural Services",Debit,243.06,amoma.com hotels,03/05/2016
Nottinghamshire County Council,Subsistence Allowance,"Children, Families & Cultural Services",Debit,0.00,amoma.com hotels,03/05/2016
Nottinghamshire County Council,Subsistence Allowance,"Children, Families & Cultural Services",Debit,0.00,amoma.com hotels,03/05/2016
Nottinghamshire County Council,Activities & Support,"Children, Families & Cultural Services",Debit,1.98,wm morrison store,23/04/2016
Nottinghamshire County Council,Activities & Support,"Children, Families & Cultural Services",Debit,12.07,wm morrison store,22/04/2016
Nottinghamshire County Council,Specialist Equipment,"Children, Families & Cultural Services",Debit,21.50,screwfix,26/04/2016
Nottinghamshire County Council,Specialist Equipment,"Children, Families & Cultural Services",Debit,202.87,ps marsden lmower svs lt,23/04/2016
Nottinghamshire County Council,Specialist Equipment,"Children, Families & Cultural Services",Debit,191.05,ps marsden lmower svs lt,23/04/2016
Nottinghamshire County Council,Specialist Equipment,"Children, Families & Cultural Services",Debit,36.00,autosupplies,04/04/2016
Nottinghamshire County Council,Provisions,"Adult Social Care, Health & Public Protection ",Debit,24.27,tesco stores 5379,21/04/2016
Nottinghamshire County Council,Office / General Equipment,"Adult Social Care, Health & Public Protection ",Debit,7.49,screwfixdirect ltd,19/04/2016
Nottinghamshire County Council,Provisions,"Adult Social Care, Health & Public Protection ",Debit,13.82,tesco stores 5437,18/04/2016
Nottinghamshire County Council,Provisions,"Adult Social Care, Health & Public Protection ",Debit,2.20,tesco stores 5437,11/04/2016
Nottinghamshire County Council,Provisions,"Adult Social Care, Health & Public Protection ",Debit,3.80,tesco stores 5437,04/04/2016
Nottinghamshire County Council,Activities & Support,"Children, Families & Cultural Services",Debit,9.96,asda store ston in as,12/04/2016
Nottinghamshire County Council,Activities & Support,"Children, Families & Cultural Services",Debit,14.09,asda superstore 04261,09/04/2016
Nottinghamshire County Council,Activities & Support,"Children, Families & Cultural Services",Debit,7.36,asda superstore 04261,07/04/2016
Nottinghamshire County Council,Stock,"Children, Families & Cultural Services",Debit,20.76,aldi,08/04/2016
Nottinghamshire County Council,Activities & Support,"Children, Families & Cultural Services",Debit,8.28,budgens keyworth,26/04/2016
Nottinghamshire County Council,Activities & Support,"Children, Families & Cultural Services",Debit,64.16,amazon uk marketplace,22/04/2016
Nottinghamshire County Council,Activities & Support,"Children, Families & Cultural Services",Debit,14.88,amazon uk marketplace,22/04/2016
Nottinghamshire County Council,Activities & Support,"Children, Families & Cultural Services",Debit,16.68,amazon uk retail,22/04/2016
Nottinghamshire County Council,Activities & Support,"Children, Families & Cultural Services",Debit,11.95,amazon uk marketplace,22/04/2016
Nottinghamshire County Council,Activities & Support,"Children, Families & Cultural Services",Debit,23.42,amazon uk retail,22/04/2016
Nottinghamshire County Council,Activities & Support,"Children, Families & Cultural Services",Debit,1.80,amazon uk marketplace,22/04/2016
Nottinghamshire County Council,Activities & Support,"Children, Families & Cultural Services",Debit,19.47,co-op group 011281,20/04/2016
Nottinghamshire County Council,Activities & Support,"Children, Families & Cultural Services",Debit,81.04,asda superstore 04030,19/04/2016
Nottinghamshire County Council,Activities & Support,"Children, Families & Cultural Services",Debit,4.21,budgens keyworth,19/04/2016
Nottinghamshire County Council,Activities & Support,"Children, Families & Cultural Services",Debit,1.55,budgens keyworth,19/04/2016
Nottinghamshire County Council,Activities & Support,"Children, Families & Cultural Services",Debit,32.86,budgens keyworth,19/04/2016
Nottinghamshire County Council,Personal Needs,"Children, Families & Cultural Services",Debit,18.00,odeon,03/05/2016
Nottinghamshire County Council,Provisions,"Children, Families & Cultural Services",Debit,3.78,mcdonalds,03/05/2016
Nottinghamshire County Council,Provisions,"Children, Families & Cultural Services",Debit,91.58,aldi,02/05/2016
Nottinghamshire County Council,Office / General Equipment,"Children, Families & Cultural Services",Debit,159.00,asda superstore 04261,23/04/2016
Nottinghamshire County Council,Activities & Support,"Children, Families & Cultural Services",Debit,26.77,lidl uk,03/05/2016
Nottinghamshire County Council,Activities & Support,"Children, Families & Cultural Services",Debit,2.00,sainsburys s/mkt,29/04/2016
Nottinghamshire County Council,Activities & Support,"Children, Families & Cultural Services",Debit,15.00,argos ltd,28/04/2016
Nottinghamshire County Council,Activities & Support,"Children, Families & Cultural Services",Debit,33.08,co-op group 010811,27/04/2016
Nottinghamshire County Council,Activities & Support,"Children, Families & Cultural Services",Debit,120.00,flex e  vouchers,27/04/2016
Nottinghamshire County Council,Activities & Support,"Children, Families & Cultural Services",Debit,70.28,w m morrisons,19/04/2016
Nottinghamshire County Council,Office / General Equipment,"Children, Families & Cultural Services",Debit,114.00,the art department,29/04/2016
Nottinghamshire County Council,Office / General Equipment,"Children, Families & Cultural Services",Debit,117.60,the art department,18/04/2016
Nottinghamshire County Council,Other Fee's & Services,"Children, Families & Cultural Services",Debit,7.25,the post office,29/04/2016
Nottinghamshire County Council,Unallocated Budget,"Children, Families & Cultural Services",Debit,841.88,e.on energy solutions,28/04/2016
Nottinghamshire County Council,Aftercare - Equipment,"Children, Families & Cultural Services",Debit,145.50,tv licensing,27/04/2016
Nottinghamshire County Council,Aftercare - Equipment,"Children, Families & Cultural Services",Debit,145.50,tvlicensing.co.uk,26/04/2016
Nottinghamshire County Council,Aftercare - Equipment,"Children, Families & Cultural Services",Debit,149.00,argos retail group,26/04/2016
Nottinghamshire County Council,Activities & Support,"Children, Families & Cultural Services",Debit,20.33,waitrose direct,23/04/2016
Nottinghamshire County Council,Activities & Support,"Children, Families & Cultural Services",Debit,20.33,waitrose direct,23/04/2016
Nottinghamshire County Council,Activities & Support,"Children, Families & Cultural Services",Debit,20.33,waitrose direct,23/04/2016
Nottinghamshire County Council,Aftercare - Equipment,"Children, Families & Cultural Services",Debit,213.93,argos retail group,07/04/2016
Nottinghamshire County Council,Bus Fares,"Children, Families & Cultural Services",Debit,49.50,stagecoach service,06/04/2016
Nottinghamshire County Council,Vehicle Hire,"Children, Families & Cultural Services",Debit,75.00,anyvan,04/04/2016
Nottinghamshire County Council,Materials - External,Environment & Resources,Debit,58.32,edmundson electrical,28/04/2016
Nottinghamshire County Council,Materials - External,Environment & Resources,Debit,27.42,edmundson electrical,26/04/2016
Nottinghamshire County Council,Materials - External,Environment & Resources,Debit,50.40,edmundson electrical,25/04/2016
Nottinghamshire County Council,Materials - External,Environment & Resources,Debit,141.89,edmundson electrical,25/04/2016
Nottinghamshire County Council,Materials - External,Environment & Resources,Debit,130.50,power tool solutio,28/04/2016
Nottinghamshire County Council,Materials - External,Environment & Resources,Debit,0.00,power tool solutio,28/04/2016
Nottinghamshire County Council,Materials - External,Environment & Resources,Debit,200.88,power tool solutio,28/04/2016
Nottinghamshire County Council,Materials - External,Environment & Resources,Debit,151.15,power tool solutio,18/04/2016
Nottinghamshire County Council,Clients - H & S Equipt,"Children, Families & Cultural Services",Debit,60.50,gifto mini market,03/05/2016
Nottinghamshire County Council,Clients - H & S Equipt,"Children, Families & Cultural Services",Debit,15.60,trent stores,28/04/2016
Nottinghamshire County Council,Clients - H & S Equipt,"Children, Families & Cultural Services",Debit,241.92,argos ltd,27/04/2016
Nottinghamshire County Council,Clients - H & S Equipt,"Children, Families & Cultural Services",Debit,219.10,asda  stores 4201,27/04/2016
Nottinghamshire County Council,Clients - H & S Equipt,"Children, Families & Cultural Services",Debit,40.00,wm morrison 048,14/04/2016
Nottinghamshire County Council,Clients - H & S Equipt,"Children, Families & Cultural Services",Debit,3.10,costa coffee,14/04/2016
Nottinghamshire County Council,Clients - H & S Equipt,"Children, Families & Cultural Services",Debit,3.50,euro car parks,14/04/2016
Nottinghamshire County Council,Clients - H & S Equipt,"Children, Families & Cultural Services",Debit,12.70,wilko retail limit,06/04/2016
Nottinghamshire County Council,Activities & Support,"Children, Families & Cultural Services",Debit,25.27,tesco stores 5379,03/05/2016
Nottinghamshire County Council,Activities & Support,"Children, Families & Cultural Services",Debit,4.25,sainsburys s/mkts,28/04/2016
Nottinghamshire County Council,Activities & Support,"Children, Families & Cultural Services",Debit,25.63,aldi,28/04/2016
Nottinghamshire County Council,Activities & Support,"Children, Families & Cultural Services",Debit,28.59,aldi,21/04/2016
Nottinghamshire County Council,Activities & Support,"Children, Families & Cultural Services",Debit,2.20,tesco stores 5329,03/05/2016
Nottinghamshire County Council,Activities & Support,"Children, Families & Cultural Services",Debit,5.27,co-op group 065071,27/04/2016
Nottinghamshire County Council,Activities & Support,"Children, Families & Cultural Services",Debit,2.96,wm morrisons,25/04/2016
Nottinghamshire County Council,Activities & Support,"Children, Families & Cultural Services",Debit,0.90,wm morrisons,25/04/2016
Nottinghamshire County Council,Activities & Support,"Children, Families & Cultural Services",Debit,4.94,co-op group 065071,21/04/2016
Nottinghamshire County Council,Activities & Support,"Children, Families & Cultural Services",Debit,17.47,wm morrisons,18/04/2016
Nottinghamshire County Council,Activities & Support,"Children, Families & Cultural Services",Debit,5.01,wm morrisons,18/04/2016
Nottinghamshire County Council,Building Maintenance Servicing,Place ,Debit,100.00,b and q 1310,28/04/2016
Nottinghamshire County Council,Building Maintenance Servicing,Place ,Debit,20.00,b and q 1310,28/04/2016
Nottinghamshire County Council,Building Maintenance Servicing,Place ,Debit,20.00,b and q 1310,28/04/2016
Nottinghamshire County Council,Building Maintenance Servicing,Place ,Debit,5.00,b and q 1310,28/04/2016
Nottinghamshire County Council,Building Maintenance Servicing,Place ,Debit,5.00,b and q 1310,28/04/2016
Nottinghamshire County Council,Building Maintenance Servicing,Place ,Debit,20.00,b and q 1310,28/04/2016
Nottinghamshire County Council,Building Maintenance Servicing,Place ,Debit,12.60,b and q 1310,25/04/2016
Nottinghamshire County Council,Building Maintenance Servicing,Place ,Debit,12.60,b and q 1310,25/04/2016
Nottinghamshire County Council,Building Maintenance Servicing,Place ,Debit,12.60,b and q 1310,25/04/2016
Nottinghamshire County Council,Building Maintenance Servicing,Place ,Debit,12.60,b and q 1310,25/04/2016
Nottinghamshire County Council,Building Maintenance Servicing,Place ,Debit,38.00,b and q 1310,13/04/2016
Nottinghamshire County Council,Building Maintenance Servicing,Place ,Debit,12.30,b and q 1261,08/04/2016
Nottinghamshire County Council,Building Maintenance Servicing,Place ,Debit,67.00,b and q 1261,08/04/2016
Nottinghamshire County Council,Building Maintenance Servicing,Place ,Debit,1.24,b and q 1261,08/04/2016
Nottinghamshire County Council,Building Maintenance Servicing,Place ,Debit,7.00,b and q 1261,08/04/2016
Nottinghamshire County Council,Building Maintenance Servicing,Place ,Debit,4.00,b and q 1261,08/04/2016
Nottinghamshire County Council,Building Maintenance Servicing,Place ,Debit,4.00,b and q 1261,08/04/2016
Nottinghamshire County Council,Building Maintenance Servicing,Place ,Debit,9.84,b and q 1261,08/04/2016
Nottinghamshire County Council,Building Maintenance Servicing,Place ,Debit,3.00,b and q 1261,08/04/2016
Nottinghamshire County Council,Building Maintenance Servicing,Place ,Debit,0.78,b and q 1261,08/04/2016
Nottinghamshire County Council,Building Maintenance Servicing,Place ,Debit,7.00,b and q 1261,08/04/2016
Nottinghamshire County Council,Building Maintenance Servicing,Place ,Debit,13.00,b and q 1261,08/04/2016
Nottinghamshire County Council,Building Maintenance Servicing,Place ,Debit,7.00,b and q 1261,08/04/2016
Nottinghamshire County Council,Building Maintenance Servicing,Place ,Debit,9.84,b and q 1261,08/04/2016
Nottinghamshire County Council,Building Maintenance Servicing,Place ,Debit,9.98,b and q 1261,08/04/2016
Nottinghamshire County Council,Building Maintenance Servicing,Place ,Debit,0.78,b and q 1261,08/04/2016
Nottinghamshire County Council,Building Maintenance Servicing,Place ,Debit,6.64,homebase ltd,03/05/2016
Nottinghamshire County Council,Building Maintenance Servicing,Place ,Debit,200.00,carpet tile,25/04/2016
Nottinghamshire County Council,Building Maintenance Servicing,Place ,Debit,128.80,carpet tile,25/04/2016
Nottinghamshire County Council,Building Maintenance Servicing,Place ,Debit,45.00,shoecare - newark,19/04/2016
Nottinghamshire County Council,Building Maintenance Servicing,Place ,Debit,14.21,homebase ltd,19/04/2016
Nottinghamshire County Council,Building Maintenance Servicing,Place ,Debit,62.67,homebase ltd,08/04/2016
Nottinghamshire County Council,Hospitality,"Adult Social Care, Health & Public Protection ",Debit,48.89,tesco stores 5437,12/04/2016
Nottinghamshire County Council,Hospitality,"Adult Social Care, Health & Public Protection ",Debit,7.50,tesco stores 5437,06/04/2016
Nottinghamshire County Council,Provisions,"Children, Families & Cultural Services",Debit,60.94,tesco stores 5379,02/05/2016
Nottinghamshire County Council,Provisions,"Children, Families & Cultural Services",Debit,5.26,aldi,27/04/2016
Nottinghamshire County Council,Provisions,"Children, Families & Cultural Services",Debit,2.95,sainsburys s/mkts,26/04/2016
Nottinghamshire County Council,Personal Needs,"Children, Families & Cultural Services",Debit,5.00,sainsburys s/mkts,13/04/2016
Nottinghamshire County Council,Provisions,"Children, Families & Cultural Services",Debit,3.00,sainsburys s/mkts,13/04/2016
Nottinghamshire County Council,Provisions,"Children, Families & Cultural Services",Debit,11.65,sainsburys s/mkts,13/04/2016
Nottinghamshire County Council,Activities & Support,"Children, Families & Cultural Services",Debit,4.00,asda superstore 04030,03/05/2016
Nottinghamshire County Council,Activities & Support,"Children, Families & Cultural Services",Debit,0.90,lidl uk,28/04/2016
Nottinghamshire County Council,Activities & Support,"Children, Families & Cultural Services",Debit,11.99,smyths toys,26/04/2016
Nottinghamshire County Council,Activities & Support,"Children, Families & Cultural Services",Debit,1.10,lidl uk,21/04/2016
Nottinghamshire County Council,Activities & Support,"Children, Families & Cultural Services",Debit,5.62,amazon uk marketplace,21/04/2016
Nottinghamshire County Council,Activities & Support,"Children, Families & Cultural Services",Debit,3.54,central co-op,21/04/2016
Nottinghamshire County Council,Activities & Support,"Children, Families & Cultural Services",Debit,2.81,amazon uk marketplace,21/04/2016
Nottinghamshire County Council,Activities & Support,"Children, Families & Cultural Services",Debit,2.81,amazon uk marketplace,20/04/2016
Nottinghamshire County Council,Office / General Equipment,Place,Debit,19.98,currys,28/04/2016
Nottinghamshire County Council,Office / General Equipment,Place,Debit,68.97,currys,20/04/2016
Nottinghamshire County Council,Office / General Equipment,Place,Debit,9.99,currys,20/04/2016
Nottinghamshire County Council,Office / General Equipment,Place,Debit,54.00,newark  sherwood lock,18/04/2016
Nottinghamshire County Council,Office / General Equipment,"Adult Social Care, Health & Public Protection ",Debit,10.00,wilko retail limit,25/04/2016
Nottinghamshire County Council,Office / General Equipment,"Adult Social Care, Health & Public Protection ",Debit,11.00,wilko retail limit,21/04/2016
Nottinghamshire County Council,Office / General Equipment,"Adult Social Care, Health & Public Protection ",Debit,19.98,argos ltd,18/04/2016
Nottinghamshire County Council,Other Fee's & Services,"Children, Families & Cultural Services",Debit,9.25,gro hm passport office,26/04/2016
Nottinghamshire County Council,Materials - External,Environment & Resources,Debit,5.33,tp newark,18/04/2016
Nottinghamshire County Council,Rail / Tube Fares,Environment & Resources,Debit,6.30,east midlands trai,22/04/2016
Nottinghamshire County Council,Office / General Equipment,Environment & Resources,Debit,219.90,amazon uk marketplace,29/04/2016
Nottinghamshire County Council,Office / General Equipment,Environment & Resources,Debit,42.76,amazon uk marketplace,25/04/2016
Nottinghamshire County Council,Office / General Equipment,Environment & Resources,Debit,117.96,amazon uk marketplace,22/04/2016
Nottinghamshire County Council,Office / General Equipment,Environment & Resources,Debit,11.74,amazon uk marketplace,23/04/2016
Nottinghamshire County Council,Materials - External,Environment & Resources,Debit,229.99,toolstop,20/04/2016
Nottinghamshire County Council,Office / General Equipment,Environment & Resources,Debit,14.24,amazon uk retail,12/04/2016
Nottinghamshire County Council,Materials - External,Environment & Resources,Debit,28.74,wickes building,06/04/2016
Nottinghamshire County Council,Office / General Equipment,Environment & Resources,Debit,44.17,amazon uk retail,05/04/2016
Nottinghamshire County Council,Provisions,Environment & Resources,Debit,131.96,booker limited nottingha,25/04/2016
Nottinghamshire County Council,Provisions,Environment & Resources,Debit,84.90,www.lava-vacuum-packin,22/04/2016
Nottinghamshire County Council,Provisions,Environment & Resources,Debit,344.96,booker limited nottingha,05/04/2016
Nottinghamshire County Council,Personal Needs,"Children, Families & Cultural Services",Debit,5.99,netflix.com,30/04/2016
Nottinghamshire County Council,First Aid Equipment Purchases,"Children, Families & Cultural Services",Debit,23.16,amazon uk marketplace,07/04/2016
Nottinghamshire County Council,Holidays,"Children, Families & Cultural Services",Debit,26.25,ramsdale park,06/04/2016
Nottinghamshire County Council,Activities & Support,"Children, Families & Cultural Services",Debit,6.99,smyths toys,28/04/2016
Nottinghamshire County Council,Activities & Support,"Children, Families & Cultural Services",Debit,17.99,argos ltd,20/04/2016
Nottinghamshire County Council,Activities & Support,"Children, Families & Cultural Services",Debit,14.99,argos ltd,18/04/2016
Nottinghamshire County Council,Activities & Support,"Children, Families & Cultural Services",Debit,7.87,bm retail,18/04/2016
Nottinghamshire County Council,Office / General Equipment,Environment & Resources,Debit,145.50,tvlicensing.co.uk,22/04/2016
Nottinghamshire County Council,Office / General Equipment,Environment & Resources,Debit,12.00,wilko retail limit,11/04/2016
Nottinghamshire County Council,Cleaning Materials,"Adult Social Care, Health & Public Protection ",Debit,156.00,blue castle business s,22/04/2016
Nottinghamshire County Council,Provisions,"Adult Social Care, Health & Public Protection ",Debit,8.51,w m morrison plc,03/05/2016
Nottinghamshire County Council,Provisions,"Adult Social Care, Health & Public Protection ",Debit,14.82,w m morrison plc,26/04/2016
Nottinghamshire County Council,Provisions,"Adult Social Care, Health & Public Protection ",Debit,10.00,w m morrison plc,23/04/2016
Nottinghamshire County Council,Provisions,"Adult Social Care, Health & Public Protection ",Debit,17.23,w m morrison plc,19/04/2016
Nottinghamshire County Council,Provisions,"Adult Social Care, Health & Public Protection ",Debit,4.96,w m morrison plc,18/04/2016
Nottinghamshire County Council,Provisions,"Adult Social Care, Health & Public Protection ",Debit,4.94,w m morrison plc,14/04/2016
Nottinghamshire County Council,Provisions,"Adult Social Care, Health & Public Protection ",Debit,17.00,w m morrison plc,12/04/2016
Nottinghamshire County Council,Provisions,"Adult Social Care, Health & Public Protection ",Debit,0.67,w m morrison plc,12/04/2016
Nottinghamshire County Council,Cleaning Materials,"Adult Social Care, Health & Public Protection ",Debit,8.95,w boyes  co ltd kirkb,06/04/2016
Nottinghamshire County Council,Provisions,"Adult Social Care, Health & Public Protection ",Debit,1.54,w m morrison plc,06/04/2016
Nottinghamshire County Council,Provisions,"Adult Social Care, Health & Public Protection ",Debit,7.60,w m morrison plc,05/04/2016
Nottinghamshire County Council,Activities & Support,"Children, Families & Cultural Services",Debit,16.01,w m morrisons,23/04/2016
Nottinghamshire County Council,Activities & Support,"Children, Families & Cultural Services",Debit,4.22,co-op group 010811,16/04/2016
Nottinghamshire County Council,Activities & Support,"Children, Families & Cultural Services",Debit,5.23,wm morrison 067,16/04/2016
Nottinghamshire County Council,Activities & Support,"Children, Families & Cultural Services",Debit,18.24,w m morrisons,09/04/2016
Nottinghamshire County Council,Activities & Support,"Children, Families & Cultural Services",Debit,5.00,poundworld retail,07/04/2016
Nottinghamshire County Council,Provisions,"Children, Families & Cultural Services",Debit,6.17,aldi,03/05/2016
Nottinghamshire County Council,Provisions,"Children, Families & Cultural Services",Debit,14.05,asda store ston in as,29/04/2016
Nottinghamshire County Council,Provisions,"Children, Families & Cultural Services",Debit,3.27,aldi,28/04/2016
Nottinghamshire County Council,Provisions,"Children, Families & Cultural Services",Debit,69.00,grainger games altrinc,26/04/2016
Nottinghamshire County Council,Provisions,"Children, Families & Cultural Services",Debit,4.00,aldi,27/04/2016
Nottinghamshire County Council,Provisions,"Children, Families & Cultural Services",Debit,4.99,bm retail ltd,26/04/2016
Nottinghamshire County Council,Provisions,"Children, Families & Cultural Services",Debit,8.00,cex,26/04/2016
Nottinghamshire County Council,Provisions,"Children, Families & Cultural Services",Debit,28.31,asda store ston in as,26/04/2016
Nottinghamshire County Council,Provisions,"Children, Families & Cultural Services",Debit,6.09,aldi,22/04/2016
Nottinghamshire County Council,Provisions,"Children, Families & Cultural Services",Debit,55.97,argos ltd,21/04/2016
Nottinghamshire County Council,Provisions,"Children, Families & Cultural Services",Debit,8.57,aldi,21/04/2016
Nottinghamshire County Council,Provisions,"Children, Families & Cultural Services",Debit,12.81,aldi,19/04/2016
Nottinghamshire County Council,Personal Needs,"Children, Families & Cultural Services",Debit,172.38,trainline,29/04/2016
Nottinghamshire County Council,Clothing And Footwear,"Children, Families & Cultural Services",Debit,281.20,primark,19/04/2016
Nottinghamshire County Council,Training Fees,"Adult Social Care, Health & Public Protection ",Debit,15.98,w boyes  co ltd arnol,20/04/2016
Nottinghamshire County Council,Training Fees,"Adult Social Care, Health & Public Protection ",Debit,11.03,post office counter,20/04/2016
Nottinghamshire County Council,Training Fees,"Adult Social Care, Health & Public Protection ",Debit,32.70,capital hb ltd,15/04/2016
Nottinghamshire County Council,Teaching Equipment,"Children, Families & Cultural Services",Debit,0.50,tesco stores 2995,06/04/2016
Nottinghamshire County Council,Office / General Equipment,"Adult Social Care, Health & Public Protection ",Debit,80.39,w m morrison plc,13/04/2016
Nottinghamshire County Council,Office / General Equipment,"Adult Social Care, Health & Public Protection ",Debit,165.00,mawtec systems ltd,07/04/2016
Nottinghamshire County Council,Materials - External,Environment & Resources,Debit,1.61,bss group plc,20/04/2016
Nottinghamshire County Council,Materials - External,Environment & Resources,Debit,2.31,bss group plc,20/04/2016
Nottinghamshire County Council,Materials - External,Environment & Resources,Debit,6.41,bss group plc,20/04/2016
Nottinghamshire County Council,Materials - External,Environment & Resources,Debit,8.28,bss group plc,20/04/2016
Nottinghamshire County Council,Materials - External,Environment & Resources,Debit,8.70,bss group plc,20/04/2016
Nottinghamshire County Council,Materials - External,Environment & Resources,Debit,9.17,bss group plc,20/04/2016
Nottinghamshire County Council,Materials - External,Environment & Resources,Debit,2.05,bss group plc,12/04/2016
Nottinghamshire County Council,Materials - External,Environment & Resources,Debit,4.03,bss group plc,12/04/2016
Nottinghamshire County Council,Materials - External,Environment & Resources,Debit,11.91,bss group plc,12/04/2016
Nottinghamshire County Council,Materials - External,Environment & Resources,Debit,13.33,bss group plc,12/04/2016
Nottinghamshire County Council,Materials - External,Environment & Resources,Debit,61.64,bss group plc,12/04/2016
Nottinghamshire County Council,Materials - External,Environment & Resources,Debit,93.14,bss group plc,12/04/2016
Nottinghamshire County Council,Materials - External,Environment & Resources,Debit,99.70,bss group plc,12/04/2016
Nottinghamshire County Council,Materials - External,Environment & Resources,Debit,1.43,bss group plc,11/04/2016
Nottinghamshire County Council,Materials - External,Environment & Resources,Debit,4.10,bss group plc,11/04/2016
Nottinghamshire County Council,Materials - External,Environment & Resources,Debit,53.33,bss group plc,11/04/2016
Nottinghamshire County Council,Materials - External,Environment & Resources,Debit,9.41,bss group plc,11/04/2016
Nottinghamshire County Council,Materials - External,Environment & Resources,Debit,6.61,bss group plc,11/04/2016
Nottinghamshire County Council,Materials - External,Environment & Resources,Debit,3.29,bss group plc,11/04/2016
Nottinghamshire County Council,Materials - External,Environment & Resources,Debit,15.88,bss group plc,11/04/2016
Nottinghamshire County Council,Materials - External,Environment & Resources,Debit,2.99,bss group plc,11/04/2016
Nottinghamshire County Council,Materials - External,Environment & Resources,Debit,249.44,bss group plc,08/04/2016
Nottinghamshire County Council,Materials - External,Environment & Resources,Debit,11.90,bss group plc,08/04/2016
Nottinghamshire County Council,Materials - External,Environment & Resources,Debit,15.87,bss group plc,06/04/2016
Nottinghamshire County Council,Materials - External,Environment & Resources,Debit,21.12,bss group plc,06/04/2016
Nottinghamshire County Council,Materials - External,Environment & Resources,Debit,153.91,bss group plc,06/04/2016
Nottinghamshire County Council,Materials - External,Environment & Resources,Debit,42.35,bss group plc,06/04/2016
Nottinghamshire County Council,Materials - External,Environment & Resources,Debit,11.93,bss group plc,06/04/2016
Nottinghamshire County Council,Materials - External,Environment & Resources,Debit,5.75,bss group plc,06/04/2016
Nottinghamshire County Council,Materials - External,Environment & Resources,Debit,49.19,bss group plc,06/04/2016
Nottinghamshire County Council,Materials - External,Environment & Resources,Debit,12.00,bss group plc,06/04/2016
Nottinghamshire County Council,Materials - External,Environment & Resources,Debit,5.60,bss group plc,06/04/2016
Nottinghamshire County Council,Materials - External,Environment & Resources,Debit,55.16,bss group plc,06/04/2016
Nottinghamshire County Council,Materials - External,Environment & Resources,Debit,2.62,bss group plc,06/04/2016
Nottinghamshire County Council,Materials - External,Environment & Resources,Debit,107.31,bss group plc,06/04/2016
Nottinghamshire County Council,Materials - External,Environment & Resources,Debit,103.71,bss group plc,06/04/2016
Nottinghamshire County Council,Materials - External,Environment & Resources,Debit,13.03,bss group plc,06/04/2016
Nottinghamshire County Council,Materials - External,Environment & Resources,Debit,64.75,bss group plc,06/04/2016
Nottinghamshire County Council,Materials - External,Environment & Resources,Debit,7.18,bss group plc,06/04/2016
Nottinghamshire County Council,Materials - External,Environment & Resources,Debit,14.44,bss group plc,06/04/2016
Nottinghamshire County Council,Materials - External,Environment & Resources,Debit,11.51,bss group plc,06/04/2016
Nottinghamshire County Council,Materials - External,Environment & Resources,Debit,10.01,bss group plc,06/04/2016
Nottinghamshire County Council,Materials - External,Environment & Resources,Debit,232.57,protrade ltd,12/04/2016
Nottinghamshire County Council,Aftercare - Equipment,"Children, Families & Cultural Services",Debit,100.34,argos ltd,03/05/2016
Nottinghamshire County Council,Aftercare - Equipment,"Children, Families & Cultural Services",Debit,55.00,wilko retail limit,03/05/2016
Nottinghamshire County Council,Clients - H & S Equipt,"Children, Families & Cultural Services",Debit,10.28,badger box,20/04/2016
Nottinghamshire County Council,Activities & Support,"Children, Families & Cultural Services",Debit,6.88,sainsburys s/mkts,22/04/2016
Nottinghamshire County Council,Activities & Support,"Children, Families & Cultural Services",Debit,18.01,tesco stores 5437,15/04/2016
Nottinghamshire County Council,Activities & Support,"Children, Families & Cultural Services",Debit,6.50,sainsburys s/mkts,08/04/2016
Nottinghamshire County Council,Provisions,"Children, Families & Cultural Services",Debit,3.99,b  m retail,20/04/2016
Nottinghamshire County Council,Clients - H & S Equipt,"Children, Families & Cultural Services",Debit,5.40,tesco stores 5379,29/04/2016
Nottinghamshire County Council,Clients - H & S Equipt,"Children, Families & Cultural Services",Debit,149.99,currys,28/04/2016
Nottinghamshire County Council,Clients - H & S Equipt,"Children, Families & Cultural Services",Debit,39.96,bm retail ltd,25/04/2016
Nottinghamshire County Council,Clients - H & S Equipt,"Children, Families & Cultural Services",Credit,-10.99,bm retail ltd,25/04/2016
Nottinghamshire County Council,Clients - H & S Equipt,"Children, Families & Cultural Services",Debit,19.99,bm retail ltd,22/04/2016
Nottinghamshire County Council,Clients - H & S Equipt,"Children, Families & Cultural Services",Debit,22.00,asda store ston in as,22/04/2016
Nottinghamshire County Council,Clients - H & S Equipt,"Children, Families & Cultural Services",Debit,62.96,bm retail ltd,19/04/2016
Nottinghamshire County Council,Clients - H & S Equipt,"Children, Families & Cultural Services",Debit,42.70,wilko retail limit,19/04/2016
Nottinghamshire County Council,Clients - H & S Equipt,"Children, Families & Cultural Services",Debit,14.99,bm retail ltd,19/04/2016
Nottinghamshire County Council,Clients - H & S Equipt,"Children, Families & Cultural Services",Debit,126.97,argos retail group,19/04/2016
Nottinghamshire County Council,Office / General Equipment,"Children, Families & Cultural Services",Debit,77.22,aldi,03/05/2016
Nottinghamshire County Council,Office / General Equipment,"Children, Families & Cultural Services",Debit,12.00,asda superstore 04261,30/04/2016
Nottinghamshire County Council,Office / General Equipment,"Children, Families & Cultural Services",Debit,6.10,asda superstore 04261,30/04/2016
Nottinghamshire County Council,Office / General Equipment,"Children, Families & Cultural Services",Debit,100.77,aldi,25/04/2016
Nottinghamshire County Council,Office / General Equipment,"Children, Families & Cultural Services",Debit,109.91,aldi,18/04/2016
Nottinghamshire County Council,Office / General Equipment,"Children, Families & Cultural Services",Debit,5.00,big kidz karting,12/04/2016
Nottinghamshire County Council,Office / General Equipment,"Children, Families & Cultural Services",Debit,10.88,mcdonalds,12/04/2016
Nottinghamshire County Council,Office / General Equipment,"Children, Families & Cultural Services",Debit,4.95,big kidz karting,12/04/2016
Nottinghamshire County Council,Office / General Equipment,"Children, Families & Cultural Services",Debit,44.06,asda superstore 04261,11/04/2016
